Workbook

Sheet Cash-Flow-DATA
B1: (бюджетна организация, предприятие по чл. 165, ал. 1 от ЗПФ, поделение) | F1: ЕИК/БУЛСТАТ | G1: код по ЕБК | I1: Web-адрес | L1: e-mail | P1: финансово-правна форма
B2: =+OTCHET!B9 -> РЕГИОНАЛНА ЗДРАВНА ИНСПЕКЦИЯ-БУРГАС | F2: =+OTCHET!H9 -> 000 000 000 | G2: =+OTCHET!F12 -> 0 | I2: =+OTCHET!H607 -> 0 0 0 0 | L2: =+OTCHET!H605 -> 0 | P2: =+OTCHET!E15 -> 0 | Q2: =+OTCHET!F15 -> БЮДЖЕТ | S2: код от регистъра на бюджетните организации в СЕБРА | T2: =+OTCHET!I9 -> 0
B4: ИНФОРМАЦИЯ ЗА ИЗГОТВЯНЕ НА ОТЧЕТ ЗА КАСОВОТО ИЗПЪЛНЕНИЕ | J4: ГОДИНА | L4: =+Q4 -> 2 0 2 1 | P4: ГОДИНА | Q4: =+OTCHET!C3 -> 2 0 2 1 | S4: ОТЧЕТ ЗА КАСОВОТО ИЗПЪЛНЕНИЕ НА БЮДЖЕТА, СМЕТКИТЕ ЗА СЕС И ЧУЖДИТЕ СРЕДСТВА
B6: НА БЮДЖЕТА, СМЕТКИТЕ ЗА СРЕДСТВАТА ОТ ЕВРОПЕЙСКИЯ СЪЮЗ И СМЕТКИТЕ ЗА ЧУЖДИ СРЕДСТВА КЪМ | L6: =OTCHET!F9 -> 2021-12-31 | N6: (В ЛЕВОВЕ) | P6: =OTCHET!F9 -> 2021-12-31 | Q6: (В ЛЕВОВЕ) | S6: =+Q4 -> МАКЕТ ЗА 2021 г.
F8: БЮДЖЕТ Годишен уточнен план | G8: БЮДЖЕТ -ОТЧЕТ | I8: Сметки за сред-ства от Европей-ския съюз-инди-кативни разчети | J8: Сметки за сред-ства от Евро-пейския съюз - ОТЧЕТ | L8: Сметки за чуж-ди средства - ОТЧЕТ | N8: ОБЩО КАСОВ ОТЧЕТ | P8: таблица 'OTCHET' Год. уточнен план | Q8: таблица 'OTCHET' ОТЧЕТ | S8: §§ от ЕБК, които се включват в съответния показател
B9: П О К А З А Т Е Л И | F9: =+L4 -> за 2021 г. | G9: =+L6 -> 2021-12-31 | I9: =+L4 -> за 2021 г. | J9: =+L6 -> 2021-12-31 | L9: =+L6 -> 2021-12-31 | N9: =+L6 -> 2021-12-31 | P9: =+L4 -> за 2021 г. | Q9: =OTCHET!F9 -> 2021-12-31 | S9: П О К А З А Т Е Л И
B10: (а) | F10: (1) | G10: (2) | I10: (3) | J10: (4) | L10: (5) | N10: (6)=(2)+(4)+(5) | P10: (1) | Q10: (2)
B11: А. ПРИХОДИ, ПОМОЩИ И ДАРЕНИЯ | S11: А. ПРИХОДИ, ПОМОЩИ И ДАРЕНИЯ
B12: I. Постъпления от текущи приходи | S12: I. Постъпления от текущи приходи
B13: 1. Приходи от данъци и осигурителни вноски | F13: =+IF($P$2=0,$P13,0) -> 0 | G13: =+IF($P$2=0,$Q13,0) -> 0 | I13: =+IF(OR($P$2=98,$P$2=42,$P$2=96,$P$2=97),$P13,0) -> 0 | J13: =+IF(OR($P$2=98,$P$2=42,$P$2=96,$P$2=97),$Q13,0) -> 0 | L13: =+IF($P$2=33,$Q13,0) -> 0 | N13: =+ROUND(+G13+J13+L13,0) -> 0 | P13: =+ROUND(OTCHET!E22+OTCHET!E28+OTCHET!E33+OTCHET!E39+OTCHET!E47+OTCHET!E52+OTCHET!E58+OTCHET!E61+OTCHET!E64+OTCHET!E65+OTCHET!E72+OTCHET!E73,0) -> 0 | Q13: =+ROUND(OTCHET!F22+OTCHET!F28+OTCHET!F33+OTCHET!F39+OTCHET!F47+OTCHET!F52+OTCHET!F58+OTCHET!F61+OTCHET!F64+OTCHET!F65+OTCHET!F72+OTCHET!F73,0) -> 0 | S13: приходни §§ 01-00 ÷ 20-00
B14: 2. Приходи от такси и вноски | F14: =+IF($P$2=0,$P14,0) -> 280,000 | G14: =+IF($P$2=0,$Q14,0) -> 202,525 | I14: =+IF(OR($P$2=98,$P$2=42,$P$2=96,$P$2=97),$P14,0) -> 0 | J14: =+IF(OR($P$2=98,$P$2=42,$P$2=96,$P$2=97),$Q14,0) -> 0 | L14: =+IF($P$2=33,$Q14,0) -> 0 | N14: =+ROUND(+G14+J14+L14,0) -> 202,525 | P14: =+ROUND(+OTCHET!E90+OTCHET!E93+OTCHET!E94+OTCHET!E115+OTCHET!E116,0) -> 280,000 | Q14: =+ROUND(+OTCHET!F90+OTCHET!F93+OTCHET!F94+OTCHET!F115+OTCHET!F116,0) -> 202,525 | S14: приходни §§ 25-00, 26-00, 27-00, 36-08 и 36-10
B15: в т.ч. приходи от вноски | F15: 0 | G15: 0 | I15: 0 | J15: 0 | L15: 0 | N15: 0 | P15: =+ROUND(+OTCHET!E115+OTCHET!E116,0) -> 0 | Q15: =+OTCHET!F115+OTCHET!F116 -> 0 | S15: приходни §§ 36-08 и 36-10
B16: 3. Приходи от административни глоби, санкции и наказателни лихви | F16: 50,000 | G16: 31,836 | I16: 0 | J16: 0 | L16: 0 | N16: 31,836 | P16: =+ROUND(+OTCHET!E110+OTCHET!E111,0) -> 50,000 | Q16: =+ROUND(+OTCHET!F110+OTCHET!F111,0) -> 31,836 | S16: приходни §§ 28-02 и 28-09
B17: 4. Нетни приходи от продажби на услуги, стоки и продукция | F17: 0 | G17: 0 | I17: 0 | J17: 0 | L17: 0 | N17: 0 | P17: =+ROUND(OTCHET!E77,0) -> 0 | Q17: =+ROUND(OTCHET!F77,0) -> 0 | S17: приходeн § 24-04
B18: 5. Приходи от наеми | F18: 0 | G18: 1,383 | I18: 0 | J18: 0 | L18: 0 | N18: 1,383 | P18: =+ROUND(OTCHET!E78+OTCHET!E79,0) -> 0 | Q18: =+ROUND(OTCHET!F78+OTCHET!F79,0) -> 1,383 | S18: приходни §§ 24-05 и 24-06
B19: 6. Приходи от концесии и лицензии за ползване на публични активи | F19: 0 | G19: 0 | I19: 0 | J19: 0 | L19: 0 | N19: 0 | P19: =+ROUND(OTCHET!E137++OTCHET!E138,0) -> 0 | Q19: =+ROUND(OTCHET!F137++OTCHET!F138,0) -> 0 | S19: приходни §§ 41-00 и 42-00
B20: 7. Приходи от лихви | F20: 0 | G20: 0 | I20: 0 | J20: 0 | L20: 0 | N20: 0 | P20: =+ROUND(+SUM(OTCHET!E81:E89),0) -> 0 | Q20: =+ROUND(+SUM(OTCHET!F81:F89),0) -> 0 | S20: приходни §§ 24-08 ÷ 24-19
B21: 8. Приходи от дивиденти и дялово участие | F21: 0 | G21: 0 | I21: 0 | J21: 0 | L21: 0 | N21: 0 | P21: =+ROUND(OTCHET!E75+OTCHET!E76+OTCHET!E80,0) -> 0 | Q21: =+ROUND(OTCHET!F75+OTCHET!F76+OTCHET!F80,0) -> 0 | S21: приходни §§ 24-01, 24-03 и 24-07
B22: 9. Други текущи приходи и реализирани курсови разлики | F22: 0 | G22: 835 | I22: 0 | J22: 0 | L22: 0 | N22: 835 | P22: =+ROUND(OTCHET!E113+OTCHET!E114+OTCHET!E120,0) -> 0 | Q22: =+ROUND(OTCHET!F113+OTCHET!F114+OTCHET!F120,0) -> 835 | S22: приходни §§ 36-01, 36-05 и 36-19
B23: Общо за група І. Постъпления от текущи приходи | F23: =+ROUND(+SUM(F13,F14,F16,F17,F18,F19,F20,F21,F22),0) -> 330,000 | G23: =+ROUND(+SUM(G13,G14,G16,G17,G18,G19,G20,G21,G22),0) -> 236,579 | I23: =+ROUND(+SUM(I13,I14,I16,I17,I18,I19,I20,I21,I22),0) -> 0 | J23: =+ROUND(+SUM(J13,J14,J16,J17,J18,J19,J20,J21,J22),0) -> 0 | L23: =+ROUND(+SUM(L13,L14,L16,L17,L18,L19,L20,L21,L22),0) -> 0 | N23: =+ROUND(+SUM(N13,N14,N16,N17,N18,N19,N20,N21,N22),0) -> 236,579 | P23: =+ROUND(+SUM(P13,P14,P16,P17,P18,P19,P20,P21,P22),0) -> 330,000 | Q23: =+ROUND(+SUM(Q13,Q14,Q16,Q17,Q18,Q19,Q20,Q21,Q22),0) -> 236,579 | S23: сборен ред за група І. Постъпления от текущи приходи
B24: IІ. Реализация на нефинансови активи и конфискувани средства | S24: IІ. Реализация на нефинансови активи и конфискувани средства
B25: 1. Продажба на земя | F25: =+IF($P$2=0,$P25,0) -> 0 | G25: =+IF($P$2=0,$Q25,0) -> 0 | I25: =+IF(OR($P$2=98,$P$2=42,$P$2=96,$P$2=97),$P25,0) -> 0 | J25: =+IF(OR($P$2=98,$P$2=42,$P$2=96,$P$2=97),$Q25,0) -> 0 | L25: =+IF($P$2=33,$Q25,0) -> 0 | N25: =+ROUND(+G25+J25+L25,0) -> 0 | P25: =+ROUND(OTCHET!E135,0) -> 0 | Q25: =+ROUND(OTCHET!F135,0) -> 0 | S25: приходeн § 40-40
B26: 2. Продажба на други нефинансови дълготрайни активи | F26: =+IF($P$2=0,$P26,0) -> 0 | G26: =+IF($P$2=0,$Q26,0) -> 57,340 | I26: =+IF(OR($P$2=98,$P$2=42,$P$2=96,$P$2=97),$P26,0) -> 0 | J26: =+IF(OR($P$2=98,$P$2=42,$P$2=96,$P$2=97),$Q26,0) -> 0 | L26: =+IF($P$2=33,$Q26,0) -> 0 | N26: =+ROUND(+G26+J26+L26,0) -> 57,340 | P26: =+ROUND(+SUM(OTCHET!E126:E134)+OTCHET!E136,0) -> 0 | Q26: =+ROUND(+SUM(OTCHET!F126:F134)+OTCHET!F136,0) -> 57,340 | S26: приходeн § 40-00 без §§ 40-40 и 40-71
B27: 3. Конфиск. средства и продажби на конфискувани и от залог нефин. активи | F27: =+IF($P$2=0,$P27,0) -> 0 | G27: =+IF($P$2=0,$Q27,0) -> 0 | I27: =+IF(OR($P$2=98,$P$2=42,$P$2=96,$P$2=97),$P27,0) -> 0 | J27: =+IF(OR($P$2=98,$P$2=42,$P$2=96,$P$2=97),$Q27,0) -> 0 | L27: =+IF($P$2=33,$Q27,0) -> 0 | N27: =+ROUND(+G27+J27+L27,0) -> 0 | P27: =+ROUND(+OTCHET!E109,0) -> 0 | Q27: =+ROUND(+OTCHET!F109,0) -> 0 | S27: приходeн § 28-01
B28: Общо за група ІІ. Постъпления от продажби на нефинансови активи | F28: =+ROUND(+SUM(F25:F27),0) -> 0 | G28: =+ROUND(+SUM(G25:G27),0) -> 57,340 | I28: =+ROUND(+SUM(I25:I27),0) -> 0 | J28: =+ROUND(+SUM(J25:J27),0) -> 0 | L28: =+ROUND(+SUM(L25:L27),0) -> 0 | N28: =+ROUND(+SUM(N25:N27),0) -> 57,340 | P28: =+ROUND(+SUM(P25:P27),0) -> 0 | Q28: =+ROUND(+SUM(Q25:Q27),0) -> 57,340 | S28: сборен ред за група ІІ. Постъпления от продажби на нефинансови активи
B30: IІI. Внесен ДДС, др. данъци в/у продажбите и коректив за постъпления
B31: 1. Внесен ДДС
B32: 2. Внесен данък върху приходите от стопанска дейност
B33: 3. Внесени други данъци върху продажбите
B34: 4. Коректив за касови постъпления
B35: ІІІ. Внесен ДДС и др. данъци в/у продажбите и коректив за постъпления | F35: =+IF($P$2=0,$P35,0) -> 0 | G35: =+IF($P$2=0,$Q35,0) -> (11,798) | I35: =+IF(OR($P$2=98,$P$2=42,$P$2=96,$P$2=97),$P35,0) -> 0 | J35: =+IF(OR($P$2=98,$P$2=42,$P$2=96,$P$2=97),$Q35,0) -> 0 | L35: =+IF($P$2=33,$Q35,0) -> 0 | N35: =+ROUND(+G35+J35+L35,0) -> (11,798) | P35: =+ROUND(+OTCHET!E121+OTCHET!E119,0) -> 0 | Q35: =+ROUND(+OTCHET!F121+OTCHET!F119,0) -> (11,798) | S35: ІІІ. Внесен ДДС и др. д-ци в/у продажбите и коректив - приходни § 36-18 и 37-00
B36: в т. ч. внесен ДДС | F36: =+IF($P$2=0,$P36,0) -> 0 | G36: =+IF($P$2=0,$Q36,0) -> 0 | I36: =+IF(OR($P$2=98,$P$2=42,$P$2=96,$P$2=97),$P36,0) -> 0 | J36: =+IF(OR($P$2=98,$P$2=42,$P$2=96,$P$2=97),$Q36,0) -> 0 | L36: =+IF($P$2=33,$Q36,0) -> 0 | N36: 0 | P36: =+ROUND(OTCHET!E122,0) -> 0 | Q36: =+ROUND(OTCHET!F122,0) -> 0 | S36: приходен § 37-01
B37: внесен данък в/у приходите от стопанска дейност | F37: =+IF($P$2=0,$P37,0) -> 0 | G37: =+IF($P$2=0,$Q37,0) -> (42) | I37: =+IF(OR($P$2=98,$P$2=42,$P$2=96,$P$2=97),$P37,0) -> 0 | J37: =+IF(OR($P$2=98,$P$2=42,$P$2=96,$P$2=97),$Q37,0) -> 0 | L37: =+IF($P$2=33,$Q37,0) -> 0 | N37: (42) | P37: =+ROUND(OTCHET!E123,0) -> 0 | Q37: =+ROUND(OTCHET!F123,0) -> (42) | S37: приходен § 37-02
B38: внесени други данъци, такси и вноски в/у продажбите | F38: =+IF($P$2=0,$P38,0) -> 0 | G38: =+IF($P$2=0,$Q38,0) -> 0 | I38: =+IF(OR($P$2=98,$P$2=42,$P$2=96,$P$2=97),$P38,0) -> 0 | J38: =+IF(OR($P$2=98,$P$2=42,$P$2=96,$P$2=97),$Q38,0) -> 0 | L38: =+IF($P$2=33,$Q38,0) -> 0 | N38: 0 | P38: =+ROUND(OTCHET!E124,0) -> 0 | Q38: =+ROUND(OTCHET!F124,0) -> 0 | S38: приходен § 37-09
B40: IV. Постъпления от застрахователни обезщетения | F40: =+IF($P$2=0,$P40,0) -> 0 | G40: =+IF($P$2=0,$Q40,0) -> 0 | I40: =+IF(OR($P$2=98,$P$2=42,$P$2=96,$P$2=97),$P40,0) -> 0 | J40: =+IF(OR($P$2=98,$P$2=42,$P$2=96,$P$2=97),$Q40,0) -> 0 | L40: =+IF($P$2=33,$Q40,0) -> 0 | N40: 0 | P40: =+ROUND(OTCHET!E117+OTCHET!E118,0) -> 0 | Q40: =+ROUND(OTCHET!F117+OTCHET!F118,0) -> 0 | S40: IV. Постъпления от застрахователни обезщетения - приходни § 36-11 и 36-12
B41: V. Приходи от помощи и дарения | S41: V. Приходи от помощи и дарения
B42: 1. Помощи и дарения от Европейския съюз | F42: =+IF($P$2=0,$P42,0) -> 0 | G42: =+IF($P$2=0,$Q42,0) -> 0 | I42: =+IF(OR($P$2=98,$P$2=42,$P$2=96,$P$2=97),$P42,0) -> 0 | J42: =+IF(OR($P$2=98,$P$2=42,$P$2=96,$P$2=97),$Q42,0) -> 0 | L42: =+IF($P$2=33,$Q42,0) -> 0 | N42: =+ROUND(+G42+J42+L42,0) -> 0 | P42: =+ROUND(OTCHET!E143+OTCHET!E144+OTCHET!E161+OTCHET!E162,0) -> 0 | Q42: =+ROUND(OTCHET!F143+OTCHET!F144+OTCHET!F161+OTCHET!F162,0) -> 0 | S42: приходни §§ 46-10, 46-20, 48-10 и 48-20
B43: 2. Други помощи и дарения от чужбина | F43: =+IF($P$2=0,$P43,0) -> 0 | G43: =+IF($P$2=0,$Q43,0) -> 0 | I43: =+IF(OR($P$2=98,$P$2=42,$P$2=96,$P$2=97),$P43,0) -> 0 | J43: =+IF(OR($P$2=98,$P$2=42,$P$2=96,$P$2=97),$Q43,0) -> 0 | L43: =+IF($P$2=33,$Q43,0) -> 0 | N43: =+ROUND(+G43+J43+L43,0) -> 0 | P43: =+ROUND(+SUM(OTCHET!E145:E150)+SUM(OTCHET!E163:E168),0) -> 0 | Q43: =+ROUND(+SUM(OTCHET!F145:F150)+SUM(OTCHET!F163:F168),0) -> 0 | S43: приходни §§ 46-30 ÷ 46-80 и §§ 48-30 ÷ 48-80
B44: 3. Други безвъзмездно получени средства по международни и други програми | F44: =+IF($P$2=0,$P44,0) -> 0 | G44: =+IF($P$2=0,$Q44,0) -> 0 | I44: =+IF(OR($P$2=98,$P$2=42,$P$2=96,$P$2=97),$P44,0) -> 0 | J44: =+IF(OR($P$2=98,$P$2=42,$P$2=96,$P$2=97),$Q44,0) -> 0 | L44: =+IF($P$2=33,$Q44,0) -> 0 | N44: =+ROUND(+G44+J44+L44,0) -> 0 | P44: =+ROUND(OTCHET!E151,0) -> 0 | Q44: =+ROUND(OTCHET!F151,0) -> 0 | S44: приходeн § 47-00
B45: 4. Помощи и дарения от страната | F45: =+IF($P$2=0,$P45,0) -> 0 | G45: =+IF($P$2=0,$Q45,0) -> 0 | I45: =+IF(OR($P$2=98,$P$2=42,$P$2=96,$P$2=97),$P45,0) -> 0 | J45: =+IF(OR($P$2=98,$P$2=42,$P$2=96,$P$2=97),$Q45,0) -> 0 | L45: =+IF($P$2=33,$Q45,0) -> 0 | N45: =+ROUND(+G45+J45+L45,0) -> 0 | P45: =+ROUND(OTCHET!E139,0) -> 0 | Q45: =+ROUND(OTCHET!F139,0) -> 0 | S45: приходeн § 45-00
B46: Общо за група V. Приходи от помощи и дарения | F46: =+ROUND(+SUM(F42:F45),0) -> 0 | G46: =+ROUND(+SUM(G42:G45),0) -> 0 | I46: =+ROUND(+SUM(I42:I45),0) -> 0 | J46: =+ROUND(+SUM(J42:J45),0) -> 0 | L46: =+ROUND(+SUM(L42:L45),0) -> 0 | N46: =+ROUND(+SUM(N42:N45),0) -> 0 | P46: =+ROUND(+SUM(P42:P45),0) -> 0 | Q46: =+ROUND(+SUM(Q42:Q45),0) -> 0 | S46: сборен ред за група V. Приходи от помощи и дарения
B48: А. ОБЩО ПРИХОДИ, ПОМОЩИ И ДАРЕНИЯ | F48: =+ROUND(F23+F28+F35+F40+F46,0) -> 330,000 | G48: =+ROUND(G23+G28+G35+G40+G46,0) -> 282,121 | I48: =+ROUND(I23+I28+I35+I40+I46,0) -> 0 | J48: =+ROUND(J23+J28+J35+J40+J46,0) -> 0 | L48: =+ROUND(L23+L28+L35+L40+L46,0) -> 0 | N48: =+ROUND(N23+N28+N35+N40+N46,0) -> 282,121 | P48: =+ROUND(P23+P28+P35+P40+P46,0) -> 330,000 | Q48: =+ROUND(Q23+Q28+Q35+Q40+Q46,0) -> 282,121 | S48: сборен ред за А. ОБЩО ПРИХОДИ, ПОМОЩИ И ДАРЕНИЯ
B49: Б. РАЗХОДИ И ПРИДОБИВАНЕ НА НЕФИНАНСОВИ АКТИВИ | S49: Б. РАЗХОДИ И ПРИДОБИВАНЕ НА НЕФИНАНСОВИ АКТИВИ
B50: I. Плащания за текущи нелихвени разходи | S50: I. Плащания за текущи нелихвени разходи
B51: 1. Разходи за издръжка - нефинансови позиции | F51: =+IF($P$2=0,$P51,0) -> 684,705 | G51: =+IF($P$2=0,$Q51,0) -> 712,810 | I51: =+IF(OR($P$2=98,$P$2=42,$P$2=96,$P$2=97),$P51,0) -> 0 | J51: =+IF(OR($P$2=98,$P$2=42,$P$2=96,$P$2=97),$Q51,0) -> 0 | L51: =+IF($P$2=33,$Q51,0) -> 0 | N51: =+ROUND(+G51+J51+L51,0) -> 712,810 | P51: =+ROUND(OTCHET!E205-SUM(OTCHET!E217:E219)+OTCHET!E271+IF(+OR(OTCHET!$F$12="5500",OTCHET!$F$12="5600"),0,+OTCHET!E297),0) -> 684,705 | Q51: =+ROUND(OTCHET!F205-SUM(OTCHET!F217:F219)+OTCHET!F271+IF(+OR(OTCHET!$F$12="5500",OTCHET!$F$12="5600"),0,+OTCHET!F297),0) -> 712,810 | S51: разходни §§ 10-00 (без §§ 10-62, 10-63 и 10-69), 46-00 и § 00-98 (без НОИ и НЗОК)
B52: 2. Разходи за застраховане и други финансови услуги | F52: =+IF($P$2=0,$P52,0) -> 15,660 | G52: =+IF($P$2=0,$Q52,0) -> 10,354 | I52: =+IF(OR($P$2=98,$P$2=42,$P$2=96,$P$2=97),$P52,0) -> 0 | J52: =+IF(OR($P$2=98,$P$2=42,$P$2=96,$P$2=97),$Q52,0) -> 0 | L52: =+IF($P$2=33,$Q52,0) -> 0 | N52: =+ROUND(+G52+J52+L52,0) -> 10,354 | P52: =+ROUND(+SUM(OTCHET!E217:E219),0) -> 15,660 | Q52: =+ROUND(+SUM(OTCHET!F217:F219),0) -> 10,354 | S52: разходни §§ 10-62, 10-63 и 10-69
B53: 3. Платени данъци, такси и административни санкции | F53: =+IF($P$2=0,$P53,0) -> 14,198 | G53: =+IF($P$2=0,$Q53,0) -> 14,586 | I53: =+IF(OR($P$2=98,$P$2=42,$P$2=96,$P$2=97),$P53,0) -> 0 | J53: =+IF(OR($P$2=98,$P$2=42,$P$2=96,$P$2=97),$Q53,0) -> 0 | L53: =+IF($P$2=33,$Q53,0) -> 0 | N53: =+ROUND(+G53+J53+L53,0) -> 14,586 | P53: =+ROUND(OTCHET!E223,0) -> 14,198 | Q53: =+ROUND(OTCHET!F223,0) -> 14,586 | S53: разходен § 19-00
B54: 4. Разходи за възнаграждения на персонал | F54: =+IF($P$2=0,$P54,0) -> 2,807,402 | G54: =+IF($P$2=0,$Q54,0) -> 2,801,801 | I54: =+IF(OR($P$2=98,$P$2=42,$P$2=96,$P$2=97),$P54,0) -> 0 | J54: =+IF(OR($P$2=98,$P$2=42,$P$2=96,$P$2=97),$Q54,0) -> 0 | L54: =+IF($P$2=33,$Q54,0) -> 0 | N54: =+ROUND(+G54+J54+L54,0) -> 2,801,801 | P54: =+ROUND(OTCHET!E187+OTCHET!E190,0) -> 2,807,402 | Q54: =+ROUND(OTCHET!F187+OTCHET!F190,0) -> 2,801,801 | S54: разходни §§ 01-00 и 02-00
B55: 5. Разходи за осигурителни вноски | F55: =+IF($P$2=0,$P55,0) -> 755,656 | G55: =+IF($P$2=0,$Q55,0) -> 751,633 | I55: =+IF(OR($P$2=98,$P$2=42,$P$2=96,$P$2=97),$P55,0) -> 0 | J55: =+IF(OR($P$2=98,$P$2=42,$P$2=96,$P$2=97),$Q55,0) -> 0 | L55: =+IF($P$2=33,$Q55,0) -> 0 | N55: =+ROUND(+G55+J55+L55,0) -> 751,633 | P55: =+ROUND(OTCHET!E196+OTCHET!E204,0) -> 755,656 | Q55: =+ROUND(OTCHET!F196+OTCHET!F204,0) -> 751,633 | S55: разходни §§ 05-00 и 08-00
B56: Общо за група І. Плащания за текущи нелихвени разходи | F56: =+ROUND(+SUM(F51:F55),0) -> 4,277,621 | G56: =+ROUND(+SUM(G51:G55),0) -> 4,291,184 | I56: =+ROUND(+SUM(I51:I55),0) -> 0 | J56: =+ROUND(+SUM(J51:J55),0) -> 0 | L56: =+ROUND(+SUM(L51:L55),0) -> 0 | N56: =+ROUND(+SUM(N51:N55),0) -> 4,291,184 | P56: =+ROUND(+SUM(P51:P55),0) -> 4,277,621 | Q56: =+ROUND(+SUM(Q51:Q55),0) -> 4,291,184 | S56: сборен ред за група І. Плащания за текущи нелихвени разходи
B57: IІ. Плащания за придобиване на нефинансови дълготрайни активи | S57: IІ. Плащания за придобиване на нефинансови дълготрайни активи
B58: 1. Придобиване на земя | F58: =+IF($P$2=0,$P58,0) -> 0 | G58: =+IF($P$2=0,$Q58,0) -> 0 | I58: =+IF(OR($P$2=98,$P$2=42,$P$2=96,$P$2=97),$P58,0) -> 0 | J58: =+IF(OR($P$2=98,$P$2=42,$P$2=96,$P$2=97),$Q58,0) -> 0 | L58: =+IF($P$2=33,$Q58,0) -> 0 | N58: =+ROUND(+G58+J58+L58,0) -> 0 | P58: =+ROUND(OTCHET!E287,0) -> 0 | Q58: =+ROUND(OTCHET!F287,0) -> 0 | S58: разходен § 54-00
B59: 2. Придобиване на други дълготрайни материални активи | F59: =+IF($P$2=0,$P59,0) -> 244,231 | G59: =+IF($P$2=0,$Q59,0) -> 214,631 | I59: =+IF(OR($P$2=98,$P$2=42,$P$2=96,$P$2=97),$P59,0) -> 0 | J59: =+IF(OR($P$2=98,$P$2=42,$P$2=96,$P$2=97),$Q59,0) -> 0 | L59: =+IF($P$2=33,$Q59,0) -> 0 | N59: =+ROUND(+G59+J59+L59,0) -> 214,631 | P59: =+ROUND(+OTCHET!E275+OTCHET!E276,0) -> 244,231 | Q59: =+ROUND(+OTCHET!F275+OTCHET!F276,0) -> 214,631 | S59: разходни §§ 51-00 и 52-00
B60: 3. Придобиване на нематериални дълготрайни активи | F60: =+IF($P$2=0,$P60,0) -> 0 | G60: =+IF($P$2=0,$Q60,0) -> 0 | I60: =+IF(OR($P$2=98,$P$2=42,$P$2=96,$P$2=97),$P60,0) -> 0 | J60: =+IF(OR($P$2=98,$P$2=42,$P$2=96,$P$2=97),$Q60,0) -> 0 | L60: =+IF($P$2=33,$Q60,0) -> 0 | N60: =+ROUND(+G60+J60+L60,0) -> 0 | P60: =+ROUND(OTCHET!E284,0) -> 0 | Q60: =+ROUND(OTCHET!F284,0) -> 0 | S60: разходен § 53-00
B61: 4. Нето-прираст на държавния резерв и изкупуване на земеделска продукция | F61: =+IF($P$2=0,$P61,0) -> 0 | G61: =+IF($P$2=0,$Q61,0) -> 0 | I61: =+IF(OR($P$2=98,$P$2=42,$P$2=96,$P$2=97),$P61,0) -> 0 | J61: =+IF(OR($P$2=98,$P$2=42,$P$2=96,$P$2=97),$Q61,0) -> 0 | L61: =+IF($P$2=33,$Q61,0) -> 0 | N61: =+ROUND(+G61+J61+L61,0) -> 0 | P61: =+ROUND(OTCHET!E293,0) -> 0 | Q61: =+ROUND(OTCHET!F293,0) -> 0 | S61: разходен § 57-00 и приходeн § 40-71 (-)
B62: в т. ч. постъпления от реализация на държавния резерв (-) | F62: =+IF($P$2=0,$P62,0) -> 0 | G62: =+IF($P$2=0,$Q62,0) -> 0 | I62: =+IF(OR($P$2=98,$P$2=42,$P$2=96,$P$2=97),$P62,0) -> 0 | J62: =+IF(OR($P$2=98,$P$2=42,$P$2=96,$P$2=97),$Q62,0) -> 0 | L62: =+IF($P$2=33,$Q62,0) -> 0 | N62: =+ROUND(+G62+J62+L62,0) -> 0 | P62: =+ROUND(OTCHET!E296,0) -> 0 | Q62: =+ROUND(OTCHET!F296,0) -> 0 | S62: приходeн § 40-71 (-)
B63: Общо за група ІІ. Плащания за на нефинансови дълготрайни активи | F63: =+ROUND(+SUM(F58:F61),0) -> 244,231 | G63: =+ROUND(+SUM(G58:G61),0) -> 214,631 | I63: =+ROUND(+SUM(I58:I61),0) -> 0 | J63: =+ROUND(+SUM(J58:J61),0) -> 0 | L63: =+ROUND(+SUM(L58:L61),0) -> 0 | N63: =+ROUND(+SUM(N58:N61),0) -> 214,631 | P63: =+ROUND(+SUM(P58:P61),0) -> 244,231 | Q63: =+ROUND(+SUM(Q58:Q61),0) -> 214,631 | S63: сборен ред за група ІІ. Плащания за на нефинансови дълготрайни активи
B64: III. Плащания за разходи за лихви | S64: III. Плащания за разходи за лихви
B65: 1. Разходи за лихви по банкови заеми и държавни (общински) ценни книжа | F65: =+IF($P$2=0,$P65,0) -> 0 | G65: =+IF($P$2=0,$Q65,0) -> 0 | I65: =+IF(OR($P$2=98,$P$2=42,$P$2=96,$P$2=97),$P65,0) -> 0 | J65: =+IF(OR($P$2=98,$P$2=42,$P$2=96,$P$2=97),$Q65,0) -> 0 | L65: =+IF($P$2=33,$Q65,0) -> 0 | N65: =+ROUND(+G65+J65+L65,0) -> 0 | P65: =+ROUND(OTCHET!E227+OTCHET!E233+SUM(OTCHET!E236:E239),0) -> 0 | Q65: =+ROUND(OTCHET!F227+OTCHET!F233+SUM(OTCHET!F236:F239),0) -> 0 | S65: разходни §§ 21-00 ÷ 28-00
B66: 2. Разходи за лихви по други заеми и дългове | F66: =+IF($P$2=0,$P66,0) -> 0 | G66: =+IF($P$2=0,$Q66,0) -> 161 | I66: =+IF(OR($P$2=98,$P$2=42,$P$2=96,$P$2=97),$P66,0) -> 0 | J66: =+IF(OR($P$2=98,$P$2=42,$P$2=96,$P$2=97),$Q66,0) -> 0 | L66: =+IF($P$2=33,$Q66,0) -> 0 | N66: =+ROUND(+G66+J66+L66,0) -> 161 | P66: =+ROUND(OTCHET!E240,0) -> 0 | Q66: =+ROUND(OTCHET!F240,0) -> 161 | S66: разходен § 29-00
B67: Общо за група ІІІ. Плащания за разходи за лихви | F67: =+ROUND(+SUM(F65:F66),0) -> 0 | G67: =+ROUND(+SUM(G65:G66),0) -> 161 | I67: =+ROUND(+SUM(I65:I66),0) -> 0 | J67: =+ROUND(+SUM(J65:J66),0) -> 0 | L67: =+ROUND(+SUM(L65:L66),0) -> 0 | N67: =+ROUND(+SUM(N65:N66),0) -> 161 | P67: =+ROUND(+SUM(P65:P66),0) -> 0 | Q67: =+ROUND(+SUM(Q65:Q66),0) -> 161 | S67: сборен ред за група ІІІ. Плащания за разходи за лихви
B68: IV. Трансфери към домакинства | S68: IV. Трансфери към домакинства
B69: 1. Осигурителни плащания и други текущи трансфери | F69: =+IF($P$2=0,$P69,0) -> 0 | G69: =+IF($P$2=0,$Q69,0) -> 0 | I69: =+IF(OR($P$2=98,$P$2=42,$P$2=96,$P$2=97),$P69,0) -> 0 | J69: =+IF(OR($P$2=98,$P$2=42,$P$2=96,$P$2=97),$Q69,0) -> 0 | L69: =+IF($P$2=33,$Q69,0) -> 0 | N69: =+ROUND(+G69+J69+L69,0) -> 0 | P69: =+ROUND(+SUM(OTCHET!E255:E258)+IF(+OR(OTCHET!$F$12="5500",OTCHET!$F$12="5600"),+OTCHET!E297,0),0) -> 0 | Q69: =+ROUND(+SUM(OTCHET!F255:F258)+IF(+OR(OTCHET!$F$12="5500",OTCHET!$F$12="5600"),+OTCHET!F297,0),0) -> 0 | S69: разходни §§ 39-00 ÷ 42-00 (за НОИ и НЗОК - и разходен § 00-98)
B70: 2. Капиталови трансфери към домакинства | F70: =+IF($P$2=0,$P70,0) -> 0 | G70: =+IF($P$2=0,$Q70,0) -> 0 | I70: =+IF(OR($P$2=98,$P$2=42,$P$2=96,$P$2=97),$P70,0) -> 0 | J70: =+IF(OR($P$2=98,$P$2=42,$P$2=96,$P$2=97),$Q70,0) -> 0 | L70: =+IF($P$2=33,$Q70,0) -> 0 | N70: =+ROUND(+G70+J70+L70,0) -> 0 | P70: =+ROUND(+OTCHET!E292,0) -> 0 | Q70: =+ROUND(+OTCHET!F292,0) -> 0 | S70: разходен § 55-04
B71: Общо за група ІV. Трансфери към домакинства | F71: =+ROUND(+SUM(F69:F70),0) -> 0 | G71: =+ROUND(+SUM(G69:G70),0) -> 0 | I71: =+ROUND(+SUM(I69:I70),0) -> 0 | J71: =+ROUND(+SUM(J69:J70),0) -> 0 | L71: =+ROUND(+SUM(L69:L70),0) -> 0 | N71: =+ROUND(+SUM(N69:N70),0) -> 0 | P71: =+ROUND(+SUM(P69:P70),0) -> 0 | Q71: =+ROUND(+SUM(Q69:Q70),0) -> 0 | S71: сборен ред за група ІV. Трансфери към домакинства
B72: V. Субсидии и капиталови трансфери | S72: V. Субсидии и капиталови трансфери
B73: 1. Текущи субсидии и трансфери към други лица | F73: =+IF($P$2=0,$P73,0) -> 0 | G73: =+IF($P$2=0,$Q73,0) -> 0 | I73: =+IF(OR($P$2=98,$P$2=42,$P$2=96,$P$2=97),$P73,0) -> 0 | J73: =+IF(OR($P$2=98,$P$2=42,$P$2=96,$P$2=97),$Q73,0) -> 0 | L73: =+IF($P$2=33,$Q73,0) -> 0 | N73: =+ROUND(+G73+J73+L73,0) -> 0 | P73: =+ROUND(+OTCHET!E249+OTCHET!E265+OTCHET!E269+OTCHET!E270+OTCHET!E273,0) -> 0 | Q73: =+ROUND(+OTCHET!F249+OTCHET!F265+OTCHET!F269+OTCHET!F270+OTCHET!F273,0) -> 0 | S73: разходни §§ 33-00, 43-00, 44-00, 45-00 и 49-01
B74: 2. Капиталови трансфери към други лица | F74: =+IF($P$2=0,$P74,0) -> 0 | G74: =+IF($P$2=0,$Q74,0) -> 0 | I74: =+IF(OR($P$2=98,$P$2=42,$P$2=96,$P$2=97),$P74,0) -> 0 | J74: =+IF(OR($P$2=98,$P$2=42,$P$2=96,$P$2=97),$Q74,0) -> 0 | L74: =+IF($P$2=33,$Q74,0) -> 0 | N74: =+ROUND(+G74+J74+L74,0) -> 0 | P74: =+ROUND(OTCHET!E274+OTCHET!E288-OTCHET!E292,0) -> 0 | Q74: =+ROUND(OTCHET!F274+OTCHET!F288-OTCHET!F292,0) -> 0 | S74: разходни §§ 49-02 и 55-00 (без § 55-04)
B75: Общо за група V. Субсидии и капиталови трансфери | F75: =+ROUND(+SUM(F73:F74),0) -> 0 | G75: =+ROUND(+SUM(G73:G74),0) -> 0 | I75: =+ROUND(+SUM(I73:I74),0) -> 0 | J75: =+ROUND(+SUM(J73:J74),0) -> 0 | L75: =+ROUND(+SUM(L73:L74),0) -> 0 | N75: =+ROUND(+SUM(N73:N74),0) -> 0 | P75: =+ROUND(+SUM(P73:P74),0) -> 0 | Q75: =+ROUND(+SUM(Q73:Q74),0) -> 0 | S75: сборен ред за група V. Субсидии и капиталови трансфери
B77: Б. ОБЩО РАЗХОДИ И ПРИДОБИВАНЕ НА НЕФИНАНСОВИ АКТИВИ | F77: =+ROUND(F56+F63+F67+F71+F75,0) -> 4,521,852 | G77: =+ROUND(G56+G63+G67+G71+G75,0) -> 4,505,976 | I77: =+ROUND(I56+I63+I67+I71+I75,0) -> 0 | J77: =+ROUND(J56+J63+J67+J71+J75,0) -> 0 | L77: =+ROUND(L56+L63+L67+L71+L75,0) -> 0 | N77: =+ROUND(N56+N63+N67+N71+N75,0) -> 4,505,976 | P77: =+ROUND(P56+P63+P67+P71+P75,0) -> 4,521,852 | Q77: =+ROUND(Q56+Q63+Q67+Q71+Q75,0) -> 4,505,976 | S77: сборен за ред Б. ОБЩО РАЗХОДИ И ПРИДОБИВАНЕ НА НЕФИН. АКТИВИ
B78: В. ТРАНСФЕРИ И БЕЗЛИХВЕНИ ЗАЕМИ М/У БЮДЖ. ОРГАНИЗАЦИИ | S78: В. ТРАНСФЕРИ И БЕЗЛИХВЕНИ ЗАЕМИ М/У БЮДЖ. ОРГАНИЗАЦИИ
B79: 1. Трансфери между бюджетни организации (нето) | F79: =+IF($P$2=0,$P79,0) -> 4,191,852 | G79: =+IF($P$2=0,$Q79,0) -> 4,220,727 | I79: =+IF(OR($P$2=98,$P$2=42,$P$2=96,$P$2=97),$P79,0) -> 0 | J79: =+IF(OR($P$2=98,$P$2=42,$P$2=96,$P$2=97),$Q79,0) -> 0 | L79: =+IF($P$2=33,$Q79,0) -> 0 | N79: =+ROUND(+G79+J79+L79,0) -> 4,220,727 | P79: =+ROUND(OTCHET!E419,0) -> 4,191,852 | Q79: =+ROUND(OTCHET!F419,0) -> 4,220,727 | S79: трансферни параграфи §§ 30-00 ÷ 32-00 и 60-00 ÷ 69-00
B80: 2. Временни безлихвени заеми между бюджетни организации (нето) | F80: =+IF($P$2=0,$P80,0) -> 0 | G80: =+IF($P$2=0,$Q80,0) -> 0 | I80: =+IF(OR($P$2=98,$P$2=42,$P$2=96,$P$2=97),$P80,0) -> 0 | J80: =+IF(OR($P$2=98,$P$2=42,$P$2=96,$P$2=97),$Q80,0) -> 0 | L80: =+IF($P$2=33,$Q80,0) -> 0 | N80: =+ROUND(+G80+J80+L80,0) -> 0 | P80: =+ROUND(OTCHET!E429,0) -> 0 | Q80: =+ROUND(OTCHET!F429,0) -> 0 | S80: трансферни параграфи §§ 74-00 ÷ 78-00
B81: В. ОБЩО ТРАНСФЕРИ И ЗАЕМИ М/У БЮДЖЕТНИ ОРГАНИЗАЦИИ | F81: =+ROUND(F79+F80,0) -> 4,191,852 | G81: =+ROUND(G79+G80,0) -> 4,220,727 | I81: =+ROUND(I79+I80,0) -> 0 | J81: =+ROUND(J79+J80,0) -> 0 | L81: =+ROUND(L79+L80,0) -> 0 | N81: =+ROUND(N79+N80,0) -> 4,220,727 | P81: =+ROUND(P79+P80,0) -> 4,191,852 | Q81: =+ROUND(Q79+Q80,0) -> 4,220,727 | S81: сборен ред за В. ОБЩО ТРАНСФЕРИ И ЗАЕМИ М/У БЮДЖ. ОРГАНИЗАЦИИ
B82: =+IF(+SUM(F82:N82)=0,0,"Контрола: дефицит/излишък = финансиране с обратен знак (Г. + Д. = 0)") -> 0 | F82: =+ROUND(F83,0)+ROUND(F84,0) -> 0 | G82: =+ROUND(G83,0)+ROUND(G84,0) -> 0 | I82: =+ROUND(I83,0)+ROUND(I84,0) -> 0 | J82: =+ROUND(J83,0)+ROUND(J84,0) -> 0 | L82: =+ROUND(L83,0)+ROUND(L84,0) -> 0 | N82: =+ROUND(N83,0)+ROUND(N84,0) -> 0 | P82: =+ROUND(P83,0)+ROUND(P84,0) -> 0 | Q82: =+ROUND(Q83,0)+ROUND(Q84,0) -> 0
B83: Г. Бюджетно салдо: Дефицит (-) / излишък (+) = (А. - Б. + В. ) | F83: =+ROUND(F48,0)-ROUND(F77,0)+ROUND(F81,0) -> 0 | G83: =+ROUND(G48,0)-ROUND(G77,0)+ROUND(G81,0) -> (3,128) | I83: =+ROUND(I48,0)-ROUND(I77,0)+ROUND(I81,0) -> 0 | J83: =+ROUND(J48,0)-ROUND(J77,0)+ROUND(J81,0) -> 0 | L83: =+ROUND(L48,0)-ROUND(L77,0)+ROUND(L81,0) -> 0 | N83: =+ROUND(N48,0)-ROUND(N77,0)+ROUND(N81,0) -> (3,128) | P83: =+ROUND(P48,0)-ROUND(P77,0)+ROUND(P81,0) -> 0 | Q83: =+ROUND(Q48,0)-ROUND(Q77,0)+ROUND(Q81,0) -> (3,128) | S83: Г. Бюджетно салдо: Дефицит (-) / излишък (+) = (А. - Б. + В. )
B84: Д. Финансиране на бюджетното салдо (Е. + Ж. + З. - И.) | F84: =+ROUND(F101,0)+ROUND(F120,0)+ROUND(F127,0)-ROUND(F132,0) -> 0 | G84: =+ROUND(G101,0)+ROUND(G120,0)+ROUND(G127,0)-ROUND(G132,0) -> 3,128 | I84: =+ROUND(I101,0)+ROUND(I120,0)+ROUND(I127,0)-ROUND(I132,0) -> 0 | J84: =+ROUND(J101,0)+ROUND(J120,0)+ROUND(J127,0)-ROUND(J132,0) -> 0 | L84: =+ROUND(L101,0)+ROUND(L120,0)+ROUND(L127,0)-ROUND(L132,0) -> 0 | N84: =+ROUND(N101,0)+ROUND(N120,0)+ROUND(N127,0)-ROUND(N132,0) -> 3,128 | P84: =+ROUND(P101,0)+ROUND(P120,0)+ROUND(P127,0)-ROUND(P132,0) -> 0 | Q84: =+ROUND(Q101,0)+ROUND(Q120,0)+ROUND(Q127,0)-ROUND(Q132,0) -> 3,128 | S84: Д. Финансиране на бюджетното салдо (Е. + Ж. + З. - И.)
B85: Е. ОПЕРАЦИИ С ФИНАНСОВИ АКТИВИ | S85: Е. ОПЕРАЦИИ С ФИНАНСОВИ АКТИВИ
B86: I. Придобиване и реализиране на дялове, акции и участия | S86: I. Придобиване и реализиране на дялове, акции и участия
B87: 1. Придобиване на дялове, акции и участия в предприятия (-) | F87: =+IF($P$2=0,$P87,0) -> 0 | G87: =+IF($P$2=0,$Q87,0) -> 0 | I87: =+IF(OR($P$2=98,$P$2=42,$P$2=96,$P$2=97),$P87,0) -> 0 | J87: =+IF(OR($P$2=98,$P$2=42,$P$2=96,$P$2=97),$Q87,0) -> 0 | L87: =+IF($P$2=33,$Q87,0) -> 0 | N87: =+ROUND(+G87+J87+L87,0) -> 0 | P87: =+ROUND(+OTCHET!E462+OTCHET!E463,0) -> 0 | Q87: =+ROUND(+OTCHET!F462+OTCHET!F463,0) -> 0 | S87: финансиращи §§ 70-01 и 70-03
B88: 2. Постъпления от реализация и приватизация на дялове, акциии и участия | F88: =+IF($P$2=0,$P88,0) -> 0 | G88: =+IF($P$2=0,$Q88,0) -> 0 | I88: =+IF(OR($P$2=98,$P$2=42,$P$2=96,$P$2=97),$P88,0) -> 0 | J88: =+IF(OR($P$2=98,$P$2=42,$P$2=96,$P$2=97),$Q88,0) -> 0 | L88: =+IF($P$2=33,$Q88,0) -> 0 | N88: =+ROUND(+G88+J88+L88,0) -> 0 | P88: =+ROUND(OTCHET!E464+OTCHET!E535,0) -> 0 | Q88: =+ROUND(OTCHET!F464+OTCHET!F535,0) -> 0 | S88: финансиращи §§ 70-10 и 90-00
B89: Общо за група І. Придобиване и реализиране на дялове, акции и участия | F89: =+ROUND(+SUM(F87:F88),0) -> 0 | G89: =+ROUND(+SUM(G87:G88),0) -> 0 | I89: =+ROUND(+SUM(I87:I88),0) -> 0 | J89: =+ROUND(+SUM(J87:J88),0) -> 0 | L89: =+ROUND(+SUM(L87:L88),0) -> 0 | N89: =+ROUND(+SUM(N87:N88),0) -> 0 | P89: =+ROUND(+SUM(P87:P88),0) -> 0 | Q89: =+ROUND(+SUM(Q87:Q88),0) -> 0 | S89: Сборен ред за група І. Придобиване и реализиране на дялове, акции и участия
B90: IІ. Предоставени заеми, възмездна фин. помощ и активирани гаранции | S90: IІ. Предоставени заеми, възмездна фин. помощ и активирани гаранции
B91: 1. Предоставени заеми и възмездна финансова помощ (-) | F91: =+IF($P$2=0,$P91,0) -> 0 | G91: =+IF($P$2=0,$Q91,0) -> 0 | I91: =+IF(OR($P$2=98,$P$2=42,$P$2=96,$P$2=97),$P91,0) -> 0 | J91: =+IF(OR($P$2=98,$P$2=42,$P$2=96,$P$2=97),$Q91,0) -> 0 | L91: =+IF($P$2=33,$Q91,0) -> 0 | N91: =+ROUND(+G91+J91+L91,0) -> 0 | P91: =+ROUND(OTCHET!E466+OTCHET!E469+OTCHET!E479,0) -> 0 | Q91: =+ROUND(OTCHET!F466+OTCHET!F469+OTCHET!F479,0) -> 0 | S91: финансиращи §§ 71-01, 72-01 и 79-01
B92: 2. Получени погашения по предоставени заеми и възмездна фин. помощ (+) | F92: =+IF($P$2=0,$P92,0) -> 0 | G92: =+IF($P$2=0,$Q92,0) -> 0 | I92: =+IF(OR($P$2=98,$P$2=42,$P$2=96,$P$2=97),$P92,0) -> 0 | J92: =+IF(OR($P$2=98,$P$2=42,$P$2=96,$P$2=97),$Q92,0) -> 0 | L92: =+IF($P$2=33,$Q92,0) -> 0 | N92: =+ROUND(+G92+J92+L92,0) -> 0 | P92: =+ROUND(OTCHET!E467+OTCHET!E470+OTCHET!E480+OTCHET!E502+IF(+OTCHET!E494>0,+OTCHET!E494,0),0) -> 0 | Q92: =+ROUND(OTCHET!F467+OTCHET!F470+OTCHET!F480+OTCHET!F502+IF(+OTCHET!F494>0,+OTCHET!F494,0),0) -> 0 | S92: финансиращи §§ 71-02, 72-02, 79-02 и 82-00 и § 80-80 (ако е "плюс")
B93: 3. Плащания по активирани гаранции - главници по гарантирани заеми | F93: =+IF($P$2=0,$P93,0) -> 0 | G93: =+IF($P$2=0,$Q93,0) -> 0 | I93: =+IF(OR($P$2=98,$P$2=42,$P$2=96,$P$2=97),$P93,0) -> 0 | J93: =+IF(OR($P$2=98,$P$2=42,$P$2=96,$P$2=97),$Q93,0) -> 0 | L93: =+IF($P$2=33,$Q93,0) -> 0 | N93: =+ROUND(+G93+J93+L93,0) -> 0 | P93: =+ROUND(+SUM(OTCHET!E472:E474),0) -> 0 | Q93: =+ROUND(+SUM(OTCHET!F472:F474),0) -> 0 | S93: финансиращи §§ 73-20, 73-69 и 73-70
B94: 4. Възстановени суми по активирани гаранции - главници | F94: =+IF($P$2=0,$P94,0) -> 0 | G94: =+IF($P$2=0,$Q94,0) -> 0 | I94: =+IF(OR($P$2=98,$P$2=42,$P$2=96,$P$2=97),$P94,0) -> 0 | J94: =+IF(OR($P$2=98,$P$2=42,$P$2=96,$P$2=97),$Q94,0) -> 0 | L94: =+IF($P$2=33,$Q94,0) -> 0 | N94: =+ROUND(+G94+J94+L94,0) -> 0 | P94: =+ROUND(+SUM(OTCHET!E475:E476),0) -> 0 | Q94: =+ROUND(+SUM(OTCHET!F475:F476),0) -> 0 | S94: финансиращи §§ 73-91 и 73-92
B95: Общо за група ІІ. Предоставени заеми, възмездна фин. помощ и гаранции | F95: =+ROUND(+SUM(F91:F94),0) -> 0 | G95: =+ROUND(+SUM(G91:G94),0) -> 0 | I95: =+ROUND(+SUM(I91:I94),0) -> 0 | J95: =+ROUND(+SUM(J91:J94),0) -> 0 | L95: =+ROUND(+SUM(L91:L94),0) -> 0 | N95: =+ROUND(+SUM(N91:N94),0) -> 0 | P95: =+ROUND(+SUM(P91:P94),0) -> 0 | Q95: =+ROUND(+SUM(Q91:Q94),0) -> 0 | S95: Сборен ред за група ІІ. Предоставени заеми, възмездна фин. помощ и гаранции
B96: IІI. Други операции с финансови активи | S96: IІI. Други операции с финансови активи
B97: 1. Нето-операции с други ценни книжа и фин. активи (кеш-мениджмънт) | F97: =+IF($P$2=0,$P97,0) -> 0 | G97: =+IF($P$2=0,$Q97,0) -> 0 | I97: =+IF(OR($P$2=98,$P$2=42,$P$2=96,$P$2=97),$P97,0) -> 0 | J97: =+IF(OR($P$2=98,$P$2=42,$P$2=96,$P$2=97),$Q97,0) -> 0 | L97: =+IF($P$2=33,$Q97,0) -> 0 | N97: =+ROUND(+G97+J97+L97,0) -> 0 | P97: =+ROUND(OTCHET!E536+OTCHET!E541,0) -> 0 | Q97: =+ROUND(OTCHET!F536+OTCHET!F541,0) -> 0 | S97: финансиращи §§ 91-01 и 92-00
B98: 2. Други операции с финансови активи (нето) | F98: =+IF($P$2=0,$P98,0) -> 0 | G98: =+IF($P$2=0,$Q98,0) -> 3,128 | I98: =+IF(OR($P$2=98,$P$2=42,$P$2=96,$P$2=97),$P98,0) -> 0 | J98: =+IF(OR($P$2=98,$P$2=42,$P$2=96,$P$2=97),$Q98,0) -> 0 | L98: =+IF($P$2=33,$Q98,0) -> 0 | N98: =+ROUND(+G98+J98+L98,0) -> 3,128 | P98: =+ROUND(+OTCHET!E477+OTCHET!E558+OTCHET!E560,0) -> 0 | Q98: =+ROUND(+OTCHET!F477+OTCHET!F558+OTCHET!F560,0) -> 3,128 | S98: финансиращи §§ 73-93, 93-36, 93-38
B99: Общо за група ІІІ. Други операции с финансови активи | F99: =+ROUND(+SUM(F97:F98),0) -> 0 | G99: =+ROUND(+SUM(G97:G98),0) -> 3,128 | I99: =+ROUND(+SUM(I97:I98),0) -> 0 | J99: =+ROUND(+SUM(J97:J98),0) -> 0 | L99: =+ROUND(+SUM(L97:L98),0) -> 0 | N99: =+ROUND(+SUM(N97:N98),0) -> 3,128 | P99: =+ROUND(+SUM(P97:P98),0) -> 0 | Q99: =+ROUND(+SUM(Q97:Q98),0) -> 3,128 | S99: Сборен ред за група ІІІ. Други операции с финансови активи
B101: Е. ОБЩО ОПЕРАЦИИ С ФИНАНСОВИ АКТИВИ | F101: =+ROUND(F89+F95+F99,0) -> 0 | G101: =+ROUND(G89+G95+G99,0) -> 3,128 | I101: =+ROUND(I89+I95+I99,0) -> 0 | J101: =+ROUND(J89+J95+J99,0) -> 0 | L101: =+ROUND(L89+L95+L99,0) -> 0 | N101: =+ROUND(N89+N95+N99,0) -> 3,128 | P101: =+ROUND(P89+P95+P99,0) -> 0 | Q101: =+ROUND(Q89+Q95+Q99,0) -> 3,128 | S101: Сборен ред за Е. ОБЩО ОПЕРАЦИИ С ФИНАНСОВИ АКТИВИ
B102: Ж. ОПЕРАЦИИ С ФИНАНСОВИ ПАСИВИ | S102: Ж. ОПЕРАЦИИ С ФИНАНСОВИ ПАСИВИ
B103: I. Емитирани държавни (общински) ценни книжа | S103: I. Емитирани държавни (общински) ценни книжа
B104: 1. Постъпления от емисии на държавни (общински) ценни книжа (+) | F104: =+IF($P$2=0,$P104,0) -> 0 | G104: =+IF($P$2=0,$Q104,0) -> 0 | I104: =+IF(OR($P$2=98,$P$2=42,$P$2=96,$P$2=97),$P104,0) -> 0 | J104: =+IF(OR($P$2=98,$P$2=42,$P$2=96,$P$2=97),$Q104,0) -> 0 | L104: =+IF($P$2=33,$Q104,0) -> 0 | N104: =+ROUND(+G104+J104+L104,0) -> 0 | P104: =+ROUND(OTCHET!E498+OTCHET!E499+OTCHET!E512,0) -> 0 | Q104: =+ROUND(OTCHET!F498+OTCHET!F499+OTCHET!F512,0) -> 0 | S104: финансиращи §§ 81-11, 81-12 и 85-00
B105: 2. Погашения по емисии на държавни (общински) ценни книжа) (-) | F105: =+IF($P$2=0,$P105,0) -> 0 | G105: =+IF($P$2=0,$Q105,0) -> 0 | I105: =+IF(OR($P$2=98,$P$2=42,$P$2=96,$P$2=97),$P105,0) -> 0 | J105: =+IF(OR($P$2=98,$P$2=42,$P$2=96,$P$2=97),$Q105,0) -> 0 | L105: =+IF($P$2=33,$Q105,0) -> 0 | N105: =+ROUND(+G105+J105+L105,0) -> 0 | P105: =+ROUND(OTCHET!E500+OTCHET!E501+OTCHET!E516,0) -> 0 | Q105: =+ROUND(OTCHET!F500+OTCHET!F501+OTCHET!F516,0) -> 0 | S105: финансиращи §§ 81-21, 81-22 и 86-00
B106: Общо за група І. Емитирани държавни (общински) ценни книжа | F106: =+ROUND(+SUM(F104:F105),0) -> 0 | G106: =+ROUND(+SUM(G104:G105),0) -> 0 | I106: =+ROUND(+SUM(I104:I105),0) -> 0 | J106: =+ROUND(+SUM(J104:J105),0) -> 0 | L106: =+ROUND(+SUM(L104:L105),0) -> 0 | N106: =+ROUND(+SUM(N104:N105),0) -> 0 | P106: =+ROUND(+SUM(P104:P105),0) -> 0 | Q106: =+ROUND(+SUM(Q104:Q105),0) -> 0 | S106: Сборен ред за група І. Емитирани държавни (общински) ценни книжа
B107: IІ. Заеми от банки и други лица | S107: IІ. Заеми от банки и други лица
B108: 1. Получени банкови и други заеми (+) | F108: =+IF($P$2=0,$P108,0) -> 0 | G108: =+IF($P$2=0,$Q108,0) -> 0 | I108: =+IF(OR($P$2=98,$P$2=42,$P$2=96,$P$2=97),$P108,0) -> 0 | J108: =+IF(OR($P$2=98,$P$2=42,$P$2=96,$P$2=97),$Q108,0) -> 0 | L108: =+IF($P$2=33,$Q108,0) -> 0 | N108: =+ROUND(+G108+J108+L108,0) -> 0 | P108: =+ROUND(OTCHET!E482+OTCHET!E483+OTCHET!E486+OTCHET!E487+OTCHET!E490+OTCHET!E491+OTCHET!E495+OTCHET!E504+OTCHET!E505+OTCHET!E508+OTCHET!E509,0) -> 0 | Q108: =+ROUND(OTCHET!F482+OTCHET!F483+OTCHET!F486+OTCHET!F487+OTCHET!F490+OTCHET!F491+OTCHET!F495+OTCHET!F504+OTCHET!F505+OTCHET!F508+OTCHET!F509,0) -> 0 | S108: финансиращи §§ 80-11, 80-12, 80-31, 80-32, 80-51, 80-52, 80-97, 83-11, 83-12, 83-71, 83-72
B109: 2. Погашения по получени банкови и други заеми (-) | F109: =+IF($P$2=0,$P109,0) -> 0 | G109: =+IF($P$2=0,$Q109,0) -> 0 | I109: =+IF(OR($P$2=98,$P$2=42,$P$2=96,$P$2=97),$P109,0) -> 0 | J109: =+IF(OR($P$2=98,$P$2=42,$P$2=96,$P$2=97),$Q109,0) -> 0 | L109: =+IF($P$2=33,$Q109,0) -> 0 | N109: =+ROUND(+G109+J109+L109,0) -> 0 | P109: =+ROUND(OTCHET!E484+OTCHET!E485+OTCHET!E488+OTCHET!E489+OTCHET!E492+OTCHET!E493+OTCHET!E496+OTCHET!E506+OTCHET!E507+OTCHET!E510+OTCHET!E511+IF(+OTCHET!E494<0,+OTCHET!E494,0),0) -> 0 | Q109: =+ROUND(OTCHET!F484+OTCHET!F485+OTCHET!F488+OTCHET!F489+OTCHET!F492+OTCHET!F493+OTCHET!F496+OTCHET!F506+OTCHET!F507+OTCHET!F510+OTCHET!F511+IF(+OTCHET!F494<0,+OTCHET!F494,0),0) -> 0 | S109: §§ 80-17, 80-18, 80-37, 80-38, 80-57, 80-58, 80-98, 83-21, 83-22, 83-81, 83-82 и § 80-80 (ако е "минус")
B110: Общо за група ІІ. Заеми от банки и други лица | F110: =+ROUND(+SUM(F108:F109),0) -> 0 | G110: =+ROUND(+SUM(G108:G109),0) -> 0 | I110: =+ROUND(+SUM(I108:I109),0) -> 0 | J110: =+ROUND(+SUM(J108:J109),0) -> 0 | L110: =+ROUND(+SUM(L108:L109),0) -> 0 | N110: =+ROUND(+SUM(N108:N109),0) -> 0 | P110: =+ROUND(+SUM(P108:P109),0) -> 0 | Q110: =+ROUND(+SUM(Q108:Q109),0) -> 0 | S110: Сборен ред за група ІІ. Заеми от банки и други лица
B111: IІI. Финансиране чрез финансов лизинг и търговски кредит | S111: IІI. Финансиране чрез финансов лизинг и търговски кредит
B112: 1. Получено финансиране по финансов лизинг и търговски кредит (+) | F112: =+IF($P$2=0,$P112,0) -> 0 | G112: =+IF($P$2=0,$Q112,0) -> 0 | I112: =+IF(OR($P$2=98,$P$2=42,$P$2=96,$P$2=97),$P112,0) -> 0 | J112: =+IF(OR($P$2=98,$P$2=42,$P$2=96,$P$2=97),$Q112,0) -> 0 | L112: =+IF($P$2=33,$Q112,0) -> 0 | N112: =+ROUND(+G112+J112+L112,0) -> 0 | P112: =+ROUND(OTCHET!E547,0) -> 0 | Q112: =+ROUND(OTCHET!F547,0) -> 0 | S112: финансиращ § 93-17
B113: 2. Погашения по финансов лизинг и търговски кредит (-) | F113: =+IF($P$2=0,$P113,0) -> 0 | G113: =+IF($P$2=0,$Q113,0) -> 0 | I113: =+IF(OR($P$2=98,$P$2=42,$P$2=96,$P$2=97),$P113,0) -> 0 | J113: =+IF(OR($P$2=98,$P$2=42,$P$2=96,$P$2=97),$Q113,0) -> 0 | L113: =+IF($P$2=33,$Q113,0) -> 0 | N113: =+ROUND(+G113+J113+L113,0) -> 0 | P113: =+ROUND(OTCHET!E548,0) -> 0 | Q113: =+ROUND(OTCHET!F548,0) -> 0 | S113: финансиращ § 93-18
B114: Общо за група ІІІ. Финансиране чрез фин. лизинг и търговски кредит | F114: =+ROUND(+SUM(F112:F113),0) -> 0 | G114: =+ROUND(+SUM(G112:G113),0) -> 0 | I114: =+ROUND(+SUM(I112:I113),0) -> 0 | J114: =+ROUND(+SUM(J112:J113),0) -> 0 | L114: =+ROUND(+SUM(L112:L113),0) -> 0 | N114: =+ROUND(+SUM(N112:N113),0) -> 0 | P114: =+ROUND(+SUM(P112:P113),0) -> 0 | Q114: =+ROUND(+SUM(Q112:Q113),0) -> 0 | S114: Сборен ред за група ІІІ. Финансиране чрез фин. лизинг и търговски кредит
B115: ІV. Други операции с финансови пасиви | S115: ІV. Други операции с финансови пасиви
B116: 1. Операции с чужди средства (нето) | F116: =+IF($P$2=0,$P116,0) -> 0 | G116: =+IF($P$2=0,$Q116,0) -> 0 | I116: =+IF(OR($P$2=98,$P$2=42,$P$2=96,$P$2=97),$P116,0) -> 0 | J116: =+IF(OR($P$2=98,$P$2=42,$P$2=96,$P$2=97),$Q116,0) -> 0 | L116: =+IF($P$2=33,$Q116,0) -> 0 | N116: =+ROUND(+G116+J116+L116,0) -> 0 | P116: =+ROUND(OTCHET!E545+OTCHET!E546+OTCHET!E562+OTCHET!E563,0) -> 0 | Q116: =+ROUND(OTCHET!F545+OTCHET!F546+OTCHET!F562+OTCHET!F563,0) -> 0 | S116: финансиращи §§ 93-01, 93-10, 93-55 и 93-56
B117: 2. Друго финансиране - операции с пасиви (нето) | F117: =+IF($P$2=0,$P117,0) -> 0 | G117: =+IF($P$2=0,$Q117,0) -> 0 | I117: =+IF(OR($P$2=98,$P$2=42,$P$2=96,$P$2=97),$P117,0) -> 0 | J117: =+IF(OR($P$2=98,$P$2=42,$P$2=96,$P$2=97),$Q117,0) -> 0 | L117: =+IF($P$2=33,$Q117,0) -> 0 | N117: =+ROUND(+G117+J117+L117,0) -> 0 | P117: =+ROUND(OTCHET!E559+OTCHET!E561,0) -> 0 | Q117: =+ROUND(OTCHET!F559+OTCHET!F561,0) -> 0 | S117: финансиращи §§ 93-37 и 93-39
B118: Общо за група ІV. Други операции с финансови пасиви | F118: =+ROUND(+SUM(F116:F117),0) -> 0 | G118: =+ROUND(+SUM(G116:G117),0) -> 0 | I118: =+ROUND(+SUM(I116:I117),0) -> 0 | J118: =+ROUND(+SUM(J116:J117),0) -> 0 | L118: =+ROUND(+SUM(L116:L117),0) -> 0 | N118: =+ROUND(+SUM(N116:N117),0) -> 0 | P118: =+ROUND(+SUM(P116:P117),0) -> 0 | Q118: =+ROUND(+SUM(Q116:Q117),0) -> 0 | S118: Сборен ред за група ІV. Други операции с финансови пасиви
B120: Ж. ОБЩО ОПЕРАЦИИ С ФИНАНСОВИ ПАСИВИ | F120: =+ROUND(F106+F110+F114+F118,0) -> 0 | G120: =+ROUND(G106+G110+G114+G118,0) -> 0 | I120: =+ROUND(I106+I110+I114+I118,0) -> 0 | J120: =+ROUND(J106+J110+J114+J118,0) -> 0 | L120: =+ROUND(L106+L110+L114+L118,0) -> 0 | N120: =+ROUND(N106+N110+N114+N118,0) -> 0 | P120: =+ROUND(P106+P110+P114+P118,0) -> 0 | Q120: =+ROUND(Q106+Q110+Q114+Q118,0) -> 0 | S120: Сборен ред за Ж. ОБЩО ОПЕРАЦИИ С ФИНАНСОВИ ПАСИВИ
B121: З. НЕТО-РАЗЧЕТИ И ОПЕРАЦИИ | S121: З. НЕТО-РАЗЧЕТИ И ОПЕРАЦИИ
B122: 1. Нето-операции за сметка на средства от Европейския съюз | F122: =+IF($P$2=0,$P122,0) -> 0 | G122: =+IF($P$2=0,$Q122,0) -> 0 | I122: =+IF(OR($P$2=98,$P$2=42,$P$2=96,$P$2=97),$P122,0) -> 0 | J122: =+IF(OR($P$2=98,$P$2=42,$P$2=96,$P$2=97),$Q122,0) -> 0 | L122: =+IF($P$2=33,$Q122,0) -> 0 | N122: =+ROUND(+G122+J122+L122,0) -> 0 | P122: =+ROUND(+SUM(OTCHET!E549:E556),0) -> 0 | Q122: =+ROUND(+SUM(OTCHET!F549:F556),0) -> 0 | S122: финансиращи §§ 93-21 ÷ 93-28
B123: 2. Операции за сметка на други бюджети, сметки и фондове | F123: =+IF($P$2=0,$P123,0) -> 0 | G123: =+IF($P$2=0,$Q123,0) -> 0 | I123: =+IF(OR($P$2=98,$P$2=42,$P$2=96,$P$2=97),$P123,0) -> 0 | J123: =+IF(OR($P$2=98,$P$2=42,$P$2=96,$P$2=97),$Q123,0) -> 0 | L123: =+IF($P$2=33,$Q123,0) -> 0 | N123: =+ROUND(+G123+J123+L123,0) -> 0 | P123: =+ROUND(OTCHET!E524,0) -> 0 | Q123: =+ROUND(OTCHET!F524,0) -> 0 | S123: финансиращ § 88-00
B124: 3. Други нето-разчети и операции на бюджетни организации | F124: =+IF($P$2=0,$P124,0) -> 0 | G124: =+IF($P$2=0,$Q124,0) -> 0 | I124: =+IF(OR($P$2=98,$P$2=42,$P$2=96,$P$2=97),$P124,0) -> 0 | J124: =+IF(OR($P$2=98,$P$2=42,$P$2=96,$P$2=97),$Q124,0) -> 0 | L124: =+IF($P$2=33,$Q124,0) -> 0 | N124: =+ROUND(+G124+J124+L124,0) -> 0 | P124: =+ROUND(+OTCHET!E521+OTCHET!E531+OTCHET!E557+OTCHET!E564+OTCHET!E565+OTCHET!E579+OTCHET!E591+IF(AND(OTCHET!$F$12="9900",+OTCHET!$E$15=0),+OTCHET!E586,0),0) -> 0 | Q124: =+ROUND(+OTCHET!F521+OTCHET!F531+OTCHET!F557+OTCHET!F564+OTCHET!F565+OTCHET!F579+OTCHET!F591+IF(AND(OTCHET!$F$12="9900",+OTCHET!$E$15=0,+(OTCHET!F589+OTCHET!F590)>=0,+(OTCHET!F587+OTCHET!F588)<=0),+OTCHET!F586,0),0) -> 0 | S124: финансиращи §§ 87-00, 89-00, 93-30, 93-95, 93-96, 95-13 и 98-00 (за ЦБ - и § 96-01 и 96-02)
B125: в т.ч. изменение на средства по сметки, включени в единната сметка | F125: =+IF($P$2=0,$P125,0) -> 0 | G125: =+IF($P$2=0,$Q125,0) -> 0 | N125: =+ROUND(+G125+J125+L125,0) -> 0 | P125: =+ROUND(+IF(AND(OTCHET!$F$12="9900",+OTCHET!$E$15=0,+(OTCHET!E589+OTCHET!E590)>0,+(OTCHET!E587+OTCHET!E588)<0),+OTCHET!E586,0),0) -> 0 | Q125: =+ROUND(+IF(AND(OTCHET!$F$12="9900",+OTCHET!$E$15=0,+(OTCHET!F589+OTCHET!F590)>=0,+(OTCHET!F587+OTCHET!F588)<=0),+OTCHET!F586,0),0) -> 0 | S125: финансиращ § 96-00
B126: 4. Разлики от закръгления в хил. лв. (+/-) | N126: =+ROUND(+G126+J126+L126,0) -> 0 | S126: прилага се само за отчета в хил. лв.
B127: З. ОБЩО НЕТО-РАЗЧЕТИ И ДРУГИ ОПЕРАЦИИ | F127: =+ROUND(+F122+F123+F124+F126,0) -> 0 | G127: =+ROUND(+G122+G123+G124+G126,0) -> 0 | I127: =+ROUND(+I122+I123+I124+I126,0) -> 0 | J127: =+ROUND(+J122+J123+J124+J126,0) -> 0 | L127: =+ROUND(+L122+L123+L124+L126,0) -> 0 | N127: =+ROUND(+N122+N123+N124+N126,0) -> 0 | P127: =+ROUND(+P122+P123+P124+P126,0) -> 0 | Q127: =+ROUND(+Q122+Q123+Q124+Q126,0) -> 0 | S127: Сборен ред за З. ОБЩО НЕТО-РАЗЧЕТИ И ДРУГИ НЕТНИ ПОЗИЦИИ
B128: И. ИЗМЕНЕНИЕ НА ПАРИЧНИТЕ СРЕДСТВА | S128: И. ИЗМЕНЕНИЕ НА ПАРИЧНИТЕ СРЕДСТВА
B129: 1. Наличности на парични средства в началото на отчетния период | F129: =+IF($P$2=0,$P129,0) -> 0 | G129: =+IF($P$2=0,$Q129,0) -> 0 | I129: =+IF(OR($P$2=98,$P$2=42,$P$2=96,$P$2=97),$P129,0) -> 0 | J129: =+IF(OR($P$2=98,$P$2=42,$P$2=96,$P$2=97),$Q129,0) -> 0 | L129: =+IF($P$2=33,$Q129,0) -> 0 | N129: =+ROUND(+G129+J129+L129,0) -> 0 | P129: =+ROUND(+SUM(OTCHET!E567:E572)+SUM(OTCHET!E581:E582)+IF(AND(OTCHET!$F$12="9900",+OTCHET!$E$15=0),0,SUM(OTCHET!E587:E588)),0) -> 0 | Q129: =+ROUND(+SUM(OTCHET!F567:F572)+SUM(OTCHET!F581:F582)+IF(AND(OTCHET!$F$12="9900",+OTCHET!$E$15=0),0,SUM(OTCHET!F587:F588)),0) -> 0 | S129: финансиращи §§ 95-01 ÷ 95-06, 95-21, 95-22, 96-01 и 96-03 (за ЦБ - без § 96-01 и 96-03)
B130: 2. Преоценка на наличности в чудестранна валута в края на отчетния период | F130: =+IF($P$2=0,$P130,0) -> 0 | G130: =+IF($P$2=0,$Q130,0) -> 0 | I130: =+IF(OR($P$2=98,$P$2=42,$P$2=96,$P$2=97),$P130,0) -> 0 | J130: =+IF(OR($P$2=98,$P$2=42,$P$2=96,$P$2=97),$Q130,0) -> 0 | L130: =+IF($P$2=33,$Q130,0) -> 0 | N130: =+ROUND(+G130+J130+L130,0) -> 0 | P130: =+ROUND(OTCHET!E580+OTCHET!E585,0) -> 0 | Q130: =+ROUND(OTCHET!F580+OTCHET!F585,0) -> 0 | S130: финансиращи §§ 95-14 и 95-49
B131: 3. Наличности на парични средства в края на отчетния период | F131: =+IF($P$2=0,$P131,0) -> 0 | G131: =+IF($P$2=0,$Q131,0) -> 0 | I131: =+IF(OR($P$2=98,$P$2=42,$P$2=96,$P$2=97),$P131,0) -> 0 | J131: =+IF(OR($P$2=98,$P$2=42,$P$2=96,$P$2=97),$Q131,0) -> 0 | L131: =+IF($P$2=33,$Q131,0) -> 0 | N131: =+ROUND(+G131+J131+L131,0) -> 0 | P131: =+ROUND(-SUM(OTCHET!E573:E578)-SUM(OTCHET!E583:E584)-IF(AND(OTCHET!$F$12="9900",+OTCHET!$E$15=0),0,SUM(OTCHET!E589:E590)),0) -> 0 | Q131: =+ROUND(-SUM(OTCHET!F573:F578)-SUM(OTCHET!F583:F584)-IF(AND(OTCHET!$F$12="9900",+OTCHET!$E$15=0),0,SUM(OTCHET!F589:F590)),0) -> 0 | S131: (-) §§ 95-07 ÷ 95-12, 95-28, 95-29, 96-07 и 96-09 (за ЦБ - § без 96-07 и 96-09)
B132: И. ИЗМЕНЕНИЕ НА ПАРИЧНИТЕ СРЕДСТВА (3. - 1. - 2.) | F132: =+ROUND(+F131-F129-F130,0) -> 0 | G132: =+ROUND(+G131-G129-G130,0) -> 0 | I132: =+ROUND(+I131-I129-I130,0) -> 0 | J132: =+ROUND(+J131-J129-J130,0) -> 0 | L132: =+ROUND(+L131-L129-L130,0) -> 0 | N132: =+ROUND(+N131-N129-N130,0) -> 0 | P132: =+ROUND(+P131-P129-P130,0) -> 0 | Q132: =+ROUND(+Q131-Q129-Q130,0) -> 0 | S132: Сборен ред за И. ИЗМЕНЕНИЕ НА ПАРИЧНИТЕ СРЕДСТВА (3. - 1. - 2.)
B133: =+IF(+SUM(F133:N133)=0,0,"Контрола: дефицит/излишък = финансиране с обратен знак (Г. + Д. = 0)") -> 0 | F133: =+ROUND(F83,0)+ROUND(F84,0) -> 0 | G133: =+ROUND(G83,0)+ROUND(G84,0) -> 0 | I133: =+ROUND(I83,0)+ROUND(I84,0) -> 0 | J133: =+ROUND(J83,0)+ROUND(J84,0) -> 0 | L133: =+ROUND(L83,0)+ROUND(L84,0) -> 0 | N133: =+ROUND(N83,0)+ROUND(N84,0) -> 0 | P133: =+ROUND(P83,0)+ROUND(P84,0) -> 0 | Q133: =+ROUND(Q83,0)+ROUND(Q84,0) -> 0
B134: Дата: | C134: =+OTCHET!B605 -> 00.00.0000 г. | D134: ГЛ. СЧЕТОВОДИТЕЛ: | I134: РЪКОВОДИТЕЛ:
B137: КОНТРОЛА - РАВНЕНИЕ МЕЖДУ БЮДЖЕТНО САЛДО И ФИНАНСИРАНЕ | F137: =+IF(+ROUND(F140,2)=0,"O K","НЕРАВНЕНИЕ!") -> O K | G137: =+IF(+ROUND(G140,2)=0,"O K","НЕРАВНЕНИЕ!") -> O K | I137: =+IF(+ROUND(I140,2)=0,"O K","НЕРАВНЕНИЕ!") -> O K | J137: =+IF(+ROUND(J140,2)=0,"O K","НЕРАВНЕНИЕ!") -> O K | L137: =+IF(+ROUND(L140,2)=0,"O K","НЕРАВНЕНИЕ!") -> O K | N137: =+IF(+ROUND(N140,2)=0,"O K","НЕРАВНЕНИЕ!") -> O K | P137: =+IF(+ROUND(P140,2)=0,"O K","НЕРАВНЕНИЕ!") -> O K | Q137: =+IF(+ROUND(Q140,2)=0,"O K","НЕРАВНЕНИЕ!") -> O K
B138: КОНТРОЛА - РАВНЕНИЕ НА КАСОВИ ПОТОЦИ С НАЛИЧНОСТ | F138: =+IF(+ROUND(F141,0)=0,"O K","НЕРАВНЕНИЕ!") -> O K | G138: =+IF(+ROUND(G141,0)=0,"O K","НЕРАВНЕНИЕ!") -> O K | I138: =+IF(+ROUND(I141,0)=0,"O K","НЕРАВНЕНИЕ!") -> O K | J138: =+IF(+ROUND(J141,0)=0,"O K","НЕРАВНЕНИЕ!") -> O K | L138: =+IF(+ROUND(L141,0)=0,"O K","НЕРАВНЕНИЕ!") -> O K | N138: =+IF(+ROUND(N141,0)=0,"O K","НЕРАВНЕНИЕ!") -> O K | P138: =+IF(+ROUND(P141,0)=0,"O K","НЕРАВНЕНИЕ!") -> O K | Q138: =+IF(+ROUND(Q141,0)=0,"O K","НЕРАВНЕНИЕ!") -> O K
B140: КОНТРОЛА - РАВНЕНИЕ НА БЮДЖ. САЛДО И ФИНАНСИРАНЕ - неравнение в левове | F140: =+ROUND(F83,0)+ROUND(F84,0) -> 0 | G140: =+ROUND(G83,0)+ROUND(G84,0) -> 0 | I140: =+ROUND(I83,0)+ROUND(I84,0) -> 0 | J140: =+ROUND(J83,0)+ROUND(J84,0) -> 0 | L140: =+ROUND(L83,0)+ROUND(L84,0) -> 0 | N140: =+ROUND(N83,0)+ROUND(N84,0) -> 0 | P140: =+ROUND(P83,0)+ROUND(P84,0) -> 0 | Q140: =+ROUND(Q83,0)+ROUND(Q84,0) -> 0
B141: КОНТРОЛА - РАВНЕНИЕ НА КАСОВИ ПОТОЦИ С НАЛИЧНОСТ - неравнение в левове | F141: =SUM(+ROUND(F83,0)+ROUND(F101,0)+ROUND(F120,0)+ROUND(F127,0)+ROUND(F129,0)+ROUND(F130,0))-ROUND(F131,0) -> 0 | G141: =SUM(+ROUND(G83,0)+ROUND(G101,0)+ROUND(G120,0)+ROUND(G127,0)+ROUND(G129,0)+ROUND(G130,0))-ROUND(G131,0) -> 0 | I141: =SUM(+ROUND(I83,0)+ROUND(I101,0)+ROUND(I120,0)+ROUND(I127,0)+ROUND(I129,0)+ROUND(I130,0))-ROUND(I131,0) -> 0 | J141: =SUM(+ROUND(J83,0)+ROUND(J101,0)+ROUND(J120,0)+ROUND(J127,0)+ROUND(J129,0)+ROUND(J130,0))-ROUND(J131,0) -> 0 | L141: =SUM(+ROUND(L83,0)+ROUND(L101,0)+ROUND(L120,0)+ROUND(L127,0)+ROUND(L129,0)+ROUND(L130,0))-ROUND(L131,0) -> 0 | N141: =SUM(+ROUND(N83,0)+ROUND(N101,0)+ROUND(N120,0)+ROUND(N127,0)+ROUND(N129,0)+ROUND(N130,0))-ROUND(N131,0) -> 0 | P141: =SUM(+ROUND(P83,0)+ROUND(P101,0)+ROUND(P120,0)+ROUND(P127,0)+ROUND(P129,0)+ROUND(P130,0))-ROUND(P131,0) -> 0 | Q141: =SUM(+ROUND(Q83,0)+ROUND(Q101,0)+ROUND(Q120,0)+ROUND(Q127,0)+ROUND(Q129,0)+ROUND(Q130,0))-ROUND(Q131,0) -> 0

Sheet OTCHET-agregirani pokazateli
B8: =VLOOKUP(E15,SMETKA,3,FALSE) -> ОТЧЕТ ЗА КАСОВОТО ИЗПЪЛНЕНИЕ НА БЮДЖЕТА
B11: =+OTCHET!B9 -> РЕГИОНАЛНА ЗДРАВНА ИНСПЕКЦИЯ-БУРГАС | E11: към | F11: =OTCHET!F9 -> 2021-12-31 | G11: ЕИК/БУЛСТАТ | H11: =+OTCHET!H9 -> 000 000 000 | I11: =+OTCHET!I9 -> 0
B12: (наименование на разпоредителя с бюджет) | I12: код от регистъра на бюджетните организации в СЕБРА
B13: =+OTCHET!B12 ->  | E13: =+OTCHET!E12 -> код по ЕБК: | F13: =+OTCHET!F12 -> 0
B14: (наименование на първостепенния разпоредител с бюджет)
B15: финансово-правна форма | E15: =+OTCHET!E15 -> 0 | F15: =OTCHET!F15 -> БЮДЖЕТ
J16: (в левове)
C17: §§ | E17: Годишен уточнен план 2021 г. | F17: ОТЧЕТ 2021 г. | G17: ОТЧЕТНИ ДАННИ ЗА: | O17: §§ от ЕБК, които се включват в съответния показател
B18: П О К А З А Т Е Л И | G18: левови сметки и СЕБРА | H18: валутни сметки | I18: операции в брой (в левове и валута) | J18: операции приравнени на касов поток | K18: ОТЧЕТ | L18: ОТЧЕТ
B20: (а) | E20: (1) | F20: (2) | G20: (3) | H20: (4) | I20: (5) | J20: (6) | K20: (код 4) | L20: (код 5) | M20: (код 5)
A22: 10 | B22: I. ПРИХОДИ, ПОМОЩИ И ДАРЕНИЯ | C22: §§ 01 - 48 | E22: =+E23+E25+E36+E37 -> 330,000 | F22: 282,121 | G22: 164,189 | H22: 0 | I22: 117,932 | J22: 0 | K22: =+K23+K25+K35+K36+K37 -> 0 | L22: =+L23+L25+L35+L36+L37 -> 0 | M22: =+M23+M25+M35+M36 -> 0 | O22: §§ 01 - 48
A23: 15 | B23: 1. Данъчни приходи | C23: §§ 01 - 20 | E23: =OTCHET!E22+OTCHET!E28+OTCHET!E33+OTCHET!E39+OTCHET!E47+OTCHET!E52+OTCHET!E58+OTCHET!E61+OTCHET!E64+OTCHET!E65+OTCHET!E72+OTCHET!E73 -> 0 | F23: =+G23+H23+I23+J23 -> 0 | G23: =OTCHET!G22+OTCHET!G28+OTCHET!G33+OTCHET!G39+OTCHET!G47+OTCHET!G52+OTCHET!G58+OTCHET!G61+OTCHET!G64+OTCHET!G65+OTCHET!G72+OTCHET!G73 -> 0 | H23: =OTCHET!H22+OTCHET!H28+OTCHET!H33+OTCHET!H39+OTCHET!H47+OTCHET!H52+OTCHET!H58+OTCHET!H61+OTCHET!H64+OTCHET!H65+OTCHET!H72+OTCHET!H73 -> 0 | I23: =OTCHET!I22+OTCHET!I28+OTCHET!I33+OTCHET!I39+OTCHET!I47+OTCHET!I52+OTCHET!I58+OTCHET!I61+OTCHET!I64+OTCHET!I65+OTCHET!I72+OTCHET!I73 -> 0 | J23: =OTCHET!J22+OTCHET!J28+OTCHET!J33+OTCHET!J39+OTCHET!J47+OTCHET!J52+OTCHET!J58+OTCHET!J61+OTCHET!J64+OTCHET!J65+OTCHET!J72+OTCHET!J73 -> 0 | O23: §§ 01 - 20
B24: в т. ч. трансфери за отчислени приходи | C24: § 65 | F24: 0 | O24: § 65
A25: 20 | B25: 2. Други приходи | C25: §§ 24 - 42 | E25: =+E26+E30+E31+E32+E33 -> 330,000 | F25: =+F26+F30+F31+F32+F33 -> 282,121 | G25: =+G26+G30+G31+G32+G33 -> 164,189 | H25: =+H26+H30+H31+H32+H33 -> 0 | I25: =+I26+I30+I31+I32+I33 -> 117,932 | J25: =+J26+J30+J31+J32+J33 -> 0 | K25: 0 | L25: 0 | M25: 0 | O25: §§ 24 - 42
A26: 25 | B26: 2.1 Приходи и доходи от собственост | C26: §24 | E26: =OTCHET!E74 -> 0 | F26: 1,383 | G26: =OTCHET!G74 -> 1,383 | H26: =OTCHET!H74 -> 0 | I26: =OTCHET!I74 -> 0 | J26: =OTCHET!J74 -> 0 | O26: §24
A27: 26 | B27: в т. ч. вноски от приходи на държавни и общински предприятия и институции | C27: под.§ 24-01 | E27: =OTCHET!E75 -> 0 | F27: 0 | G27: =OTCHET!G75 -> 0 | H27: =OTCHET!H75 -> 0 | I27: =OTCHET!I75 -> 0 | J27: =OTCHET!J75 -> 0 | O27: под.§ 24-01
A28: 30 | B28: нетни приходи от продажба на услуги, стоки и продукция | C28: под.§ 24-04 | E28: =OTCHET!E77 -> 0 | F28: 0 | G28: =OTCHET!G77 -> 0 | H28: =OTCHET!H77 -> 0 | I28: =OTCHET!I77 -> 0 | J28: =OTCHET!J77 -> 0 | O28: под.§ 24-04
A29: 35 | B29: приходи от наеми на имущество и земя | C29: под.§§ 24-05 и 24-06 | E29: =+OTCHET!E78+OTCHET!E79 -> 0 | F29: 1,383 | G29: =+OTCHET!G78+OTCHET!G79 -> 1,383 | H29: =+OTCHET!H78+OTCHET!H79 -> 0 | I29: =+OTCHET!I78+OTCHET!I79 -> 0 | J29: =+OTCHET!J78+OTCHET!J79 -> 0 | O29: под.§§ 24-05 и 24-06
A30: 40 | B30: 2.2 Приходи от такси | C30: §§ 25 - 27 | E30: =OTCHET!E90+OTCHET!E93+OTCHET!E94 -> 280,000 | F30: 202,525 | G30: =OTCHET!G90+OTCHET!G93+OTCHET!G94 -> 89,653 | H30: =OTCHET!H90+OTCHET!H93+OTCHET!H94 -> 0 | I30: =OTCHET!I90+OTCHET!I93+OTCHET!I94 -> 112,872 | J30: =OTCHET!J90+OTCHET!J93+OTCHET!J94 -> 0 | O30: §§ 25 - 27
A31: 45 | B31: 2.3 Глоби, санкции и наказателни лихви | C31: §28 | E31: =OTCHET!E108 -> 50,000 | F31: 31,836 | G31: =OTCHET!G108 -> 27,136 | H31: =OTCHET!H108 -> 0 | I31: =OTCHET!I108 -> 4,700 | J31: =OTCHET!J108 -> 0 | O31: §28
A32: 50 | B32: 2.4 Други неданъчни приходи | C32: §§ 36 - 37 и §§ 41 - 42 | E32: =OTCHET!E112+OTCHET!E121+OTCHET!E137+OTCHET!E138 -> 0 | F32: -10,963 | G32: =OTCHET!G112+OTCHET!G121+OTCHET!G137+OTCHET!G138 -> -11,323 | H32: =OTCHET!H112+OTCHET!H121+OTCHET!H137+OTCHET!H138 -> 0 | I32: =OTCHET!I112+OTCHET!I121+OTCHET!I137+OTCHET!I138 -> 360 | J32: =OTCHET!J112+OTCHET!J121+OTCHET!J137+OTCHET!J138 -> 0 | O32: §§ 36 - 37 и §§ 41 - 42
A33: 51 | B33: 2.5 Постъпления от продажба на нефинансови активи | C33: § 40 с изключение на под.§ 40-71 | E33: =OTCHET!E125 -> 0 | F33: 57,340 | G33: =OTCHET!G125 -> 57,340 | H33: =OTCHET!H125 -> 0 | I33: =OTCHET!I125 -> 0 | J33: =OTCHET!J125 -> 0 | O33: § 40 с изключение на под.§ 40-71
A34: 52 | F34: 0
F35: 0
A36: 60 | B36: 3. Помощи и дарения от страната | C36: § 45 | E36: =+OTCHET!E139 -> 0 | F36: 0 | G36: =+OTCHET!G139 -> 0 | H36: =+OTCHET!H139 -> 0 | I36: =+OTCHET!I139 -> 0 | J36: =+OTCHET!J139 -> 0 | O36: § 45
A37: 65 | B37: 4. Помощи и дарения от чужбина | C37: §§ 46 - 48 | E37: =OTCHET!E142+OTCHET!E151+OTCHET!E160 -> 0 | F37: 0 | G37: =OTCHET!G142+OTCHET!G151+OTCHET!G160 -> 0 | H37: =OTCHET!H142+OTCHET!H151+OTCHET!H160 -> 0 | I37: =OTCHET!I142+OTCHET!I151+OTCHET!I160 -> 0 | J37: =OTCHET!J142+OTCHET!J151+OTCHET!J160 -> 0 | O37: §§ 46 - 48
A38: 70 | B38: II. РАЗХОДИ | C38: §§ 01 - 57 | E38: =E39+E43+E44+E46+SUM(E48:E52)+E55 -> 4,521,852 | F38: 4,505,976 | G38: 3,425,030 | H38: 0 | I38: 8,281 | J38: 1,072,665 | K38: =SUM(K40:K54)-K45-K47-K53 -> 0 | L38: =SUM(L40:L54)-L45-L47-L53 -> 0 | M38: =SUM(M40:M53)-M45-M52 -> 0 | O38: §§ 01 - 57
A39: 75 | B39: 1. Персонал | C39: § 01 | E39: =SUM(E40:E42) -> 3,563,058 | F39: 3,553,434 | G39: 2,483,103 | H39: 0 | I39: -2,334 | J39: 1,072,665 | O39: §§ 1 - 8
A40: 75 | B40: 1.1. Заплати и възнаграждения за персонала, нает по трудови и служебни прав. | C40: § 01 | E40: =OTCHET!E187 -> 2,675,845 | F40: 2,656,411 | G40: =OTCHET!G187 -> 2,350,183 | H40: =OTCHET!H187 -> 0 | I40: =OTCHET!I187 -> -2,334 | J40: =OTCHET!J187 -> 308,562 | O40: § 01
A41: 80 | B41: 1.2. Други възнаграждения и плащания за персонала | C41: § 02 | E41: =OTCHET!E190 -> 131,557 | F41: 145,390 | G41: =OTCHET!G190 -> 132,920 | H41: =OTCHET!H190 -> 0 | I41: =OTCHET!I190 -> 0 | J41: =OTCHET!J190 -> 12,470 | O41: § 02
A42: 85 | B42: 1.3. Осигурителни вноски | C42: §§ 05 и 08 | E42: =+OTCHET!E196+OTCHET!E204 -> 755,656 | F42: 751,633 | G42: =+OTCHET!G196+OTCHET!G204 -> 0 | H42: =+OTCHET!H196+OTCHET!H204 -> 0 | I42: =+OTCHET!I196+OTCHET!I204 -> 0 | J42: =+OTCHET!J196+OTCHET!J204 -> 751,633 | O42: §§ 05 и 08
A43: 90 | B43: 2. Издръжка | C43: §§ 10; 19; 46 | E43: =+OTCHET!E205+OTCHET!E223+OTCHET!E271 -> 714,563 | F43: 737,750 | G43: =+OTCHET!G205+OTCHET!G223+OTCHET!G271 -> 727,135 | H43: =+OTCHET!H205+OTCHET!H223+OTCHET!H271 -> 0 | I43: =+OTCHET!I205+OTCHET!I223+OTCHET!I271 -> 10,615 | J43: =+OTCHET!J205+OTCHET!J223+OTCHET!J271 -> 0 | O43: §§ 10; 19; 46
A44: 95 | B44: 3. Лихви | C44: §§ 21 - 29 | E44: =+OTCHET!E227+OTCHET!E233+OTCHET!E236+OTCHET!E237+OTCHET!E238+OTCHET!E239+OTCHET!E240 -> 0 | F44: 161 | G44: =+OTCHET!G227+OTCHET!G233+OTCHET!G236+OTCHET!G237+OTCHET!G238+OTCHET!G239+OTCHET!G240 -> 161 | H44: =+OTCHET!H227+OTCHET!H233+OTCHET!H236+OTCHET!H237+OTCHET!H238+OTCHET!H239+OTCHET!H240 -> 0 | I44: =+OTCHET!I227+OTCHET!I233+OTCHET!I236+OTCHET!I237+OTCHET!I238+OTCHET!I239+OTCHET!I240 -> 0 | J44: =+OTCHET!J227+OTCHET!J233+OTCHET!J236+OTCHET!J237+OTCHET!J238+OTCHET!J239+OTCHET!J240 -> 0 | O44: §§ 21 - 29
A45: 100 | B45: в т. ч. външни | C45: §§ 25 - 28; 29-69/29-70 и 29-92 | E45: =+OTCHET!E236+OTCHET!E237+OTCHET!E238+OTCHET!E239+OTCHET!E243+OTCHET!E244+OTCHET!E248 -> 0 | F45: 0 | G45: =+OTCHET!G236+OTCHET!G237+OTCHET!G238+OTCHET!G239+OTCHET!G243+OTCHET!G244+OTCHET!G248 -> 0 | H45: =+OTCHET!H236+OTCHET!H237+OTCHET!H238+OTCHET!H239+OTCHET!H243+OTCHET!H244+OTCHET!H248 -> 0 | I45: =+OTCHET!I236+OTCHET!I237+OTCHET!I238+OTCHET!I239+OTCHET!I243+OTCHET!I244+OTCHET!I248 -> 0 | J45: =+OTCHET!J236+OTCHET!J237+OTCHET!J238+OTCHET!J239+OTCHET!J243+OTCHET!J244+OTCHET!J248 -> 0 | O45: §§ 25 - 28; 29-69/29-70 и 29-92
A46: 105 | B46: 4. Социални разходи, стипендии | C46: §§ 39 - 42 | E46: =+OTCHET!E255+OTCHET!E256+OTCHET!E257+OTCHET!E258 -> 0 | F46: 0 | G46: =+OTCHET!G255+OTCHET!G256+OTCHET!G257+OTCHET!G258 -> 0 | H46: =+OTCHET!H255+OTCHET!H256+OTCHET!H257+OTCHET!H258 -> 0 | I46: =+OTCHET!I255+OTCHET!I256+OTCHET!I257+OTCHET!I258 -> 0 | J46: =+OTCHET!J255+OTCHET!J256+OTCHET!J257+OTCHET!J258 -> 0 | O46: §§ 39 - 42
A47: 106 | B47: в т. ч. стипендии | C47: § 40 | E47: =+OTCHET!E256 -> 0 | F47: 0 | G47: =+OTCHET!G256 -> 0 | H47: =+OTCHET!H256 -> 0 | I47: =+OTCHET!I256 -> 0 | J47: =+OTCHET!J256 -> 0 | O47: § 40
A48: 107 | B48: 5.Субсидии | C48: §§ 43 - 45; 49 | E48: =+OTCHET!E265+OTCHET!E269+OTCHET!E270 -> 0 | F48: 0 | G48: =+OTCHET!G265+OTCHET!G269+OTCHET!G270 -> 0 | H48: =+OTCHET!H265+OTCHET!H269+OTCHET!H270 -> 0 | I48: =+OTCHET!I265+OTCHET!I269+OTCHET!I270 -> 0 | J48: =+OTCHET!J265+OTCHET!J269+OTCHET!J270 -> 0 | O48: §§ 43 - 45
A49: 108 | B49: 6. Придобиване на нeфинансови актииви | C49: §§ 51 - 54 | E49: =OTCHET!E275+OTCHET!E276+OTCHET!E284+OTCHET!E287 -> 244,231 | F49: 214,631 | G49: =OTCHET!G275+OTCHET!G276+OTCHET!G284+OTCHET!G287 -> 214,631 | H49: =OTCHET!H275+OTCHET!H276+OTCHET!H284+OTCHET!H287 -> 0 | I49: =OTCHET!I275+OTCHET!I276+OTCHET!I284+OTCHET!I287 -> 0 | J49: =OTCHET!J275+OTCHET!J276+OTCHET!J284+OTCHET!J287 -> 0 | O49: §§ 51 - 54
A50: 110 | B50: 7. Капиталови трансфери | C50: § 55 | E50: =+OTCHET!E288 -> 0 | F50: 0 | G50: =+OTCHET!G288 -> 0 | H50: =+OTCHET!H288 -> 0 | I50: =+OTCHET!I288 -> 0 | J50: =+OTCHET!J288 -> 0 | O50: § 55
A51: 115 | B51: 8. Предоставени текущи и капиталови трансфери за чужбина | C51: (+ § 57 - под.§ 40-71) | E51: =+OTCHET!E272 -> 0 | F51: =+G51+H51+I51+J51 -> 0 | G51: =+OTCHET!G272 -> 0 | H51: =+OTCHET!H272 -> 0 | I51: =+OTCHET!I272 -> 0 | J51: =+OTCHET!J272 -> 0 | O51: § 49
A52: 115 | B52: 9. Прираст на държавния резерв и изкупуване на земеделска продукция | C52: (+ § 57 - под.§ 40-71) | E52: =+OTCHET!E293 -> 0 | F52: 0 | G52: =+OTCHET!G293 -> 0 | H52: =+OTCHET!H293 -> 0 | I52: =+OTCHET!I293 -> 0 | J52: =+OTCHET!J293 -> 0 | O52: (+ § 57 - под.§ 40-71)
A53: 120 | B53: в т. ч. плащания за попълване на държавния резерв | C53: под.§;57-01 | E53: =OTCHET!E294 -> 0 | F53: 0 | G53: =OTCHET!G294 -> 0 | H53: =OTCHET!H294 -> 0 | I53: =OTCHET!I294 -> 0 | J53: =OTCHET!J294 -> 0 | O53: под.§;57-01
A54: 125 | B54: постъпления от продажби на държавния резерв (-) | C54: (-)под.§ 40-71 | E54: =OTCHET!E296 -> 0 | F54: 0 | G54: =OTCHET!G296 -> 0 | H54: =OTCHET!H296 -> 0 | I54: =OTCHET!I296 -> 0 | J54: =OTCHET!J296 -> 0 | O54: (-)под.§ 40-71
A55: 127 | B55: 10. Резерв за непредвидини и неотложни разходи | C55: §;00-98 | E55: =+OTCHET!E297 -> 0 | F55: 0 | G55: =+OTCHET!G297 -> 0 | H55: =+OTCHET!H297 -> 0 | I55: =+OTCHET!I297 -> 0 | J55: =+OTCHET!J297 -> 0 | O55: §;00-98
A56: 130 | B56: III. Трансфери | C56: §§ 30 - 31; 32; 60 - 67; 69; 74 - 78 | E56: =+E57+E58+E62 -> 4,191,852 | F56: 4,220,727 | G56: 3,148,062 | H56: 0 | I56: 0 | J56: 1,072,665 | K56: =+K57+K58+K61 -> 0 | L56: =+L57+L58+L61 -> 0 | M56: =+M57+M58+M61 -> 0 | O56: §§ 30 - 31; 32; 60 - 67; 69; 74 - 78
A57: 135 | B57: 1. Трансфери от/за ЦБ за/от други бюджети | C57: §§ 30 - 31; 60 | E57: =+OTCHET!E361+OTCHET!E375+OTCHET!E388 -> 4,191,852 | F57: 0 | G57: =+OTCHET!G361+OTCHET!G375+OTCHET!G388 -> 0 | H57: =+OTCHET!H361+OTCHET!H375+OTCHET!H388 -> 0 | I57: =+OTCHET!I361+OTCHET!I375+OTCHET!I388 -> 0 | J57: =+OTCHET!J361+OTCHET!J375+OTCHET!J388 -> 0 | O57: §§ 30 - 31; 60
A58: 140 | B58: 2. Други трансфери | C58: §§ 32; 61- 67; 74 - 78 | E58: =+OTCHET!E383+OTCHET!E391+OTCHET!E396+OTCHET!E399+OTCHET!E402+OTCHET!E405+OTCHET!E406+OTCHET!E409+OTCHET!E422+OTCHET!E423+OTCHET!E424+OTCHET!E425+OTCHET!E426 -> 0 | F58: 3,148,062 | G58: =+OTCHET!G383+OTCHET!G391+OTCHET!G396+OTCHET!G399+OTCHET!G402+OTCHET!G405+OTCHET!G406+OTCHET!G409+OTCHET!G422+OTCHET!G423+OTCHET!G424+OTCHET!G425+OTCHET!G426 -> 3,148,062 | H58: =+OTCHET!H383+OTCHET!H391+OTCHET!H396+OTCHET!H399+OTCHET!H402+OTCHET!H405+OTCHET!H406+OTCHET!H409+OTCHET!H422+OTCHET!H423+OTCHET!H424+OTCHET!H425+OTCHET!H426 -> 0 | I58: =+OTCHET!I383+OTCHET!I391+OTCHET!I396+OTCHET!I399+OTCHET!I402+OTCHET!I405+OTCHET!I406+OTCHET!I409+OTCHET!I422+OTCHET!I423+OTCHET!I424+OTCHET!I425+OTCHET!I426 -> 0 | J58: =+OTCHET!J383+OTCHET!J391+OTCHET!J396+OTCHET!J399+OTCHET!J402+OTCHET!J405+OTCHET!J406+OTCHET!J409+OTCHET!J422+OTCHET!J423+OTCHET!J424+OTCHET!J425+OTCHET!J426 -> 0 | O58: §§ 32; 61- 67; 74 - 78
A59: 145 | B59: в т. ч. временни безлихвени заеми | C59: §§ 74 - 78 | E59: =+OTCHET!E422+OTCHET!E423+OTCHET!E424+OTCHET!E425+OTCHET!E426 -> 0 | F59: 0 | G59: =+OTCHET!G422+OTCHET!G423+OTCHET!G424+OTCHET!G425+OTCHET!G426 -> 0 | H59: =+OTCHET!H422+OTCHET!H423+OTCHET!H424+OTCHET!H425+OTCHET!H426 -> 0 | I59: =+OTCHET!I422+OTCHET!I423+OTCHET!I424+OTCHET!I425+OTCHET!I426 -> 0 | J59: =+OTCHET!J422+OTCHET!J423+OTCHET!J424+OTCHET!J425+OTCHET!J426 -> 0 | O59: §§ 74 - 78
A60: 150 | B60: трансфери за отчислени постъпления | C60: § 65 | E60: =OTCHET!E405 -> 0 | F60: 0 | G60: =OTCHET!G405 -> 0 | H60: =OTCHET!H405 -> 0 | I60: =OTCHET!I405 -> 0 | J60: =OTCHET!J405 -> 0 | O60: § 65
A61: 160 | F61: 0
A62: 162 | B62: 3. Трансфери за поети осигурителни вноски и данъци | C62: § 69 | E62: =OTCHET!E412 -> 0 | F62: 1,072,665 | G62: =OTCHET!G412 -> 0 | H62: =OTCHET!H412 -> 0 | I62: =OTCHET!I412 -> 0 | J62: =OTCHET!J412 -> 1,072,665 | O62: § 69
A63: 165 | B63: IV. Вноска в общия бюджет на ЕС | C63: § 33 | E63: =+OTCHET!E249 -> 0 | F63: 0 | G63: =+OTCHET!G249 -> 0 | H63: =+OTCHET!H249 -> 0 | I63: =+OTCHET!I249 -> 0 | J63: =+OTCHET!J249 -> 0 | O63: § 33
A64: 175 | B64: V. Дефицит / излишък = I - II +III - IV | E64: =+E22-E38+E56-E63 -> 0 | F64: (3,128) | G64: (112,779) | H64: 0 | I64: 109,651 | J64: 0 | K64: =+K22-K38+K56 -> 0 | L64: =+L22-L38+L56 -> 0 | M64: =+M22-M38+M56 -> 0
A65: 180 | B65: =+IF(+SUM(E$65:J$65)=0,0,"Контрола: дефицит/излишък = финансиране с обратен знак (V. + VІ. = 0)") -> 0 | E65: =+E$64+E$66 -> 0 | F65: 0 | G65: 0 | H65: 0 | I65: 0 | J65: 0 | K65: =+K64+K66 ->  | L65: =+L64+L66 ->  | M65: =+M64+M66 -> 
A66: 185 | B66: VI. Финансиране | C66: §§ 70 - 98 | E66: =SUM(+E68+E76+E77+E84+E85+E86+E89+E90+E91+E92+E93+E94+E95) -> 0 | F66: =SUM(+F68+F76+F77+F84+F85+F86+F89+F90+F91+F92+F93+F94+F95) -> 3,128 | G66: =SUM(+G68+G76+G77+G84+G85+G86+G89+G90+G91+G92+G93+G94+G95) -> 112,779 | H66: =SUM(+H68+H76+H77+H84+H85+H86+H89+H90+H91+H92+H93+H94+H95) -> 0 | I66: =SUM(+I68+I76+I77+I84+I85+I86+I89+I90+I91+I92+I93+I94+I95) -> (109,651) | J66: =SUM(+J68+J76+J77+J84+J85+J86+J89+J90+J91+J92+J93+J94+J95) -> 0 | M66: =SUM(+M68+M76+M77+M84+M85+M86+M89+M90+M91+M92+M93+M95+M96) ->  | O66: §§ 70 - 98
A67: 190 | F67: 0
A68: 195 | B68: 1. Външно финансиране | C68: §§ 80 - 82; 92-01; 95-21/95-22; 95-28/95-29 и 95-49 | E68: =SUM(E69:E75) -> 0 | F68: =SUM(F69:F75) -> 0 | G68: =SUM(G69:G75) -> 0 | H68: =SUM(H69:H75) -> 0 | I68: =SUM(I69:I75) -> 0 | J68: =SUM(J69:J75) -> 0 | O68: §§ 80 - 82; 92-01; 95-21/95-22; 95-28/95-29 и 95-49
A69: 200 | B69: получени външни заеми | C69: под.§§ 80-11/80-12; 80-31/80-32; 80-51/80-52 и 80-97 | E69: =+OTCHET!E482+OTCHET!E483+OTCHET!E486+OTCHET!E487+OTCHET!E490+OTCHET!E491+OTCHET!E495 -> 0 | F69: 0 | G69: =+OTCHET!G482+OTCHET!G483+OTCHET!G486+OTCHET!G487+OTCHET!G490+OTCHET!G491+OTCHET!G495 -> 0 | H69: =+OTCHET!H482+OTCHET!H483+OTCHET!H486+OTCHET!H487+OTCHET!H490+OTCHET!H491+OTCHET!H495 -> 0 | I69: =+OTCHET!I482+OTCHET!I483+OTCHET!I486+OTCHET!I487+OTCHET!I490+OTCHET!I491+OTCHET!I495 -> 0 | J69: =+OTCHET!J482+OTCHET!J483+OTCHET!J486+OTCHET!J487+OTCHET!J490+OTCHET!J491+OTCHET!J495 -> 0 | K69: =+#REF!+#REF!+#REF!+#REF!+#REF!+#REF!+#REF! ->  | L69: =+#REF!+#REF!+#REF!+#REF!+#REF!+#REF!+#REF! ->  | M69: =+#REF!+#REF!+#REF!+#REF!+#REF!+#REF!+#REF! ->  | O69: под.§§ 80-11/80-12; 80-31/80-32; 80-51/80-52 и 80-97
A70: 205 | B70: погашения по външни заеми | C70: под.§§ 80-17/80-18; 80-37/80-38; 80-57/80-58; 80-80 и 80-98; | E70: =+OTCHET!E484+OTCHET!E485+OTCHET!E488+OTCHET!E489+OTCHET!E492+OTCHET!E493+OTCHET!E494+OTCHET!E496 -> 0 | F70: 0 | G70: =+OTCHET!G484+OTCHET!G485+OTCHET!G488+OTCHET!G489+OTCHET!G492+OTCHET!G493+OTCHET!G494+OTCHET!G496 -> 0 | H70: =+OTCHET!H484+OTCHET!H485+OTCHET!H488+OTCHET!H489+OTCHET!H492+OTCHET!H493+OTCHET!H494+OTCHET!H496 -> 0 | I70: =+OTCHET!I484+OTCHET!I485+OTCHET!I488+OTCHET!I489+OTCHET!I492+OTCHET!I493+OTCHET!I494+OTCHET!I496 -> 0 | J70: =+OTCHET!J484+OTCHET!J485+OTCHET!J488+OTCHET!J489+OTCHET!J492+OTCHET!J493+OTCHET!J494+OTCHET!J496 -> 0 | K70: =+#REF!+#REF!+#REF!+#REF!+#REF!+#REF!+#REF!+#REF! ->  | L70: =+#REF!+#REF!+#REF!+#REF!+#REF!+#REF!+#REF!+#REF! ->  | M70: =+#REF!+#REF!+#REF!+#REF!+#REF!+#REF!+#REF!+#REF! ->  | O70: под.§§ 80-17/80-18; 80-37/80-38; 80-57/80-58; 80-80 и 80-98;
A71: 210 | B71: държавни /общински/ ЦК емитирани на м/нар. капиталови пазари | C71: § 81 | E71: =+OTCHET!E497 -> 0 | F71: 0 | G71: =+OTCHET!G497 -> 0 | H71: =+OTCHET!H497 -> 0 | I71: =+OTCHET!I497 -> 0 | J71: =+OTCHET!J497 -> 0 | K71: =+#REF! ->  | L71: =+#REF! ->  | M71: =+#REF! ->  | O71: § 81
A72: 215 | B72: получени погашения по предоставени кредити от други държави | C72: § 82 | E72: =+OTCHET!E502 -> 0 | F72: 0 | G72: =+OTCHET!G502 -> 0 | H72: =+OTCHET!H502 -> 0 | I72: =+OTCHET!I502 -> 0 | J72: =+OTCHET!J502 -> 0 | K72: =+#REF! ->  | L72: =+#REF! ->  | M72: =+#REF! ->  | O72: § 82
A73: 220 | B73: операции с др. ЦК и финансови активи | C73: под. § 92-01 | E73: =+OTCHET!E542 -> 0 | F73: 0 | G73: =+OTCHET!G542 -> 0 | H73: =+OTCHET!H542 -> 0 | I73: =+OTCHET!I542 -> 0 | J73: =+OTCHET!J542 -> 0 | K73: =+#REF! ->  | L73: =+#REF! ->  | M73: =+#REF! ->  | O73: под. § 92-01
A74: 230 | B74: остатък в лв.равн. по валутни сметки и каса в чужбина от предх. период | C74: под. §§ 95-21и 95-22 | E74: =+OTCHET!E581+OTCHET!E582 -> 0 | F74: 0 | G74: =+OTCHET!G581+OTCHET!G582 -> 0 | H74: =+OTCHET!H581+OTCHET!H582 -> 0 | I74: =+OTCHET!I581+OTCHET!I582 -> 0 | J74: =+OTCHET!J581+OTCHET!J582 -> 0 | K74: =+#REF!+#REF! ->  | L74: =+#REF!+#REF! ->  | M74: =+#REF!+#REF! ->  | O74: под. §§ 95-21и 95-22
A75: 235 | B75: наличности в лв. равн.по валутни сметки и каса в чужб. в кр.на периода | C75: под. §§ 95-28/95-29 и 95-49 | E75: =+OTCHET!E583+OTCHET!E584+OTCHET!E585 -> 0 | F75: 0 | G75: =+OTCHET!G583+OTCHET!G584+OTCHET!G585 -> 0 | H75: =+OTCHET!H583+OTCHET!H584+OTCHET!H585 -> 0 | I75: =+OTCHET!I583+OTCHET!I584+OTCHET!I585 -> 0 | J75: =+OTCHET!J583+OTCHET!J584+OTCHET!J585 -> 0 | K75: =+#REF!+#REF!+#REF! ->  | L75: =+#REF!+#REF!+#REF! ->  | M75: =+#REF!+#REF!+#REF! ->  | O75: под. §§ 95-28/95-29 и 95-49
A76: 240 | B76: 2. Придобиване на дялове, акции, съучастия и др, финансови активи | C76: § 70 | E76: =OTCHET!E461 -> 0 | F76: 0 | G76: =OTCHET!G461 -> 0 | H76: =OTCHET!H461 -> 0 | I76: =OTCHET!I461 -> 0 | J76: =OTCHET!J461 -> 0 | K76: =#REF! ->  | L76: =#REF! ->  | M76: =#REF! ->  | O76: § 70
A77: 245 | B77: 3. Възмездни средства | C77: §§ 71 - 73 и 79 | E77: =SUM(E78:E83) -> 0 | F77: =SUM(F78:F83) -> 0 | G77: =SUM(G78:G83) -> 0 | H77: =SUM(H78:H83) -> 0 | I77: =SUM(I78:I83) -> 0 | J77: =SUM(J78:J83) -> 0 | K77: 0 | L77: 0 | M77: 0 | O77: §§ 71 - 73 и 79
A78: 250 | B78: предоставени | C78: под. § 71-01 и § 72-01 | E78: =+OTCHET!E466+OTCHET!E469 -> 0 | F78: 0 | G78: =+OTCHET!G466+OTCHET!G469 -> 0 | H78: =+OTCHET!H466+OTCHET!H469 -> 0 | I78: =+OTCHET!I466+OTCHET!I469 -> 0 | J78: =+OTCHET!J466+OTCHET!J469 -> 0 | O78: под. § 71-01 и § 72-01
A79: 260 | B79: възстановени | C79: под. § 71-02 и § 72-02 | E79: =+OTCHET!E467+OTCHET!E470 -> 0 | F79: 0 | G79: =+OTCHET!G467+OTCHET!G470 -> 0 | H79: =+OTCHET!H467+OTCHET!H470 -> 0 | I79: =+OTCHET!I467+OTCHET!I470 -> 0 | J79: =+OTCHET!J467+OTCHET!J470 -> 0 | O79: под. § 71-02 и § 72-02
A80: 265 | B80: нето плащания по активирани гаранции, поръчителства и преоформен дълг | C80: § 73 | E80: =OTCHET!E471 -> 0 | F80: 0 | G80: =OTCHET!G471 -> 0 | H80: =OTCHET!H471 -> 0 | I80: =OTCHET!I471 -> 0 | J80: =OTCHET!J471 -> 0 | O80: § 73
F81: 0
A82: 270 | B82: предоставени заеми към крайни бенифициенти | C82: под. § 79-01 | E82: =+OTCHET!E479 -> 0 | F82: 0 | G82: =+OTCHET!G479 -> 0 | H82: =+OTCHET!H479 -> 0 | I82: =+OTCHET!I479 -> 0 | J82: =+OTCHET!J479 -> 0 | O82: под. § 79-01
A83: 275 | B83: възстановени суми по заеми от крайни бенифициенти | C83: под. § 79-02 | E83: =+OTCHET!E480 -> 0 | F83: 0 | G83: =+OTCHET!G480 -> 0 | H83: =+OTCHET!H480 -> 0 | I83: =+OTCHET!I480 -> 0 | J83: =+OTCHET!J480 -> 0 | O83: под. § 79-02
A84: 280 | B84: 4. Приватизация на дялове, акции и участия | C84: § 90 | E84: =OTCHET!E535 -> 0 | F84: 0 | G84: =OTCHET!G535 -> 0 | H84: =OTCHET!H535 -> 0 | I84: =OTCHET!I535 -> 0 | J84: =OTCHET!J535 -> 0 | O84: § 90
A85: 285 | B85: 5. Покупко-продажба на държавни/общински/ ценни книжа от бюдж. предприятия | C85: § 91 | E85: =OTCHET!E536 -> 0 | F85: 0 | G85: =OTCHET!G536 -> 0 | H85: =OTCHET!H536 -> 0 | I85: =OTCHET!I536 -> 0 | J85: =OTCHET!J536 -> 0 | O85: § 91
A86: 290 | B86: 6. Друго вътрешно финансиране | C86: §§ 83; 85 - 88; 92-02; 93 | E86: =+E87+E88 -> 0 | F86: =+F87+F88 -> 3,128 | G86: =+G87+G88 -> 3,329 | H86: =+H87+H88 -> 0 | I86: =+I87+I88 -> -201 | J86: =+J87+J88 -> 0 | K86: 0 | L86: 0 | M86: 0 | O86: §§ 83; 85 - 88; 92-02; 93
A87: 295 | B87: операции по вътрешен дълг и финан. активи- нето | C87: §§ 83; 85 - 86 и 92-02 | E87: =+OTCHET!E503+OTCHET!E512+OTCHET!E516+OTCHET!E543 -> 0 | F87: 0 | G87: =+OTCHET!G503+OTCHET!G512+OTCHET!G516+OTCHET!G543 -> 0 | H87: =+OTCHET!H503+OTCHET!H512+OTCHET!H516+OTCHET!H543 -> 0 | I87: =+OTCHET!I503+OTCHET!I512+OTCHET!I516+OTCHET!I543 -> 0 | J87: =+OTCHET!J503+OTCHET!J512+OTCHET!J516+OTCHET!J543 -> 0 | O87: §§ 83; 85 - 86 и 92-02
A88: 300 | B88: друго финансиране | C88: §§ 87; 88 и 93 | E88: =+OTCHET!E521+OTCHET!E524+OTCHET!E544 -> 0 | F88: 3,128 | G88: =+OTCHET!G521+OTCHET!G524+OTCHET!G544 -> 3,329 | H88: =+OTCHET!H521+OTCHET!H524+OTCHET!H544 -> 0 | I88: =+OTCHET!I521+OTCHET!I524+OTCHET!I544 -> -201 | J88: =+OTCHET!J521+OTCHET!J524+OTCHET!J544 -> 0 | O88: §§ 87; 88 и 93
A89: 310 | B89: 7.Суми по разчети за поети осигур, вноски и данъци | C89: §89 | E89: =OTCHET!E531 -> 0 | F89: =+G89+H89+I89+J89 -> 0 | G89: =OTCHET!G531 -> 0 | H89: =OTCHET!H531 -> 0 | I89: =OTCHET!I531 -> 0 | J89: =OTCHET!J531 -> 0 | O89: §89
A90: 320 | B90: 8. Наличности в началото на периода | C90: под. §§ 95-01 до 95-06 | E90: =+OTCHET!E567+OTCHET!E568+OTCHET!E569+OTCHET!E570+OTCHET!E571+OTCHET!E572 -> 0 | F90: 0 | G90: =+OTCHET!G567+OTCHET!G568+OTCHET!G569+OTCHET!G570+OTCHET!G571+OTCHET!G572 -> 0 | H90: =+OTCHET!H567+OTCHET!H568+OTCHET!H569+OTCHET!H570+OTCHET!H571+OTCHET!H572 -> 0 | I90: =+OTCHET!I567+OTCHET!I568+OTCHET!I569+OTCHET!I570+OTCHET!I571+OTCHET!I572 -> 0 | J90: =+OTCHET!J567+OTCHET!J568+OTCHET!J569+OTCHET!J570+OTCHET!J571+OTCHET!J572 -> 0 | O90: под. §§ 95-01 до 95-06
A91: 330 | B91: 9 Наличности в края на периода | C91: под. §§ 95-07 до 95-13 | E91: =+OTCHET!E573+OTCHET!E574+OTCHET!E575+OTCHET!E576+OTCHET!E577+OTCHET!E578+OTCHET!E579 -> 0 | F91: 0 | G91: =+OTCHET!G573+OTCHET!G574+OTCHET!G575+OTCHET!G576+OTCHET!G577+OTCHET!G578+OTCHET!G579 -> 0 | H91: =+OTCHET!H573+OTCHET!H574+OTCHET!H575+OTCHET!H576+OTCHET!H577+OTCHET!H578+OTCHET!H579 -> 0 | I91: =+OTCHET!I573+OTCHET!I574+OTCHET!I575+OTCHET!I576+OTCHET!I577+OTCHET!I578+OTCHET!I579 -> 0 | J91: =+OTCHET!J573+OTCHET!J574+OTCHET!J575+OTCHET!J576+OTCHET!J577+OTCHET!J578+OTCHET!J579 -> 0 | O91: под. §§ 95-07 до 95-13
A92: 335 | B92: 10. Преоценка на валутни наличности | C92: под. § 95-14 | E92: =+OTCHET!E580 -> 0 | F92: 0 | G92: =+OTCHET!G580 -> 0 | H92: =+OTCHET!H580 -> 0 | I92: =+OTCHET!I580 -> 0 | J92: =+OTCHET!J580 -> 0 | O92: под. § 95-14
A93: 340 | B93: 11. Депозити и сметки консолидирани в "Единната сметка" от предх. период | C93: под. §§ 96-01 до 96-03 | E93: =+OTCHET!E587+OTCHET!E588 -> 0 | F93: 0 | G93: =+OTCHET!G587+OTCHET!G588 -> 0 | H93: =+OTCHET!H587+OTCHET!H588 -> 0 | I93: =+OTCHET!I587+OTCHET!I588 -> 0 | J93: =+OTCHET!J587+OTCHET!J588 -> 0 | O93: под. §§ 96-01 до 96-03
A94: 345 | B94: 12. Депозити и сметки консолидирани в "Единната сметка" в края на периода | C94: под. §§ 96-07 до 96-09 | E94: =+OTCHET!E589+OTCHET!E590 -> 0 | F94: 0 | G94: =+OTCHET!G589+OTCHET!G590 -> 0 | H94: =+OTCHET!H589+OTCHET!H590 -> 0 | I94: =+OTCHET!I589+OTCHET!I590 -> 0 | J94: =+OTCHET!J589+OTCHET!J590 -> 0 | O94: под. §§ 96-07 до 96-09
A95: 350 | B95: 13. Касови операции, депозити, покупко-продажба на валута и сетълмент | C95: § 98 | E95: =OTCHET!E591 -> 0 | F95: 0 | G95: =OTCHET!G591 -> 109,450 | H95: =OTCHET!H591 -> 0 | I95: =OTCHET!I591 -> -109,450 | J95: =OTCHET!J591 -> 0 | O95: § 98
A96: 355 | B96: в т. ч. покупко-продажба на валута (+/-) | C96: под. § 98-30 | E96: =+OTCHET!E594 -> 0 | F96: 0 | G96: =+OTCHET!G594 -> 0 | H96: =+OTCHET!H594 -> 0 | I96: =+OTCHET!I594 -> 0 | J96: =+OTCHET!J594 -> 0 | O96: под. § 98-30
B97: ЧИСЛЕНОСТ НА ПЕРСОНАЛА
B98: Щатни бройки
B99: по трудови правоотношения
B100: по служебни правоотношения
B102: Средногодишни щатни бройки
B103: по трудови правоотношения
B104: по служебни правоотношения
B105: =+IF(+SUM(E$65:J$65)=0,0,"Контрола: дефицит/излишък = финансиране с обратен знак (V. + VІ. = 0)") -> 0 | E105: =+E$64+E$66 -> 0 | F105: 0 | G105: 0 | H105: 0 | I105: 0 | J105: 0
B107: =+OTCHET!H605 -> 0 | G107: =+OTCHET!E605 -> 0 | H107: =+OTCHET!F605 -> 879505280 | J107: =+OTCHET!B605 -> 00:00:00
B108: (e-mail) | G108: (служебни телефони) | J108: (дата)
B109: ИЗГОТВИЛ:
E110: =+OTCHET!D603 -> Ц. ДИМИТРОВА
B113: ГЛ. СЧЕТОВОДИТЕЛ: | H113: РЪКОВОДИТЕЛ:
E114: =+OTCHET!G600 -> Ц. ДИМИТРОВА | I114: =+OTCHET!G603 -> Д-Р ГЕОРГИ ПАЗДЕРОВ

Sheet OTCHET F (hidden)
A1: a | B1: b | C1: c | D1: d | E1: e | F1: f | G1: g | H1: h | I1: h | J1: h | K1: pub
K2: 1
K3: 1
K4: 1
K5: 1
K6: 1
B7: =OTCHET!B7 -> ОТЧЕТНИ ДАННИ ПО ЕБК ЗА ИЗПЪЛНЕНИЕТО НА БЮДЖЕТА | K7: 1
E8: за периода от | F8: до | K8: 1
B9: =OTCHET!B9 -> РЕГИОНАЛНА ЗДРАВНА ИНСПЕКЦИЯ-БУРГАС | E9: =OTCHET!$E9 -> 2021-01-01 | F9: =OTCHET!$F9 -> 2021-12-31 | K9: 1
B10: =OTCHET!B10 -> (наименование на разпоредителя с бюджет) | F10: =OTCHET!$F10 -> 0 | K10: 1
K11: 1
B12: =OTCHET!B12 ->  | E12: код : | F12: =OTCHET!$F12 -> 0 | K12: 1
B13: =OTCHET!B13 -> (наименование на първостепенния разпоредител с бюджет) | E13: (по ЕБК) | K13: 1
K14: 1
K15: 1
K16: 1
K17: 1
J18: (в лева) | K18: 1
C19: I. ПРИХОДИ | E19: Уточнен план | F19: Отчет | K19: 1
B20: §§ | C20: (параграфи от ЕБК) | E20: 2017 | F20: Общо | G20: левови сметки | H20: валутни сметки | I20: Касови операции в лева и валута | J20: Приравнени некасови операции | K20: 1
C21: 0 1 ¦ | E21: (1) | F21: (2) | G21: (3) | H21: (4) | I21: (5) | J21: (6) | K21: 1
A22: 5 | B22: 01-00 | C22: Данък върху доходите на физически лица: | E22: =OTCHET!$E22 -> 0 | F22: =OTCHET!$F22 -> 0 | G22: =OTCHET!$G22 -> 0 | H22: =OTCHET!$H22 -> 0 | I22: =OTCHET!$I22 -> 0 | J22: =OTCHET!$J22 -> 0 | K22: =(IF(E22<>0,$K$2,IF(F22<>0,$K$2,""))) -> 
A23: 25 | B23: 02-00 | C23: Корпоративен данък: | E23: =OTCHET!$E28 -> 0 | F23: =OTCHET!$F28 -> 0 | G23: =OTCHET!$G28 -> 0 | H23: =OTCHET!$H28 -> 0 | I23: =OTCHET!$I28 -> 0 | J23: =OTCHET!$J28 -> 0
A24: 50 | B24: 04-00 | C24: Данъци върху дивидентите, ликвидационните дялове и доходите на местни и чуждестранни лица: | E24: =OTCHET!$E33 -> 0 | F24: =OTCHET!$F33 -> 0 | G24: =OTCHET!$G33 -> 0 | H24: =OTCHET!$H33 -> 0 | I24: =OTCHET!$I33 -> 0 | J24: =OTCHET!$J33 -> 0
A25: 65 | B25: 08-00 | C25: Осигурителни вноски | E25: =OTCHET!$E39 -> 0 | F25: =OTCHET!$F39 -> 0 | G25: =OTCHET!$G39 -> 0 | H25: =OTCHET!$H39 -> 0 | I25: =OTCHET!$I39 -> 0 | J25: =OTCHET!$J39 -> 0
A26: 95 | B26: 10-00 | C26: Здравно-осигурителни вноски | E26: =OTCHET!$E47 -> 0 | F26: =OTCHET!$F47 -> 0 | G26: =OTCHET!$G47 -> 0 | H26: =OTCHET!$H47 -> 0 | I26: =OTCHET!$I47 -> 0 | J26: =OTCHET!$J47 -> 0
A27: 130 | B27: 13-00 | C27: Имуществени данъци : | E27: =OTCHET!$E52 -> 0 | F27: =OTCHET!$F52 -> 0 | G27: =OTCHET!$G52 -> 0 | H27: =OTCHET!$H52 -> 0 | I27: =OTCHET!$I52 -> 0 | J27: =OTCHET!$J52 -> 0
A28: 160 | B28: 14-00 | C28: Данък върху добавената стойност | E28: =OTCHET!$E58 -> 0 | F28: =OTCHET!$F58 -> 0 | G28: =OTCHET!$G58 -> 0 | H28: =OTCHET!$H58 -> 0 | I28: =OTCHET!$I58 -> 0 | J28: =OTCHET!$J58 -> 0
A29: 175 | B29: 15-00 | C29: Акцизи | E29: =OTCHET!$E61 -> 0 | F29: =OTCHET!$F61 -> 0 | G29: =OTCHET!$G61 -> 0 | H29: =OTCHET!$H61 -> 0 | I29: =OTCHET!$I61 -> 0 | J29: =OTCHET!$J61 -> 0
B30: 16-00 | C30: Данък върху застрахователните премии | E30: =OTCHET!$E64 -> 0 | F30: =OTCHET!$F64 -> 0 | G30: =OTCHET!$G64 -> 0 | H30: =OTCHET!$H64 -> 0 | I30: =OTCHET!$I64 -> 0 | J30: =OTCHET!$J64 -> 0
A31: 200 | B31: 17-00 | C31: Други данъци по Закона за корпоративното подоходно облагане: | E31: =OTCHET!$E65 -> 0 | F31: =OTCHET!$F65 -> 0 | G31: =OTCHET!$G65 -> 0 | H31: =OTCHET!$H65 -> 0 | I31: =OTCHET!$I65 -> 0 | J31: =OTCHET!$J65 -> 0
A32: 231 | B32: 18-00 | C32: Такси върху производството на захар и изоглюкоза | E32: =OTCHET!#REF! ->  | F32: =OTCHET!#REF! ->  | G32: =OTCHET!#REF! ->  | H32: =OTCHET!#REF! ->  | I32: =OTCHET!#REF! ->  | J32: =OTCHET!#REF! -> 
A33: 235 | B33: 19-00 | C33: Мита и митнически такси: | E33: =OTCHET!$E72 -> 0 | F33: =OTCHET!$F72 -> 0 | G33: =OTCHET!$G72 -> 0 | H33: =OTCHET!$H72 -> 0 | I33: =OTCHET!$I72 -> 0 | J33: =OTCHET!$J72 -> 0
A34: 255 | B34: 20-00 | C34: Други данъци | E34: =OTCHET!$E73 -> 0 | F34: =OTCHET!$F73 -> 0 | G34: =OTCHET!$G73 -> 0 | H34: =OTCHET!$H73 -> 0 | I34: =OTCHET!$I73 -> 0 | J34: =OTCHET!$J73 -> 0
A35: 265 | B35: 24-00 | C35: Приходи и доходи от собственост | E35: =OTCHET!$E74 -> 0 | F35: =OTCHET!$F74 -> 1,383 | G35: =OTCHET!$G74 -> 1,383 | H35: =OTCHET!$H74 -> 0 | I35: =OTCHET!$I74 -> 0 | J35: =OTCHET!$J74 -> 0 | K35: 1
A36: 350 | B36: 25-00 | C36: Държавни такси | E36: =OTCHET!$E90 -> 280,000 | F36: =OTCHET!$F90 -> 202,525 | G36: =OTCHET!$G90 -> 89,653 | H36: =OTCHET!$H90 -> 0 | I36: =OTCHET!$I90 -> 112,872 | J36: =OTCHET!$J90 -> 0 | K36: 1
A37: 360 | B37: 26-00 | C37: Съдебни такси | E37: =OTCHET!$E93 -> 0 | F37: =OTCHET!$F93 -> 0 | G37: =OTCHET!$G93 -> 0 | H37: =OTCHET!$H93 -> 0 | I37: =OTCHET!$I93 -> 0 | J37: =OTCHET!$J93 -> 0
A38: 370 | B38: 27-00 | C38: Общински такси | E38: =OTCHET!$E94 -> 0 | F38: =OTCHET!$F94 -> 0 | G38: =OTCHET!$G94 -> 0 | H38: =OTCHET!$H94 -> 0 | I38: =OTCHET!$I94 -> 0 | J38: =OTCHET!$J94 -> 0
A39: 445 | B39: 28-00 | C39: Глоби, санкции и наказателни лихви | E39: =OTCHET!$E108 -> 50,000 | F39: =OTCHET!$F108 -> 31,836 | G39: =OTCHET!$G108 -> 27,136 | H39: =OTCHET!$H108 -> 0 | I39: =OTCHET!$I108 -> 4,700 | J39: =OTCHET!$J108 -> 0 | K39: 1
A40: 470 | B40: 36-00 | C40: Други неданъчни приходи | E40: =OTCHET!$E112 -> 0 | F40: =OTCHET!$F112 -> -10,921 | G40: =OTCHET!$G112 -> -11,281 | H40: =OTCHET!$H112 -> 0 | I40: =OTCHET!$I112 -> 360 | J40: =OTCHET!$J112 -> 0 | K40: 1
A41: 495 | B41: 37-00 | C41: Внесени ДДС и други данъци върху продажбите | E41: =OTCHET!$E121 -> 0 | F41: =OTCHET!$F121 -> -42 | G41: =OTCHET!$G121 -> -42 | H41: =OTCHET!$H121 -> 0 | I41: =OTCHET!$I121 -> 0 | J41: =OTCHET!$J121 -> 0 | K41: 1
A42: 515 | B42: 40-00 | C42: Постъпления от продажба на нефинансови активи (без 40-71) | E42: =OTCHET!$E125 -> 0 | F42: =OTCHET!$F125 -> 57,340 | G42: =OTCHET!$G125 -> 57,340 | H42: =OTCHET!$H125 -> 0 | I42: =OTCHET!$I125 -> 0 | J42: =OTCHET!$J125 -> 0 | K42: 1
A43: 540 | B43: 41-00 | C43: Приходи от концесии | E43: =OTCHET!$E137 -> 0 | F43: =OTCHET!$F137 -> 0 | G43: =OTCHET!$G137 -> 0 | H43: =OTCHET!$H137 -> 0 | I43: =OTCHET!$I137 -> 0 | J43: =OTCHET!$J137 -> 0
A44: 550 | B44: 42-00 | C44: Приходи от лицензии за ползване на държавни/общински активи | E44: =OTCHET!$E138 -> 0 | F44: =OTCHET!$F138 -> 0 | G44: =OTCHET!$G138 -> 0 | H44: =OTCHET!$H138 -> 0 | I44: =OTCHET!$I138 -> 0 | J44: =OTCHET!$J138 -> 0
A45: 560 | B45: 45-00 | C45: Помощи и дарения от страната | E45: =OTCHET!$E139 -> 0 | F45: =OTCHET!$F139 -> 0 | G45: =OTCHET!$G139 -> 0 | H45: =OTCHET!$H139 -> 0 | I45: =OTCHET!$I139 -> 0 | J45: =OTCHET!$J139 -> 0
A46: 575 | B46: 46-00 | C46: Помощи и дарения от чужбина | E46: =OTCHET!$E142 -> 0 | F46: =OTCHET!$F142 -> 0 | G46: =OTCHET!$G142 -> 0 | H46: =OTCHET!$H142 -> 0 | I46: =OTCHET!$I142 -> 0 | J46: =OTCHET!$J142 -> 0
A47: 575 | B47: 47-00 | C47: Получени чрез небюджетни предприятия средства от КФП по международни и други програми | E47: =OTCHET!$E944 -> 0 | F47: =OTCHET!$F151 -> 0 | G47: =OTCHET!$G151 -> 0 | H47: =OTCHET!$H151 -> 0 | I47: =OTCHET!$I151 -> 0 | J47: =OTCHET!$J151 -> 0
A48: 575 | B48: 48-00 | C48: Разпределени към администратори от чужбина средства по международни програми и договори (-) | E48: =OTCHET!$E160 -> 0 | F48: =OTCHET!$F160 -> 0 | G48: =OTCHET!$G160 -> 0 | H48: =OTCHET!$H160 -> 0 | I48: =OTCHET!$I160 -> 0 | J48: =OTCHET!$J160 -> 0
A49: 620 | D49: I. ОБЩО ПРИХОДИ | E49: =OTCHET!$E169 -> 330,000 | F49: =OTCHET!$F169 -> 282,121 | G49: =OTCHET!$G169 -> 164,189 | H49: =OTCHET!$H169 -> 0 | I49: =OTCHET!$I169 -> 117,932 | J49: =OTCHET!$J169 -> 0 | K49: 1
K50: 1
K51: 1
K52: 1
K53: 1
B54: =$B$7 -> ОТЧЕТНИ ДАННИ ПО ЕБК ЗА ИЗПЪЛНЕНИЕТО НА БЮДЖЕТА | K54: 1
E55: за периода от | F55: до | K55: 1
B56: =$B$9 -> РЕГИОНАЛНА ЗДРАВНА ИНСПЕКЦИЯ-БУРГАС | E56: =$E$9 -> 2021-01-01 | F56: =$F$9 -> 2021-12-31 | K56: 1
B57: =$B$10 -> (наименование на разпоредителя с бюджет) | F57: =$F$10 -> 0 | K57: 1
K58: 1
B59: =$B$12 ->  | E59: код : | F59: =$F$12 -> 0 | K59: 1
B60: =$B$13 -> (наименование на първостепенния разпоредител с бюджет) | E60: (по ЕБК) | K60: 1
K61: 1
J62: (в лева) | K62: 1
C63: II. РАЗХОДИ | E63: Уточнен план | F63: Отчет | K63: 1 | L63: Прогнозен размер на ан-гажиментите за поемане през 2018 г. | M63: Прогнозен размер на ан-гажиментите за поемане през 2019 г. | N63: Прогнозен размер на ан-гажиментите за поемане през 2020 г. | O63: Прогнозен размер на ан-гажиментите за поемане през 2021 г.
B64: §§ | C64: (параграфи по ЕБК) | E64: 2017 | F64: Общо | G64: левови сметки | H64: валутни сметки | I64: Касови операции в лева и валута | J64: Приравнени некасови операции | K64: 1
C65: 02 ¦ | E65: (1) | F65: (2) | G65: (3) | H65: (4) | I65: (5) | J65: (6) | K65: 1
A66: 5 | B66: 01-00 | C66: Заплати и възнаграждения за персонала, нает по трудови и служебни правоотношения | E66: =OTCHET!$E187 -> 2,675,845 | F66: =OTCHET!$F187 -> 2,656,411 | G66: =OTCHET!$G187 -> 2,350,183 | H66: =OTCHET!$H187 -> 0 | I66: =OTCHET!$I187 -> -2,334 | J66: =OTCHET!$J187 -> 308,562 | K66: =(IF(E66<>0,$K$2,IF(F66<>0,$K$2,""))) -> 1
A67: 35 | B67: 02-00 | C67: Други възнаграждения и плащания за персонала | E67: =OTCHET!$E190 -> 131,557 | F67: =OTCHET!$F190 -> 145,390 | G67: =OTCHET!$G190 -> 132,920 | H67: =OTCHET!$H190 -> 0 | I67: =OTCHET!$I190 -> 0 | J67: =OTCHET!$J190 -> 12,470 | K67: 1
A68: 65 | B68: 05-00 | C68: Задължителни осигурителни вноски от работодатели | E68: =OTCHET!$E196 -> 755,656 | F68: =OTCHET!$F196 -> 751,633 | G68: =OTCHET!$G196 -> 0 | H68: =OTCHET!$H196 -> 0 | I68: =OTCHET!$I196 -> 0 | J68: =OTCHET!$J196 -> 751,633 | K68: 1
A69: 115 | B69: 08-00 | C69: Вноски за доброволно осигуряване | E69: =OTCHET!$E204 -> 0 | F69: =OTCHET!$F204 -> 0 | G69: =OTCHET!$G204 -> 0 | H69: =OTCHET!$H204 -> 0 | I69: =OTCHET!$I204 -> 0 | J69: =OTCHET!$J204 -> 0
A70: 125 | B70: 10-00 | C70: Издръжка | E70: =OTCHET!$E205 -> 700,365 | F70: =OTCHET!$F205 -> 723,164 | G70: =OTCHET!$G205 -> 714,018 | H70: =OTCHET!$H205 -> 0 | I70: =OTCHET!$I205 -> 9,146 | J70: =OTCHET!$J205 -> 0 | K70: 1
A71: 220 | B71: 19-00 | C71: Платени данъци, такси и административни санкции | E71: =OTCHET!$E223 -> 14,198 | F71: =OTCHET!$F223 -> 14,586 | G71: =OTCHET!$G223 -> 13,117 | H71: =OTCHET!$H223 -> 0 | I71: =OTCHET!$I223 -> 1,469 | J71: =OTCHET!$J223 -> 0 | K71: 1
A72: 220 | B72: 21-00 | C72: Разходи за лихви по емисии на държавни (общински) ценни книжа | E72: =OTCHET!$E227 -> 0 | F72: =OTCHET!$F227 -> 0 | G72: =OTCHET!$G227 -> 0 | H72: =OTCHET!$H227 -> 0 | I72: =OTCHET!$I227 -> 0 | J72: =OTCHET!$J227 -> 0
A73: 250 | B73: 22-00 | C73: Разходи за лихви по заеми от страната | E73: =OTCHET!$E233 -> 0 | F73: =OTCHET!$F233 -> 0 | G73: =OTCHET!$G233 -> 0 | H73: =OTCHET!$H233 -> 0 | I73: =OTCHET!$I233 -> 0 | J73: =OTCHET!$J233 -> 0
A74: 270 | B74: 25-00 | C74: Разходи за лихви по заеми от други държави | E74: =OTCHET!$E236 -> 0 | F74: =OTCHET!$F236 -> 0 | G74: =OTCHET!$G236 -> 0 | H74: =OTCHET!$H236 -> 0 | I74: =OTCHET!$I236 -> 0 | J74: =OTCHET!$J236 -> 0
A75: 290 | B75: 26-00 | C75: Разходи за лихви по заеми от международни организации и институции | E75: =OTCHET!$E237 -> 0 | F75: =OTCHET!$F237 -> 0 | G75: =OTCHET!$G237 -> 0 | H75: =OTCHET!$H237 -> 0 | I75: =OTCHET!$I237 -> 0 | J75: =OTCHET!$J237 -> 0
A76: 320 | B76: 27-00 | C76: Разходи за лихви по заеми от банки и други финансови институции от чужбина | E76: =OTCHET!$E238 -> 0 | F76: =OTCHET!$F238 -> 0 | G76: =OTCHET!$G238 -> 0 | H76: =OTCHET!$H238 -> 0 | I76: =OTCHET!$I238 -> 0 | J76: =OTCHET!$J238 -> 0
A77: 330 | B77: 28-00 | C77: Разходи за лихви и отстъпки по облигации, емитирани и търгувани на международните капиталови пазари | E77: =OTCHET!$E239 -> 0 | F77: =OTCHET!$F239 -> 0 | G77: =OTCHET!$G239 -> 0 | H77: =OTCHET!$H239 -> 0 | I77: =OTCHET!$I239 -> 0 | J77: =OTCHET!$J239 -> 0
A78: 350 | B78: 29-00 | C78: Други разходи за лихви | E78: =OTCHET!$E240 -> 0 | F78: =OTCHET!$F240 -> 161 | G78: =OTCHET!$G240 -> 161 | H78: =OTCHET!$H240 -> 0 | I78: =OTCHET!$I240 -> 0 | J78: =OTCHET!$J240 -> 0 | K78: 1
A79: 397 | B79: 33-00 | C79: Вноска в бюджета на Европейския съюз | E79: =OTCHET!$E249 -> 0 | F79: =OTCHET!$F249 -> 0 | G79: =OTCHET!$G249 -> 0 | H79: =OTCHET!$H249 -> 0 | I79: =OTCHET!$I249 -> 0 | J79: =OTCHET!$J249 -> 0
A80: 404 | B80: 39-00 | C80: Здравно-осигурителни плащания | E80: =OTCHET!$E255 -> 0 | F80: =OTCHET!$F255 -> 0 | G80: =OTCHET!$G255 -> 0 | H80: =OTCHET!$H255 -> 0 | I80: =OTCHET!$I255 -> 0 | J80: =OTCHET!$J255 -> 0
A81: 440 | B81: 40-00 | C81: Стипендии | E81: =OTCHET!$E256 -> 0 | F81: =OTCHET!$F256 -> 0 | G81: =OTCHET!$G256 -> 0 | H81: =OTCHET!$H256 -> 0 | I81: =OTCHET!$I256 -> 0 | J81: =OTCHET!$J256 -> 0
A82: 450 | B82: 41-00 | C82: Пенсии | E82: =OTCHET!$E257 -> 0 | F82: =OTCHET!$F257 -> 0 | G82: =OTCHET!$G257 -> 0 | H82: =OTCHET!$H257 -> 0 | I82: =OTCHET!$I257 -> 0 | J82: =OTCHET!$J257 -> 0
A83: 495 | B83: 42-00 | C83: Текущи трансфери, обезщетения и помощи за домакинствата | E83: =OTCHET!$E258 -> 0 | F83: =OTCHET!$F258 -> 0 | G83: =OTCHET!$G258 -> 0 | H83: =OTCHET!$H258 -> 0 | I83: =OTCHET!$I258 -> 0 | J83: =OTCHET!$J258 -> 0
A84: 635 | B84: 43-00 | C84: Субсидии и други текущи трансфери за нефинансови предприятия | E84: =OTCHET!$E265 -> 0 | F84: =OTCHET!$F265 -> 0 | G84: =OTCHET!$G265 -> 0 | H84: =OTCHET!$H265 -> 0 | I84: =OTCHET!$I265 -> 0 | J84: =OTCHET!$J265 -> 0
A85: 655 | B85: 44-00 | C85: Субсидии и други текущи трансфери за финансови институции | E85: =OTCHET!$E269 -> 0 | F85: =OTCHET!$F269 -> 0 | G85: =OTCHET!$G269 -> 0 | H85: =OTCHET!$H269 -> 0 | I85: =OTCHET!$I269 -> 0 | J85: =OTCHET!$J269 -> 0
A86: 665 | B86: 45-00 | C86: Субсидии и други текущи трансфери на организации с нестопанска цел | E86: =OTCHET!$E270 -> 0 | F86: =OTCHET!$F270 -> 0 | G86: =OTCHET!$G270 -> 0 | H86: =OTCHET!$H270 -> 0 | I86: =OTCHET!$I270 -> 0 | J86: =OTCHET!$J270 -> 0
A87: 675 | B87: 46-00 | C87: Разходи за членски внос и участие в нетърговски организации и дейности | E87: =OTCHET!$E271 -> 0 | F87: =OTCHET!$F271 -> 0 | G87: =OTCHET!$G271 -> 0 | H87: =OTCHET!$H271 -> 0 | I87: =OTCHET!$I271 -> 0 | J87: =OTCHET!$J271 -> 0
A88: 685 | B88: 49-00 | C88: Предоставени текущи и капиталови трансфери за чужбина | E88: =OTCHET!$E272 -> 0 | F88: =OTCHET!$F272 -> 0 | G88: =OTCHET!$G272 -> 0 | H88: =OTCHET!$H272 -> 0 | I88: =OTCHET!$I272 -> 0 | J88: =OTCHET!$J272 -> 0
A89: 700 | B89: 51-00 | C89: Основен ремонт на дълготрайни материални активи | E89: =OTCHET!$E275 -> 0 | F89: =OTCHET!$F275 -> 0 | G89: =OTCHET!$G275 -> 0 | H89: =OTCHET!$H275 -> 0 | I89: =OTCHET!$I275 -> 0 | J89: =OTCHET!$J275 -> 0
A90: 710 | B90: 52-00 | C90: Придобиване на дълготрайни материални активи | E90: =OTCHET!$E276 -> 244,231 | F90: =OTCHET!$F276 -> 214,631 | G90: =OTCHET!$G276 -> 214,631 | H90: =OTCHET!$H276 -> 0 | I90: =OTCHET!$I276 -> 0 | J90: =OTCHET!$J276 -> 0 | K90: 1
A91: 750 | B91: 53-00 | C91: Придобиване на нематериални дълготрайни активи | E91: =OTCHET!$E284 -> 0 | F91: =OTCHET!$F284 -> 0 | G91: =OTCHET!$G284 -> 0 | H91: =OTCHET!$H284 -> 0 | I91: =OTCHET!$I284 -> 0 | J91: =OTCHET!$J284 -> 0
A92: 765 | B92: 54-00 | C92: Придобиване на земя | E92: =OTCHET!$E287 -> 0 | F92: =OTCHET!$F287 -> 0 | G92: =OTCHET!$G287 -> 0 | H92: =OTCHET!$H287 -> 0 | I92: =OTCHET!$I287 -> 0 | J92: =OTCHET!$J287 -> 0
A93: 775 | B93: 55-00 | C93: Капиталови трансфери | E93: =OTCHET!$E288 -> 0 | F93: =OTCHET!$F288 -> 0 | G93: =OTCHET!$G288 -> 0 | H93: =OTCHET!$H288 -> 0 | I93: =OTCHET!$I288 -> 0 | J93: =OTCHET!$J288 -> 0
A94: 805 | B94: 57-00 | C94: Прираст на държавния резерв и изкупуване на земеделска продукция (включва и 40-71) | E94: =OTCHET!$E293 -> 0 | F94: =OTCHET!$F293 -> 0 | G94: =OTCHET!$G293 -> 0 | H94: =OTCHET!$H293 -> 0 | I94: =OTCHET!$I293 -> 0 | J94: =OTCHET!$J293 -> 0
A95: 820 | B95: 00-98 | C95: Резерв за непредвидени и неотложни разходи | E95: =OTCHET!$E297 -> 0 | F95: =OTCHET!$F297 -> 0 | G95: =OTCHET!$G297 -> 0 | H95: =OTCHET!$H297 -> 0 | I95: =OTCHET!$I297 -> 0 | J95: =OTCHET!$J297 -> 0
A96: 825 | C96: II. ОБЩО РАЗХОДИ РЕКАПИТУЛАЦИЯ | E96: =OTCHET!$E301 -> 4,521,852 | F96: =OTCHET!$F301 -> 4,505,976 | G96: =OTCHET!$G301 -> 3,425,030 | H96: =OTCHET!$H301 -> 0 | I96: =OTCHET!$I301 -> 8,281 | J96: =OTCHET!$J301 -> 1,072,665 | K96: 1 | L96: =SUM(L66:L95) -> 0 | M96: =SUM(M66:M95) -> 0 | N96: =SUM(N66:N95) -> 0 | O96: =SUM(O66:O95) -> 0
K97: 1
K98: 1
B99: =$B$7 -> ОТЧЕТНИ ДАННИ ПО ЕБК ЗА ИЗПЪЛНЕНИЕТО НА БЮДЖЕТА | K99: 1
E100: за периода от | F100: до | K100: 1
B101: =$B$9 -> РЕГИОНАЛНА ЗДРАВНА ИНСПЕКЦИЯ-БУРГАС | E101: =$E$9 -> 2021-01-01 | F101: =$F$9 -> 2021-12-31 | K101: 1
B102: =$B$10 -> (наименование на разпоредителя с бюджет) | F102: =$F$10 -> 0 | K102: 1
K103: 1
B104: =$B$12 ->  | E104: код : | F104: =$F$12 -> 0 | K104: 1
B105: =$B$13 -> (наименование на първостепенния разпоредител с бюджет) | E105: (по ЕБК) | K105: 1
K106: 1
J107: (в лева) | K107: 1
C108: IV ТРАНСФЕРИ - РЕКАПИТУЛАЦИЯ | E108: Уточнен план | F108: Отчет | K108: 1
B109: §§ | C109: (параграфи по ЕБК) | E109: 2017 | F109: Общо | G109: левови сметки | H109: валутни сметки | I109: Касови операции в лева и валута | J109: Приравнени некасови операции | K109: 1
A110: 1 | C110: 03 ¦ | E110: (1) | F110: (2) | G110: (3) | H110: (4) | I110: (5) | J110: (6) | K110: 1
A111: 2 | C111: А) ТРАНСФЕРИ | K111: 1
A112: 5 | B112: 30-00 | C112: Трансфери от ЦБ за други бюджети (нето) | E112: =OTCHET!$E361 -> 0 | F112: =OTCHET!$F361 -> 0 | G112: =OTCHET!$G361 -> 0 | H112: =OTCHET!$H361 -> 0 | I112: =OTCHET!$I361 -> 0 | J112: =OTCHET!$J361 -> 0 | K112: =(IF(E112<>0,$K$2,IF(F112<>0,$K$2,""))) -> 
A113: 70 | B113: 31-00 | C113: Трансфери между бюджета на бюджетната организация и ЦБ (нето) | E113: =OTCHET!$E375 -> 4,191,852 | F113: =OTCHET!$F375 -> 0 | G113: =OTCHET!$G375 -> 0 | H113: =OTCHET!$H375 -> 0 | I113: =OTCHET!$I375 -> 0 | J113: =OTCHET!$J375 -> 0 | K113: 1
A114: 115 | B114: 32-00 | C114: Предоставени субсидии от държавния бюджет за БАН и държавните висши училища (нето) | E114: =OTCHET!$E383 -> 0 | F114: =OTCHET!$F383 -> 0 | G114: =OTCHET!$G383 -> 0 | H114: =OTCHET!$H383 -> 0 | I114: =OTCHET!$I383 -> 0 | J114: =OTCHET!$J383 -> 0
A115: 145 | B115: 60-00 | C115: Трансфери между ЦБ и сметки за средствата от ЕС (нето) | E115: =OTCHET!$E388 -> 0 | F115: =OTCHET!$F388 -> 0 | G115: =OTCHET!$G388 -> 0 | H115: =OTCHET!$H388 -> 0 | I115: =OTCHET!$I388 -> 0 | J115: =OTCHET!$J388 -> 0
A116: 160 | B116: 61-00 | C116: Трансфери между бюджети (нето) | E116: =OTCHET!$E391 -> 0 | F116: =OTCHET!$F391 -> -285,292 | G116: =OTCHET!$G391 -> -285,292 | H116: =OTCHET!$H391 -> 0 | I116: =OTCHET!$I391 -> 0 | J116: =OTCHET!$J391 -> 0 | K116: 1
A117: 185 | B117: 62-00 | C117: Трансфери между бюджети и сметки за средствата от ЕС (нето) | E117: =OTCHET!$E396 -> 0 | F117: =OTCHET!$F396 -> 0 | G117: =OTCHET!$G396 -> 0 | H117: =OTCHET!$H396 -> 0 | I117: =OTCHET!$I396 -> 0 | J117: =OTCHET!$J396 -> 0
A118: 200 | B118: 63-00 | C118: Трансфери между сметки за средствата от ЕС (нето) | E118: =OTCHET!$E399 -> 0 | F118: =OTCHET!$F399 -> 0 | G118: =OTCHET!$G399 -> 0 | H118: =OTCHET!$H399 -> 0 | I118: =OTCHET!$I399 -> 0 | J118: =OTCHET!$J399 -> 0
A119: 210 | B119: 64-00 | C119: Трансфери от/за държавни предприятия и други лица, включени в консолидираната фискална програма | E119: =OTCHET!$E402 -> 0 | F119: =OTCHET!$F402 -> 0 | G119: =OTCHET!$G402 -> 0 | H119: =OTCHET!$H402 -> 0 | I119: =OTCHET!$I402 -> 0 | J119: =OTCHET!$J402 -> 0
A120: 213 | B120: 65-00 | C120: Трансфери на отчислени пoстъпления | E120: =OTCHET!$E405 -> 0 | F120: =OTCHET!$F405 -> 0 | G120: =OTCHET!$G405 -> 0 | H120: =OTCHET!$H405 -> 0 | I120: =OTCHET!$I405 -> 0 | J120: =OTCHET!$J405 -> 0
A121: 215 | B121: 66-00 | C121: Разчети за извършени плащания в СЕБРА (+/-) | E121: =OTCHET!$E406 -> 0 | F121: =OTCHET!$F406 -> 3,433,354 | G121: =OTCHET!$G406 -> 3,433,354 | H121: =OTCHET!$H406 -> 0 | I121: =OTCHET!$I406 -> 0 | J121: =OTCHET!$J406 -> 0 | K121: 1
A122: 215 | B122: 67-00 | C122: Трансфери от/за сметки за чужди средства | E122: =OTCHET!$E409 -> 0 | F122: =OTCHET!$F409 -> 0 | G122: =OTCHET!$G409 -> 0 | H122: =OTCHET!$H409 -> 0 | I122: =OTCHET!$I409 -> 0 | J122: =OTCHET!$J409 -> 0
A123: 230 | B123: 69-00 | C123: Трансфери за поети осигурителни вноски и данъци | E123: =OTCHET!$E412 -> 0 | F123: =OTCHET!$F412 -> 1,072,665 | G123: =OTCHET!$G412 -> 0 | H123: =OTCHET!$H412 -> 0 | I123: =OTCHET!$I412 -> 0 | J123: =OTCHET!$J412 -> 1,072,665 | K123: 1
A124: 260 | C124: III. ОБЩО | E124: =OTCHET!$E419 -> 4,191,852 | F124: =OTCHET!$F419 -> 4,220,727 | G124: =OTCHET!$G419 -> 3,148,062 | H124: =OTCHET!$H419 -> 0 | I124: =OTCHET!$I419 -> 0 | J124: =OTCHET!$J419 -> 1,072,665 | K124: 1
A125: 261 | C125: 04 ¦ | K125: 1
A126: 262 | B126: §§ | C126: В) ВРЕМЕННИ БЕЗЛИХВЕНИ ЗАЕМИ МЕЖДУ ЦЕНТРАЛНИЯ БЮДЖЕТ, БЮДЖЕТНИ СМЕТКИ И ИЗВЪНБЮДЖЕТНИ ФОНДОВЕ И СМЕТКИ | K126: 1
A127: 265 | B127: 74-00 | C127: Получени/предоставени временни безлихвени заеми от/за ЦБ (нето) | E127: =OTCHET!$E422 -> 0 | F127: =OTCHET!$F422 -> 0 | G127: =OTCHET!$G422 -> 0 | H127: =OTCHET!$H422 -> 0 | I127: =OTCHET!$I422 -> 0 | J127: =OTCHET!$J422 -> 0 | K127: =(IF(E127<>0,$K$2,IF(F127<>0,$K$2,""))) -> 
A128: 275 | B128: 75-00 | C128: Временни безлихвени заеми между бюджетни сметки (нето) | E128: =OTCHET!$E423 -> 0 | F128: =OTCHET!$F423 -> 0 | G128: =OTCHET!$G423 -> 0 | H128: =OTCHET!$H423 -> 0 | I128: =OTCHET!$I423 -> 0 | J128: =OTCHET!$J423 -> 0 | K128: =(IF(E128<>0,$K$2,IF(F128<>0,$K$2,""))) -> 
A129: 285 | B129: 76-00 | C129: Временни безлихвени заеми между бюджети и сметки за средствата от ЕС (нето) | E129: =OTCHET!$E424 -> 0 | F129: =OTCHET!$F424 -> 0 | G129: =OTCHET!$G424 -> 0 | H129: =OTCHET!$H424 -> 0 | I129: =OTCHET!$I424 -> 0 | J129: =OTCHET!$J424 -> 0 | K129: =(IF(E129<>0,$K$2,IF(F129<>0,$K$2,""))) -> 
A130: 295 | B130: 77-00 | C130: Временни безлихвени заеми между сметки за средствата от ЕС (нето) | E130: =OTCHET!$E425 -> 0 | F130: =OTCHET!$F425 -> 0 | G130: =OTCHET!$G425 -> 0 | H130: =OTCHET!$H425 -> 0 | I130: =OTCHET!$I425 -> 0 | J130: =OTCHET!$J425 -> 0 | K130: =(IF(E130<>0,$K$2,IF(F130<>0,$K$2,""))) -> 
A131: 305 | B131: 78-00 | C131: Временни безлихвени заеми от/за държавни предприятия и други сметки, включени в консолидираната фискална програма (нето) | E131: =OTCHET!$E426 -> 0 | F131: =OTCHET!$F426 -> 0 | G131: =OTCHET!$G426 -> 0 | H131: =OTCHET!$H426 -> 0 | I131: =OTCHET!$I426 -> 0 | J131: =OTCHET!$J426 -> 0 | K131: =(IF(E131<>0,$K$2,IF(F131<>0,$K$2,""))) -> 
A132: 315 | C132: IV. ОБЩО | E132: =OTCHET!$E429 -> 0 | F132: =OTCHET!$F429 -> 0 | G132: =OTCHET!$G429 -> 0 | H132: =OTCHET!$H429 -> 0 | I132: =OTCHET!$I429 -> 0 | J132: =OTCHET!$J429 -> 0 | K132: 1
K133: 1
K134: 1
K135: 1
B136: =$B$7 -> ОТЧЕТНИ ДАННИ ПО ЕБК ЗА ИЗПЪЛНЕНИЕТО НА БЮДЖЕТА | K136: 1
E137: за периода от | F137: до | K137: 1
B138: =$B$9 -> РЕГИОНАЛНА ЗДРАВНА ИНСПЕКЦИЯ-БУРГАС | E138: =$E$9 -> 2021-01-01 | F138: =$F$9 -> 2021-12-31 | K138: 1
B139: =$B$10 -> (наименование на разпоредителя с бюджет) | F139: =$F$10 -> 0 | K139: 1
K140: 1
B141: =$B$12 ->  | E141: код : | F141: =$F$12 -> 0 | K141: 1
B142: =$B$13 -> (наименование на първостепенния разпоредител с бюджет) | E142: (по ЕБК) | K142: 1
K143: 1
J144: (в лева) | K144: 1
D145: V. БЮДЖЕТНО САЛДО (ДЕФИЦИТ / ИЗЛИШЪК) = | E145: Уточнен план | F145: Отчет | K145: 1
D146: = I.(раздел)-II.(раздел=рекапитулацията от всички дейности)+III.(раздел=рекапитулация от всички трансфери) | E146: 2017 | F146: Общо | G146: левови сметки | H146: валутни сметки | I146: Касови операции в лева и валута | J146: Приравнени некасови операции | K146: 1
D147: 0 5 ¦ | E147: (1) | F147: (2) | G147: (3) | H147: (4) | I147: (5) | J147: (6) | K147: 1
E148: =+E49-E96+E124+E132 -> 0 | F148: -3,128 | G148: -112,779 | H148: 0 | I148: 109,651 | J148: 0 | K148: 1
K149: 1
K150: 1
K151: 1
B152: =$B$7 -> ОТЧЕТНИ ДАННИ ПО ЕБК ЗА ИЗПЪЛНЕНИЕТО НА БЮДЖЕТА | K152: 1
E153: за периода от | F153: до | K153: 1
B154: =$B$9 -> РЕГИОНАЛНА ЗДРАВНА ИНСПЕКЦИЯ-БУРГАС | E154: =$E$9 -> 2021-01-01 | F154: =$F$9 -> 2021-12-31 | K154: 1
B155: =$B$10 -> (наименование на разпоредителя с бюджет) | F155: =$F$10 -> 0 | K155: 1
K156: 1
B157: =$B$12 ->  | E157: код : | F157: =$F$12 -> 0 | K157: 1
B158: =$B$13 -> (наименование на първостепенния разпоредител с бюджет) | E158: (по ЕБК) | K158: 1
K159: 1
J160: (в лева) | K160: 1
C161: VI. ОПЕРАЦИИ С ФИНАНСОВИ АКТИВИ И ПАСИВИ - ПОЗИЦИИ | E161: Уточнен план | F161: Отчет | K161: 1
B162: §§ | C162: (параграфи по ЕБК) | E162: 2017 | F162: Общо | G162: левови сметки | H162: валутни сметки | I162: Касови операции в лева и валута | J162: Приравнени некасови операции | K162: 1
A163: 1 | C163: 0 6 ¦ | E163: (1) | F163: (2) | G163: (3) | H163: (4) | I163: (5) | J163: (6) | K163: 1
A164: 5 | B164: 70-00 | C164: Придобиване на дялове, акции и съучастия (нето) | E164: =OTCHET!$E461 -> 0 | F164: =OTCHET!$F461 -> 0 | G164: =OTCHET!$G461 -> 0 | H164: =OTCHET!$H461 -> 0 | I164: =OTCHET!$I461 -> 0 | J164: =OTCHET!$J461 -> 0 | K164: =(IF(E164<>0,$K$2,IF(F164<>0,$K$2,""))) -> 
A165: 30 | B165: 71-00 | C165: Предоставени кредити (нето) | E165: =OTCHET!$E465 -> 0 | F165: =OTCHET!$F465 -> 0 | G165: =OTCHET!$G465 -> 0 | H165: =OTCHET!$H465 -> 0 | I165: =OTCHET!$I465 -> 0 | J165: =OTCHET!$J465 -> 0
A166: 45 | B166: 72-00 | C166: Предоставена възмездна финансова помощ (нето) | E166: =OTCHET!$E468 -> 0 | F166: =OTCHET!$F468 -> 0 | G166: =OTCHET!$G468 -> 0 | H166: =OTCHET!$H468 -> 0 | I166: =OTCHET!$I468 -> 0 | J166: =OTCHET!$J468 -> 0
A167: 60 | B167: 73-00 | C167: Плащания по активирани гаранции, поръчителства и преоформен държавен дълг (нето) | E167: =OTCHET!$E471 -> 0 | F167: =OTCHET!$F471 -> 0 | G167: =OTCHET!$G471 -> 0 | H167: =OTCHET!$H471 -> 0 | I167: =OTCHET!$I471 -> 0 | J167: =OTCHET!$J471 -> 0
A168: 110 | B168: 79-00 | C168: Предоставени заеми към крайни бенефициенти по държавни инвестиционни заеми (нето) | E168: =OTCHET!$E478 -> 0 | F168: =OTCHET!$F478 -> 0 | G168: =OTCHET!$G478 -> 0 | H168: =OTCHET!$H478 -> 0 | I168: =OTCHET!$I478 -> 0 | J168: =OTCHET!$J478 -> 0
A169: 125 | B169: 80-00 | C169: Заеми от чужбина - нето (+/-) | E169: =OTCHET!$E481 -> 0 | F169: =OTCHET!$F481 -> 0 | G169: =OTCHET!$G481 -> 0 | H169: =OTCHET!$H481 -> 0 | I169: =OTCHET!$I481 -> 0 | J169: =OTCHET!$J481 -> 0
A170: 220 | B170: 81-00 | C170: Държавни (общински) ценни книжа емитирани на международните капиталови пазари - нето (+/-) | E170: =OTCHET!$E497 -> 0 | F170: =OTCHET!$F497 -> 0 | G170: =OTCHET!$G497 -> 0 | H170: =OTCHET!$H497 -> 0 | I170: =OTCHET!$I497 -> 0 | J170: =OTCHET!$J497 -> 0
A171: 245 | B171: 82-00 | C171: Получени погашения по предоставени кредити на други държави (+) | E171: =OTCHET!$E502 -> 0 | F171: =OTCHET!$F502 -> 0 | G171: =OTCHET!$G502 -> 0 | H171: =OTCHET!$H502 -> 0 | I171: =OTCHET!$I502 -> 0 | J171: =OTCHET!$J502 -> 0
A172: 255 | B172: 83-00 | C172: Заеми от банки и други лица в страната - нето (+/-) | E172: =OTCHET!$E503 -> 0 | F172: =OTCHET!$F503 -> 0 | G172: =OTCHET!$G503 -> 0 | H172: =OTCHET!$H503 -> 0 | I172: =OTCHET!$I503 -> 0 | J172: =OTCHET!$J503 -> 0
A173: 295 | B173: 85-00 | C173: Емисии на държавни (общински) ценни книжа (+) | E173: =OTCHET!$E512 -> 0 | F173: =OTCHET!$F512 -> 0 | G173: =OTCHET!$G512 -> 0 | H173: =OTCHET!$H512 -> 0 | I173: =OTCHET!$I512 -> 0 | J173: =OTCHET!$J512 -> 0
A174: 315 | B174: 86-00 | C174: Погашения на държавни (общински) ценни книжа (-) | E174: =OTCHET!$E516 -> 0 | F174: =OTCHET!$F516 -> 0 | G174: =OTCHET!$G516 -> 0 | H174: =OTCHET!$H516 -> 0 | I174: =OTCHET!$I516 -> 0 | J174: =OTCHET!$J516 -> 0
A175: 355 | B175: 87-00 | C175: Разчети между първостепенни разпоредители за централизация на средства и плащания в Себра | E175: =OTCHET!$E521 -> 0 | F175: =OTCHET!$F521 -> 0 | G175: =OTCHET!$G521 -> 0 | H175: =OTCHET!$H521 -> 0 | I175: =OTCHET!$I521 -> 0 | J175: =OTCHET!$J521 -> 0
A176: 355 | B176: 88-00 | C176: Събрани средства и извършени плащания за сметка на други бюджети, сметки и фондове - нето (+/-) | E176: =OTCHET!$E524 -> 0 | F176: =OTCHET!$F524 -> 0 | G176: =OTCHET!$G524 -> 0 | H176: =OTCHET!$H524 -> 0 | I176: =OTCHET!$I524 -> 0 | J176: =OTCHET!$J524 -> 0
A177: 375 | B177: 89-00 | C177: Суми по разчети за поети осигурителни вноски и данъци | E177: =OTCHET!$E531 -> 0 | F177: =OTCHET!$F531 -> 0 | G177: =OTCHET!$G531 -> 0 | H177: =OTCHET!$H531 -> 0 | I177: =OTCHET!$I531 -> 0 | J177: =OTCHET!$J531 -> 0
A178: 395 | B178: 90-00 | C178: Приватизация (+) | E178: =OTCHET!$E535 -> 0 | F178: =OTCHET!$F535 -> 0 | G178: =OTCHET!$G535 -> 0 | H178: =OTCHET!$H535 -> 0 | I178: =OTCHET!$I535 -> 0 | J178: =OTCHET!$J535 -> 0
A179: 405 | B179: 91-00 | C179: Покупко-продажба на държавни (общински) ценни книжа от бюджетни организации - нето (+/-) | E179: =OTCHET!$E536 -> 0 | F179: =OTCHET!$F536 -> 0 | G179: =OTCHET!$G536 -> 0 | H179: =OTCHET!$H536 -> 0 | I179: =OTCHET!$I536 -> 0 | J179: =OTCHET!$J536 -> 0
A180: 430 | B180: 92-00 | C180: Операции с други ценни книжа и финансови активи за управление на ликвидността - нето (+/-) | E180: =OTCHET!$E541 -> 0 | F180: =OTCHET!$F541 -> 0 | G180: =OTCHET!$G541 -> 0 | H180: =OTCHET!$H541 -> 0 | I180: =OTCHET!$I541 -> 0 | J180: =OTCHET!$J541 -> 0
A181: 445 | B181: 93-00 | C181: Друго финансиране - нето(+/-) | E181: =OTCHET!$E544 -> 0 | F181: =OTCHET!$F544 -> 3,128 | G181: =OTCHET!$G544 -> 3,329 | H181: =OTCHET!$H544 -> 0 | I181: =OTCHET!$I544 -> -201 | J181: =OTCHET!$J544 -> 0 | K181: 1
A182: 470 | B182: 95-00 | C182: Депозити и средства по сметки - нето (+/-) (този параграф се използва и за наличностите на ЦБ в БНБ) | E182: =OTCHET!$E566 -> 0 | F182: =OTCHET!$F566 -> 0 | G182: =OTCHET!$G566 -> 0 | H182: =OTCHET!$H566 -> 0 | I182: =OTCHET!$I566 -> 0 | J182: =OTCHET!$J566 -> 0
A183: 565 | B183: 96-00 | C183: Депозити и сметки консолидирани в системата на "Единната сметка"-нето (+/-) | E183: =OTCHET!$E586 -> 0 | F183: =OTCHET!$F586 -> 0 | G183: =OTCHET!$G586 -> 0 | H183: =OTCHET!$H586 -> 0 | I183: =OTCHET!$I586 -> 0 | J183: =OTCHET!$J586 -> 0
A184: 575 | B184: 98-00 | C184: Касови операции, депозити, покупко-продажба на валута и сетълмент операции | E184: =OTCHET!$E591 -> 0 | F184: =OTCHET!$F591 -> 0 | G184: =OTCHET!$G591 -> 109,450 | H184: =OTCHET!$H591 -> 0 | I184: =OTCHET!$I591 -> -109,450 | J184: =OTCHET!$J591 -> 0
A185: 610 | C185: VI. ОБЩО ОПЕРАЦИИ С ФИНАНСОВИ АКТИВИ И ПАСИВИ | E185: =OTCHET!$E597 -> 0 | F185: =OTCHET!$F597 -> 3,128 | G185: =OTCHET!$G597 -> 112,779 | H185: =OTCHET!$H597 -> 0 | I185: =OTCHET!$I597 -> -109,651 | J185: =OTCHET!$J597 -> 0 | K185: 1
K186: 1
K187: 1
K188: 1
B189: =$B$7 -> ОТЧЕТНИ ДАННИ ПО ЕБК ЗА ИЗПЪЛНЕНИЕТО НА БЮДЖЕТА | K189: 1
E190: за периода от | F190: до | K190: 1
B191: =$B$9 -> РЕГИОНАЛНА ЗДРАВНА ИНСПЕКЦИЯ-БУРГАС | E191: =$E$9 -> 2021-01-01 | F191: =$F$9 -> 2021-12-31 | K191: 1
B192: =$B$10 -> (наименование на разпоредителя с бюджет) | F192: =$F$10 -> 0 | K192: 1
K193: 1
B194: =$B$12 ->  | E194: код : | F194: =$F$12 -> 0 | K194: 1
B195: =$B$13 -> (наименование на първостепенния разпоредител с бюджет) | E195: (по ЕБК) | K195: 1
K196: 1
J197: (в лева) | K197: 1
B198: §§ | C198: РАЗПРЕДЕЛЕНИЕ НА РАЗХОДИТЕ ПО ФУНКЦИИ | E198: Уточнен план | F198: Отчет | K198: 1
E199: 2017 | F199: Общо | G199: левови сметки | H199: валутни сметки | I199: Касови операции в лева и валута | J199: Приравнени некасови операции | K199: 1
B200: I. | C200: ОБЩИ ДЪРЖАВНИ СЛУЖБИ | E200: =SUMIF(OTCHET!L:L,1,OTCHET!E:E) -> 0 | F200: =SUMIF(OTCHET!L:L,1,OTCHET!F:F) -> 0 | G200: =SUMIF(OTCHET!L:L,1,OTCHET!G:G) -> 0 | H200: =SUMIF(OTCHET!L:L,1,OTCHET!H:H) -> 0 | I200: =SUMIF(OTCHET!L:L,1,OTCHET!I:I) -> 0 | J200: =SUMIF(OTCHET!L:L,1,OTCHET!J:J) -> 0 | K200: 1
... 10 more rows

Sheet OTCHET
A1: a | B1: Бланка версия 1.01 от 2019г. | C1: c | D1: d | E1: e | F1: f | G1: f | H1: f | I1: f | J1: f | K1: endprint
A2: 2 | K2: 1
B3: година | C3: =YEAR(F9) -> 2021 | K3: 1
K4: 1
K5: 1
K6: 1
B7: =VLOOKUP(E15,SMETKA,2,FALSE) -> ОТЧЕТНИ ДАННИ ПО ЕБК ЗА ИЗПЪЛНЕНИЕТО НА БЮДЖЕТА | K7: 1
E8: за периода от | F8: до | H8: ЕИК/БУЛСТАТ | K8: 1
B9: РЕГИОНАЛНА ЗДРАВНА ИНСПЕКЦИЯ-БУРГАС | E9: 2021-01-01 | F9: 2021-12-31 | K9: 1
B10: (наименование на разпоредителя с бюджет) | I10: код от регистъра на бюджетните организации в СЕБРА | K10: 1
K11: 1
B12: =VLOOKUP(F12,PRBK,2,FALSE) ->  | E12: код по ЕБК: | F12: 0 | K12: 1
B13: (наименование на първостепенния разпоредител с бюджет) | K13: 1
K14: 1
D15: ФИНАНСОВО-ПРАВНА ФОРМА | E15: 0 | F15: =+IF(+E15=0,"БЮДЖЕТ",+IF(+E15=98,"СЕС - КСФ",+IF(+E15=42,"СЕС - РА",+IF(+E15=96,"СЕС - ДЕС",+IF(+E15=97,"СЕС - ДМП",+IF(+E15=33,"Чужди средства")))))) -> БЮДЖЕТ | K15: 1
K16: 1
K17: 1
J18: (в лева) | K18: 1
D19: I. П Р И Х О Д И, П О М О Щ И И Д А Р Е Н И Я | E19: Уточнен план | F19: О Т Ч Е Т Н И Д А Н Н И | K19: 1
B20: §§ | C20: под-§§ | D20: Н А И М Е Н О В А Н И Е | E20: =$C$3 -> 2021 | F20: ОБЩО | G20: левови сметки и СЕБРА | H20: валутни сметки | I20: операции в брой (в левове и валута) | J20: операции приравнени на касов поток | K20: 1
D21: 0 1 ¦ | E21: (1) | F21: (2) | G21: (3) | H21: (4) | I21: (5) | J21: (6) | K21: 1
A22: 5 | B22: 01-00 | C22: Данък върху доходите на физически лица: | E22: =SUM(E23:E27) -> 0 | F22: 0 | G22: 0 | H22: 0 | I22: 0 | J22: 0 | K22: =(IF($E22<>0,$K$2,IF($F22<>0,$K$2,IF($G22<>0,$K$2,IF($H22<>0,$K$2,IF($I22<>0,$K$2,IF($J22<>0,$K$2,""))))))) -> 
A23: 10 | C23: 01-01 | D23: за доходи по трудови, служебни и приравнени на тях правоотношения | E23: 0 | F23: =G23+H23+I23+J23 -> 0 | G23: 0
A24: 15 | C24: 01-02 | D24: за доходи на еднолични търговци, свободни професии, извънтрудови правоотношения и др. | E24: 0 | F24: =G24+H24+I24+J24 -> 0 | G24: 0
A25: 20 | C25: 01-03 | D25: патентен данък и данък върху таксиметров превоз на пътници | F25: =G25+H25+I25+J25 -> 0
A26: 20 | C26: 01-08 | D26: окончателен данък върху доходите от лихви по банкови сметки на местните физически лица | E26: 0 | F26: =G26+H26+I26+J26 -> 0 | G26: 0
A27: 21 | C27: 01-09 | D27: окончателен данък върху доходи на местни и чуждестранни физически лица по чл. 37 и 38 от ЗДДФЛ | E27: 0 | F27: =G27+H27+I27+J27 -> 0 | G27: 0
A28: 25 | B28: 02-00 | C28: Корпоративен данък: | E28: =SUM(E29:E32) -> 0 | F28: 0 | G28: 0 | H28: 0 | I28: 0 | J28: 0
A29: 30 | C29: 02-01 | D29: корпоративен данък от нефинансови предприятия | E29: 0 | F29: =G29+H29+I29+J29 -> 0 | G29: 0
A30: 35 | C30: 02-02 | D30: корпоративен данък от финансови институции | E30: 0 | F30: =G30+H30+I30+J30 -> 0 | G30: 0
A31: 40 | C31: 02-03 | D31: корпоративен данък от юридически лица с нестопанска цел | E31: 0 | F31: =G31+H31+I31+J31 -> 0 | G31: 0
A32: 45 | C32: 02-04 | D32: корпоративен данък от застрахователни дружества | E32: 0 | F32: =G32+H32+I32+J32 -> 0 | G32: 0
A33: 50 | B33: 04-00 | C33: Данъци върху дивидентите, ликвидационните дялове и доходите на местни и чуждестранни лица: | E33: =SUM(E34:E38) -> 0 | F33: 0 | G33: 0 | H33: 0 | I33: 0 | J33: 0
A34: 55 | C34: 04-01 | D34: данък върху дивидентите и ликвидационните дялове на местни юридически лица | E34: 0 | F34: =G34+H34+I34+J34 -> 0 | G34: 0
A35: 56 | C35: 04-02 | D35: данък върху дивидентите и ликвидационните дялове на бюджетни предприятия | E35: 0 | F35: =G35+H35+I35+J35 -> 0 | G35: 0
A36: 57 | C36: 04-03 | D36: данък върху дивидентите и ликвидационните дялове на чуждестрани юридически лица | E36: 0 | F36: =G36+H36+I36+J36 -> 0 | G36: 0
A37: 58 | C37: 04-04 | D37: данък при източника върху доходи на чуждестранни юридически лица | E37: 0 | F37: =G37+H37+I37+J37 -> 0 | G37: 0
A38: 59 | C38: 04-11 | D38: данък върху дивидентите и ликвидационните дялове на физически лица | E38: 0 | F38: =G38+H38+I38+J38 -> 0 | G38: 0
A39: 65 | B39: 08-00 | C39: Осигурителни вноски | E39: =SUM(E40:E46) -> 0 | F39: 0 | G39: 0 | H39: 0 | I39: 0 | J39: 0
A40: 70 | C40: 08-01 | D40: вноски за работници и служители от работодатели | E40: 0 | F40: =G40+H40+I40+J40 -> 0 | G40: 0
A41: 75 | C41: 08-02 | D41: вноски от работници и служители (лична вноска) | E41: 0 | F41: 0 | G41: 0 | H41: 0 | I41: 0 | J41: 0
A42: 80 | C42: 08-04 | D42: вноски от самонаети лица (самоосигуряващи се лица) | E42: 0 | F42: 0 | G42: 0
A43: 85 | C43: 08-09 | D43: вноски за други категории осигурени лица | E43: 0 | F43: 0 | G43: 0
A44: 85 | C44: 08-11 | D44: вноски по чл. 4б и 4в от КСО за сметка на осигурителя | E44: 0 | F44: 0 | G44: 0
A45: 85 | C45: 08-12 | D45: вноски по чл. 4б от КСО за сметка на осигурените лица | E45: 0 | F45: 0 | G45: 0
A46: 85 | C46: 08-14 | D46: вноски по чл. 4б от КСО от самонаети лица (самоосигуряващи се лица) | E46: 0 | F46: 0 | G46: 0
A47: 95 | B47: 10-00 | C47: Здравно-осигурителни вноски | E47: =SUM(E48:E51) -> 0 | F47: 0 | G47: 0 | H47: 0 | I47: 0 | J47: 0
A48: 100 | C48: 10-01 | D48: здравно-осигурителни вноски за работници и служители от работодатели | E48: 0 | F48: =G48+H48+I48+J48 -> 0 | G48: 0
A49: 105 | C49: 10-02 | D49: здравно-осигурителни вноски от работници и служители (лична вноска) | E49: 0 | F49: =G49+H49+I49+J49 -> 0 | G49: 0
A50: 110 | C50: 10-04 | D50: здравно-осигурителни вноски от самонаети (самоосигуряващи се лица) | E50: 0 | F50: =G50+H50+I50+J50 -> 0 | G50: 0
A51: 125 | C51: 10-07 | D51: здравно-осигур.вноски за други категории осигурени лица | E51: 0 | F51: =G51+H51+I51+J51 -> 0 | G51: 0
A52: 130 | B52: 13-00 | C52: Имуществени и други местни данъци : | E52: =SUM(E53:E57) -> 0 | F52: 0 | G52: 0 | H52: 0 | I52: 0 | J52: 0
A53: 135 | C53: 13-01 | D53: данък върху недвижими имоти | E53: 0 | F53: =G53+H53+I53+J53 -> 0 | G53: 0
A54: 140 | C54: 13-02 | D54: данък върху наследствата | E54: 0 | F54: =G54+H54+I54+J54 -> 0 | G54: 0
A55: 145 | C55: 13-03 | D55: данък върху превозните средства | E55: 0 | F55: =G55+H55+I55+J55 -> 0 | G55: 0
C56: 13-04 | D56: данък при придобиване на имущество по дарения и възмезден начин | E56: 0 | F56: =G56+H56+I56+J56 -> 0 | G56: 0
A57: 150 | C57: 13-08 | D57: туристически данък | E57: 0 | F57: =G57+H57+I57+J57 -> 0 | G57: 0
A58: 160 | B58: 14-00 | C58: Данък върху добавената стойност | E58: =SUM(E59:E60) -> 0 | F58: 0 | G58: 0 | H58: 0 | I58: 0 | J58: 0
A59: 165 | C59: 14-01 | D59: данък върху добавената стойност при сделки в страната | E59: 0 | F59: =G59+H59+I59+J59 -> 0 | G59: 0
A60: 170 | C60: 14-02 | D60: данък върху добавената стойност при внос | E60: 0 | F60: =G60+H60+I60+J60 -> 0 | G60: 0
A61: 175 | B61: 15-00 | C61: Акцизи | E61: =SUM(E62:E63) -> 0 | F61: 0 | G61: 0 | H61: 0 | I61: 0 | J61: 0
A62: 180 | C62: 15-01 | D62: акциз при сделки в страната | E62: 0 | F62: =G62+H62+I62+J62 -> 0 | G62: 0
A63: 185 | C63: 15-02 | D63: акциз при внос | E63: 0 | F63: =G63+H63+I63+J63 -> 0 | G63: 0
B64: 16-00 | C64: Данък върху застрахователните премии | F64: =G64+H64+I64+J64 -> 0
A65: 200 | B65: 17-00 | C65: Други данъци по Закона за корпоративното подоходно облагане: | E65: =SUM(E66:E71) -> 0 | F65: 0 | G65: 0 | H65: 0 | I65: 0 | J65: 0
A66: 205 | C66: 17-01 | D66: данък върху представителните разходи | E66: 0 | F66: =G66+H66+I66+J66 -> 0 | G66: 0
A67: 210 | C67: 17-02 | D67: данък върху разходи, предоставяни в натура | E67: 0 | F67: 0 | G67: 0
A68: 215 | C68: 17-03 | D68: данък върху разходите за превозни средства | E68: 0 | F68: 0 | G68: 0
A69: 225 | C69: 17-06 | D69: данък върху хазартната дейност | E69: 0 | F69: 0 | G69: 0
A70: 226 | C70: 17-07 | D70: данък върху дейността от опериране на кораби | E70: 0 | F70: 0 | G70: 0
A71: 227 | C71: 17-09 | D71: данък върху приходите на бюджетните предприятия | F71: 0
A72: 235 | B72: 19-00 | C72: Мита и митнически такси: | F72: 0
A73: 255 | B73: 20-00 | C73: Други данъци | F73: 0
A74: 265 | B74: 24-00 | C74: Приходи и доходи от собственост | E74: =SUM(E75:E89) -> 0 | F74: 1,383 | G74: 1,383 | H74: 0 | I74: 0 | J74: 0 | K74: 1
A75: 270 | C75: 24-01 | D75: вноски от приходи на държавни (общински) предприятия и институции | E75: 0 | F75: =G75+H75+I75+J75 -> 0 | G75: 0
A76: 280 | C76: 24-03 | D76: превишение на приходите над разходите на БНБ | E76: 0 | F76: 0 | G76: 0
A77: 285 | C77: 24-04 | D77: нетни приходи от продажби на услуги, стоки и продукция | E77: 0 | F77: 0 | G77: 0 | H77: 0 | I77: 0 | J77: 0
A78: 290 | C78: 24-05 | D78: приходи от наеми на имущество | E78: 0 | F78: 1,383 | G78: 1,383 | H78: 0 | I78: 0 | J78: 0 | K78: 1
A79: 295 | C79: 24-06 | D79: приходи от наеми на земя | E79: 0 | F79: 0 | G79: 0 | H79: 0 | I79: 0 | J79: 0
A80: 300 | C80: 24-07 | D80: приходи от дивиденти | E80: 0 | F80: 0 | G80: 0
A81: 305 | C81: 24-08 | D81: приходи от лихви по текущи банкови сметки | E81: 0 | F81: 0 | G81: 0 | H81: 0 | I81: 0 | J81: 0
A82: 310 | C82: 24-09 | D82: приходи от лихви по срочни депозити | E82: 0 | F82: 0 | G82: 0
A83: 315 | C83: 24-10 | D83: приходи от лихви по предоставени заеми в страната и чужбина | E83: 0 | F83: 0 | G83: 0
A84: 325 | C84: 24-12 | D84: приходи от лихви от предприятия по преоформен държавен дълг | E84: 0 | F84: 0 | G84: 0
A85: 330 | C85: 24-13 | D85: приходи от лихви и отстъпки от държавни и общински ценни книжа | E85: 0 | F85: 0 | G85: 0
A86: 335 | C86: 24-15 | D86: приходи от лихви и отстъпки от дългови ценни книжа на местни и чуждестранни лица | E86: 0 | F86: 0 | G86: 0
A87: 340 | C87: 24-17 | D87: приходи от лихви по заеми, предоставени на бюджетни организации | F87: =G87+H87+I87+J87 -> 0
A88: 340 | C88: 24-18 | D88: лихви по срочни депозити за сметка на централния бюджет (+/-) | E88: 0 | F88: 0 | G88: 0
A89: 345 | C89: 24-19 | D89: приходи от други лихви | E89: 0 | F89: 0 | G89: 0 | K89: =(IF($E89<>0,$K$2,IF($F89<>0,$K$2,IF($G89<>0,$K$2,IF($H89<>0,$K$2,IF($I89<>0,$K$2,IF($J89<>0,$K$2,""))))))) -> 
A90: 350 | B90: 25-00 | C90: Държавни такси | E90: =SUM(E91:E92) -> 280,000 | F90: 202,525 | G90: 89,653 | H90: 0 | I90: 112,872 | J90: 0 | K90: 1
A91: 355 | C91: 25-01 | D91: такси за административни и други услуги и дейности | E91: 280,000 | F91: =G91+H91+I91+J91 -> 202,525 | G91: 89,653 | H91: 0 | I91: 112,872 | J91: 0 | K91: 1
A92: 356 | C92: 25-02 | D92: такси и лицензии с данъчен характер | E92: 0 | F92: =G92+H92+I92+J92 -> 0 | G92: 0
A93: 360 | B93: 26-00 | C93: Съдебни такси | F93: =G93+H93+I93+J93 -> 0
A94: 370 | B94: 27-00 | C94: Общински такси | E94: =SUM(E95:E107) -> 0 | F94: 0 | G94: 0 | H94: 0 | I94: 0 | J94: 0
A95: 375 | C95: 27-01 | D95: за ползване на детски градини | E95: 0 | F95: =G95+H95+I95+J95 -> 0 | G95: 0
A96: 380 | C96: 27-02 | D96: за ползване на детски ясли и други по здравеопазването | E96: 0 | F96: 0 | G96: 0
A97: 385 | C97: 27-03 | D97: за ползване на лагери и други по социалния отдих | E97: 0 | F97: 0 | G97: 0
A98: 390 | C98: 27-04 | D98: за ползване на домашен социален патронаж и други общински социални услуги | E98: 0 | F98: 0 | G98: 0
A99: 395 | C99: 27-05 | D99: за ползване на пазари, тържища, панаири, тротоари, улични платна и др. | E99: 0 | F99: 0 | G99: 0
A100: 400 | C100: 27-06 | D100: за ползване на полудневни детски градини | E100: 0 | F100: 0 | G100: 0
A101: 405 | C101: 27-07 | D101: за битови отпадъци | E101: 0 | F101: 0 | G101: 0
A102: 410 | C102: 27-08 | D102: за ползване на общежития и други по образованието | E102: 0 | F102: 0 | G102: 0
A103: 420 | C103: 27-10 | D103: за технически услуги | E103: 0 | F103: 0 | G103: 0
A104: 425 | C104: 27-11 | D104: за административни услуги | E104: 0 | F104: 0 | G104: 0
A105: 430 | C105: 27-15 | D105: за откупуване на гробни места | E105: 0 | F105: 0 | G105: 0
A106: 436 | C106: 27-17 | D106: за притежаване на куче | E106: 0 | F106: 0 | G106: 0
A107: 440 | C107: 27-29 | D107: други общински такси | E107: 0 | F107: 0 | G107: 0
A108: 445 | B108: 28-00 | C108: Глоби, санкции и наказателни лихви | E108: =+E109+E110+E111 -> 50,000 | F108: =+F109+F110+F111 -> 31,836 | G108: =+G109+G110+G111 -> 27,136 | H108: =SUM(H109:H111) -> 0 | I108: =+I109+I110+I111 -> 4,700 | J108: =SUM(J109:J111) -> 0 | K108: 1
A109: 450 | C109: 28-01 | D109: конфискувани средства и приходи от продажби на конфискувани и придобити от залог вещи | E109: 0 | F109: =G109+H109+I109+J109 -> 0 | G109: 0
A110: 455 | C110: 28-02 | D110: глоби, санкции, неустойки, наказателни лихви, обезщетения и начети | E110: 50,000 | F110: =G110+H110+I110+J110 -> 31,836 | G110: 27,136 | H110: 0 | I110: 4,700 | J110: 0 | K110: 1
A111: 455 | C111: 28-09 | D111: наказателни лихви за данъци, мита и осигурителни вноски | E111: 0 | F111: =G111+H111+I111+J111 -> 0 | G111: 0
A112: 470 | B112: 36-00 | C112: Други приходи | E112: =SUM(E113:E120) -> 0 | F112: -10,921 | G112: -11,281 | H112: 0 | I112: 360 | J112: 0 | K112: 1
A113: 475 | C113: 36-01 | D113: реализирани курсови разлики от валутни операции (нето) (+/-) | E113: 0 | F113: =G113+H113+I113+J113 -> 0 | G113: 0 | H113: 0 | I113: 0 | J113: 0
A114: 480 | C114: 36-05 | D114: прехвърлени/възстановени акумулирани средства от осигурителни вноски | F114: =G114+H114+I114+J114 -> 0 | H114: 0
A115: 480 | C115: 36-08 | D115: вноски за фонд "ИЕЯС" и фонд "РАО" | F115: =G115+H115+I115+J115 -> 0
A116: 480 | C116: 36-10 | D116: приходи от други вноски | F116: 0
A117: 480 | C117: 36-11 | D117: получени застрахователни обезщетения за ДМА | E117: 0 | F117: 0 | G117: 0 | H117: 0
A118: 485 | C118: 36-12 | D118: получени други застрахователни обезщетения | E118: 0 | F118: 0 | G118: 0 | H118: 0
C119: 36-18 | D119: коректив за касови постъпления (-/+) | E119: 0 | F119: -11,756 | G119: -11,756 | K119: 1
A120: 490 | C120: 36-19 | D120: други неданъчни приходи | E120: 0 | F120: 835 | G120: 475 | H120: 0 | I120: 360 | J120: 0 | K120: 1
A121: 495 | B121: 37-00 | C121: Внесени ДДС и други данъци върху продажбите | E121: =SUM(E122:E124) -> 0 | F121: -42 | G121: -42 | H121: 0 | I121: 0 | J121: 0 | K121: 1
A122: 500 | C122: 37-01 | D122: внесен ДДС (-) | E122: 0 | F122: =G122+H122+I122+J122 -> 0 | G122: 0 | H122: 0 | I122: 0 | J122: 0
A123: 505 | C123: 37-02 | D123: внесен данък върху приходите от стопанска дейност на бюджетните предприятия (-) | E123: 0 | F123: =G123+H123+I123+J123 -> -42 | G123: -42 | H123: 0 | I123: 0 | J123: 0 | K123: 1
A124: 510 | C124: 37-09 | D124: внесени други данъци,такси и вноски върху продажбите (-) | E124: 0 | F124: =G124+H124+I124+J124 -> 0 | G124: 0
A125: 515 | B125: 40-00 | C125: Постъпления от продажба на нефинансови активи (без § 40-71) | E125: =SUM(E126:E136) -> 0 | F125: 57,340 | G125: 57,340 | H125: 0 | I125: 0 | J125: 0 | K125: 1
A126: 516 | C126: 40-21 | D126: постъпления от продажба на компютри и хардуер | E126: 0 | F126: =G126+H126+I126+J126 -> 0 | G126: 0
A127: 517 | C127: 40-22 | D127: постъпления от продажба на сгради | E127: 0 | F127: 57,340 | G127: 57,340 | K127: 1
A128: 518 | C128: 40-23 | D128: постъпления от продажба на друго оборудване, машини и съоръжения | E128: 0 | F128: 0 | G128: 0
A129: 519 | C129: 40-24 | D129: постъпления от продажба на транспортни средства | E129: 0 | F129: 0 | G129: 0 | I129: 0
A130: 520 | C130: 40-25 | D130: постъпления от продажба на стопански инвентар | E130: 0 | F130: 0 | G130: 0
A131: 521 | C131: 40-26 | D131: постъпления от продажба на инфраструктурни обекти | E131: 0 | F131: 0 | G131: 0
A132: 522 | C132: 40-29 | D132: постъпления от продажба на други ДМА | E132: 0 | F132: 0 | G132: 0
A133: 523 | C133: 40-30 | D133: постъпления от продажба на нематериални дълготрайни активи | E133: 0 | F133: 0 | G133: 0
A134: 523 | C134: 40-39 | D134: постъпления от продажба на квоти за емисии на парникови газове | E134: 0 | F134: 0 | G134: 0
A135: 524 | C135: 40-40 | D135: постъпления от продажба на земя | E135: 0 | F135: 0 | G135: 0
A136: 526 | C136: 40-72 | D136: постъпления от продажба на земеделска продукция | E136: 0 | F136: 0 | G136: 0
A137: 540 | B137: 41-00 | C137: Приходи от концесии | F137: 0
A138: 550 | B138: 42-00 | C138: Приходи от лицензии за ползване на държавни/общински активи | F138: 0
A139: 560 | B139: 45-00 | C139: Помощи и дарения от страната | E139: =SUM(E140:E141) -> 0 | F139: 0 | G139: 0 | H139: 0 | I139: 0 | J139: 0
A140: 565 | C140: 45-01 | D140: текущи помощи и дарения от страната | E140: 0 | F140: =G140+H140+I140+J140 -> 0 | G140: 0 | H140: 0 | I140: 0 | J140: 0
A141: 570 | C141: 45-03 | D141: капиталови помощи и дарения от страната | E141: 0 | F141: =G141+H141+I141+J141 -> 0 | G141: 0
A142: 575 | B142: 46-00 | C142: Помощи и дарения от чужбина | E142: =SUM(E143:E150) -> 0 | F142: 0 | G142: 0 | H142: 0 | I142: 0 | J142: 0
A143: 580 | C143: 46-10 | D143: текущи помощи и дарения от Европейския съюз | E143: 0 | F143: =G143+H143+I143+J143 -> 0 | G143: 0 | H143: 0 | I143: 0 | J143: 0
A144: 585 | C144: 46-20 | D144: капиталови помощи и дарения от Европейския съюз | E144: 0 | F144: 0 | G144: 0 | H144: 0 | I144: 0 | J144: 0
A145: 590 | C145: 46-30 | D145: текущи помощи и дарения от други държави | E145: 0 | F145: 0 | G145: 0 | H145: 0 | I145: 0 | J145: 0
A146: 595 | C146: 46-40 | D146: капиталови помощи и дарения от други държави | E146: 0 | F146: 0 | G146: 0 | H146: 0 | I146: 0 | J146: 0
A147: 600 | C147: 46-50 | D147: текущи помощи и дарения от други международни организации | E147: 0 | F147: 0 | G147: 0 | H147: 0 | I147: 0 | J147: 0
A148: 605 | C148: 46-60 | D148: капиталови помощи и дарения от други международни организации | E148: 0 | F148: 0 | G148: 0 | H148: 0 | I148: 0 | J148: 0
A149: 610 | C149: 46-70 | D149: други текущи помощи и дарения от чужбина | E149: 0 | F149: 0 | G149: 0 | H149: 0 | I149: 0 | J149: 0
A150: 615 | C150: 46-80 | D150: други капиталови помощи и дарения от чужбина | E150: 0 | F150: 0 | G150: 0 | H150: 0 | I150: 0 | J150: 0
A151: 575 | B151: 47-00 | C151: Получени чрез небюджетни предприятия средства от КФП по международни и други програми | E151: =SUM(E152:E159) -> 0 | F151: 0 | G151: 0 | H151: 0 | I151: 0 | J151: 0
A152: 580 | C152: 47-43 | D152: получени чрез нефинансови предприятия текущи трансфери от КФП по международни и други програми | E152: 0 | F152: =G152+H152+I152+J152 -> 0 | G152: 0
A153: 585 | C153: 47-44 | D153: получени чрез финансови институции текущи трансфери от КФП по международни и други програми | E153: 0 | F153: 0 | G153: 0
A154: 590 | C154: 47-45 | D154: получени чрез нестопански организации текущи трансфери от КФП по международни и други програми | E154: 0 | F154: 0 | G154: 0
A155: 595 | C155: 47-49 | D155: получени чрез предприятия от чужбина текущи трансфери от КФП по международни и други програми | E155: 0 | F155: 0 | G155: 0 | K155: =(IF($E155<>0,$K$2,IF($F155<>0,$K$2,IF($G155<>0,$K$2,IF($H155<>0,$K$2,IF($I155<>0,$K$2,IF($J155<>0,$K$2,""))))))) -> 
A156: 600 | C156: 47-51 | D156: получени чрез нефинансови предприятия капиталови трансфери от КФП по международни и други програми | E156: 0 | F156: 0 | G156: 0
A157: 605 | C157: 47-52 | D157: получени чрез финансови институции капиталови трансфери от КФП по международни и други програми | E157: 0 | F157: 0 | G157: 0
A158: 610 | C158: 47-53 | D158: получени чрез нестопански организации капиталови трансфери от КФП по международни и други програми | E158: 0 | F158: 0 | G158: 0
A159: 615 | C159: 47-59 | D159: получени чрез предприятия от чужбина капиталови трансфери от КФП по международни и други програми | E159: 0 | F159: 0 | G159: 0
A160: 575 | B160: 48-00 | C160: Разпределени към администратори от чужбина средства по международни програми и договори (-) | E160: =SUM(E161:E168) -> 0 | F160: 0 | G160: 0 | H160: 0 | I160: 0 | J160: 0
A161: 580 | C161: 48-10 | D161: разпределени към чужбина текущи трансфери по програми на Европейския съюз (-) | E161: 0 | F161: =G161+H161+I161+J161 -> 0 | G161: 0
A162: 585 | C162: 48-20 | D162: разпределени към чужбина капиталови трансфери по програми на Европейския съюз | E162: 0 | F162: 0 | G162: 0
A163: 590 | C163: 48-30 | D163: разпределени към чужбина текущи трансфери по програми на други държави (-) | E163: 0 | F163: 0 | G163: 0
A164: 595 | C164: 48-40 | D164: разпределени към чужбина капиталови трансфери по програми на други държави (-) | E164: 0 | F164: 0 | G164: 0
A165: 600 | C165: 48-50 | D165: разпределени към чужбина текущи трансфери по програми на други международни организации (-) | E165: 0 | F165: 0 | G165: 0
A166: 605 | C166: 48-60 | D166: разпределени към чужбина капиталови трансфери по програми на други международни организации (-) | E166: 0 | F166: 0 | G166: 0
A167: 610 | C167: 48-70 | D167: разпределени към чужбина текущи трансфери по други чуждестранни дарения и помощи (-) | E167: 0 | F167: 0 | G167: 0
A168: 615 | C168: 48-80 | D168: разпределени към чужбина капиталови трансфери по други чуждестранни дарения и помощи (-) | E168: 0 | F168: 0 | G168: 0
A169: 620 | B169: ВСИЧКО | C169: 99-99 | D169: I. В С И Ч К О П Р И Х О Д И, П О М О Щ И И Д А Р Е Н И Я | E169: =SUM(E22,E28,E33,E39,E47,E52,E58,E61,E64,E65,E72,E73,E74,E90,E93,E94,E108,E112,E121,E125,E137,E138,E139,E142,E151,E160) -> 330,000 | F169: 282,121 | G169: 164,189 | H169: 0 | I169: 117,932 | J169: 0 | K169: 1
K170: 1
K171: 1
K172: 1
K173: 1
B174: =$B$7 -> ОТЧЕТНИ ДАННИ ПО ЕБК ЗА ИЗПЪЛНЕНИЕТО НА БЮДЖЕТА | K174: 1
E175: за периода от | F175: до | K175: 1
B176: =$B$9 -> РЕГИОНАЛНА ЗДРАВНА ИНСПЕКЦИЯ-БУРГАС | E176: =$E$9 -> 2021-01-01 | F176: =$F$9 -> 2021-12-31 | K176: 1
B177: =$B$10 -> (наименование на разпоредителя с бюджет) | K177: 1
K178: 1
B179: =$B$12 ->  | E179: код по ЕБК: | F179: =$F$12 -> 0 | K179: 1
B180: =$B$13 -> (наименование на първостепенния разпоредител с бюджет) | K180: 1
D181: ФИНАНСОВО-ПРАВНА ФОРМА | E181: =$E$15 -> 0 | F181: =$F$15 -> БЮДЖЕТ | K181: 1
J182: (в лева) | K182: 1
D183: II. РАЗХОДИ - РЕКАПИТУЛАЦИЯ ПО ПАРАГРАФИ И ПОДПАРАГРАФИ | E183: Уточнен план | F183: О Т Ч Е Т Н И Д А Н Н И | K183: 1
B184: §§ | C184: под-§§ | D184: НАИМЕНОВАНИЕ НА ПАРАГРАФИТЕ И ПОДПАРАГРАФИТЕ | E184: =$C$3 -> 2021 | F184: ОБЩО | G184: левови сметки и СЕБРА | H184: валутни сметки | I184: операции в брой (в левове и валута) | J184: операции приравнени на касов поток | K184: 1
D185: 02 ¦ | E185: (1) | F185: (2) | G185: (3) | H185: (4) | I185: (5) | J185: (6) | K185: 1
K186: 1
A187: 5 | B187: 01-00 | C187: Заплати и възнаграждения за персонала, нает по трудови и служебни правоотношения | E187: =SUMIF($B$607:$B$12276,$B187,E$607:E$12276) -> 2,675,845 | F187: 2,656,411 | G187: 2,350,183 | H187: 0 | I187: -2,334 | J187: 308,562 | K187: =(IF($E187<>0,$K$2,IF($F187<>0,$K$2,IF($G187<>0,$K$2,IF($H187<>0,$K$2,IF($I187<>0,$K$2,IF($J187<>0,$K$2,""))))))) -> 1
A188: 10 | C188: 01-01 | D188: заплати и възнаграждения на персонала нает по трудови правоотношения | E188: =SUMIF($C$607:$C$12276,$C188,E$607:E$12276) -> 569,847 | F188: 569,847 | G188: 452,474 | H188: 0 | I188: -148 | J188: 117,521 | K188: 1 | L188: Р
A189: 15 | C189: 01-02 | D189: заплати и възнаграждения на персонала нает по служебни правоотношения | E189: 2,105,998 | F189: 2,086,564 | G189: 1,897,709 | H189: 0 | I189: -2,186 | J189: 191,041 | K189: 1 | L189: Е
A190: 35 | B190: 02-00 | C190: Други възнаграждения и плащания за персонала | E190: =SUMIF($B$607:$B$12276,$B190,E$607:E$12276) -> 131,557 | F190: 145,390 | G190: 132,920 | H190: 0 | I190: 0 | J190: 12,470 | K190: 1 | L190: К
A191: 40 | C191: 02-01 | D191: за нещатен персонал нает по трудови правоотношения | E191: =SUMIF($C$607:$C$12276,$C191,E$607:E$12276) -> 0 | F191: 0 | G191: 0 | H191: 0 | I191: 0 | J191: 0 | L191: А
A192: 45 | C192: 02-02 | D192: за персонала по извънтрудови правоотношения | E192: 84,870 | F192: 95,166 | G192: 82,696 | H192: 0 | I192: 0 | J192: 12,470 | K192: 1 | L192: П
A193: 50 | C193: 02-05 | D193: изплатени суми от СБКО за облекло и други на персонала, с характер на възнаграждение | E193: 33,509 | F193: 33,509 | G193: 33,509 | H193: 0 | I193: 0 | J193: 0 | K193: 1 | L193: И
A194: 55 | C194: 02-08 | D194: обезщетения за персонала, с характер на възнаграждение | E194: 0 | F194: 2,002 | G194: 2,002 | H194: 0 | I194: 0 | J194: 0 | K194: 1 | L194: Т
A195: 60 | C195: 02-09 | D195: другиплащания и възнаграждения | E195: 13,178 | F195: 14,713 | G195: 14,713 | H195: 0 | I195: 0 | J195: 0 | K195: 1 | L195: У
A196: 65 | B196: 05-00 | C196: Задължителни осигурителни вноски от работодатели | E196: =SUMIF($B$607:$B$12276,$B196,E$607:E$12276) -> 755,656 | F196: 751,633 | G196: 0 | H196: 0 | I196: 0 | J196: 751,633 | K196: 1 | L196: Л
A197: 70 | C197: 05-51 | D197: осигурителни вноски от работодатели за Държавното обществено осигуряване (ДОО) | E197: =SUMIF($C$607:$C$12276,$C197,E$607:E$12276) -> 469,122 | F197: 465,099 | G197: 0 | H197: 0 | I197: 0 | J197: 465,099 | K197: 1 | L197: А
A198: 75 | C198: =C197+1 -> 05-52 | D198: осигурителни вноски от работодатели за Учителския пенсионен фонд (УчПФ) | E198: 0 | F198: 0 | G198: 0 | H198: 0 | I198: 0 | J198: 0 | L198: Ц
A199: 80 | C199: 05-58 | D199: вноски по чл. 4б и 4в от КСО за сметка на осигурителя | E199: 0 | F199: 0 | G199: 0 | H199: 0 | I199: 0 | J199: 0 | L199: И
A200: 80 | C200: 05-60 | D200: здравно-осигурителни вноски от работодатели | E200: 184,730 | F200: 184,730 | G200: 0 | H200: 0 | I200: 0 | J200: 184,730 | K200: 1 | L200: Я
... 3733 more rows

Sheet INF (hidden)
A1: step | B1: 176
A2: gotocell | B2: c4141
A3: nextcell | B3: b3953
A4: INF copyrf | B4: i12:s186
A5: dejKN
B8: d3793
A11: Step:
A12: 1 | R12: =(IF($E145<>0,$K$2,IF($F145<>0,$K$2,IF($G145<>0,$K$2,IF($H145<>0,$K$2,IF($I145<>0,$K$2,IF($J145<>0,$K$2,""))))))) -> 0
A13: 2 | R13: =(IF($E145<>0,$K$2,IF($F145<>0,$K$2,IF($G145<>0,$K$2,IF($H145<>0,$K$2,IF($I145<>0,$K$2,IF($J145<>0,$K$2,""))))))) -> 0
A14: 3 | I14: =$B$7 -> 0 | R14: =(IF($E145<>0,$K$2,IF($F145<>0,$K$2,IF($G145<>0,$K$2,IF($H145<>0,$K$2,IF($I145<>0,$K$2,IF($J145<>0,$K$2,""))))))) -> 0
A15: 4 | L15: за периода от | M15: до | O15: II.1. РАЗХОДИ ПО ДЕЙНОСТИ | R15: =(IF($E145<>0,$K$2,IF($F145<>0,$K$2,IF($G145<>0,$K$2,IF($H145<>0,$K$2,IF($I145<>0,$K$2,IF($J145<>0,$K$2,""))))))) -> 0
A16: 5 | I16: =$B$9 -> 0 | L16: =$E$9 -> 00:00:00 | M16: =$F$9 -> 00:00:00 | R16: =(IF($E145<>0,$K$2,IF($F145<>0,$K$2,IF($G145<>0,$K$2,IF($H145<>0,$K$2,IF($I145<>0,$K$2,IF($J145<>0,$K$2,""))))))) -> 0
A17: 6 | I17: =$B$10 -> 0 | R17: =(IF($E145<>0,$K$2,IF($F145<>0,$K$2,IF($G145<>0,$K$2,IF($H145<>0,$K$2,IF($I145<>0,$K$2,IF($J145<>0,$K$2,""))))))) -> 0
A18: 7 | R18: =(IF($E145<>0,$K$2,IF($F145<>0,$K$2,IF($G145<>0,$K$2,IF($H145<>0,$K$2,IF($I145<>0,$K$2,IF($J145<>0,$K$2,""))))))) -> 0
A19: 8 | I19: =$B$12 -> 0 | L19: код по ЕБК: | M19: =$F$12 -> 0 | R19: =(IF($E145<>0,$K$2,IF($F145<>0,$K$2,IF($G145<>0,$K$2,IF($H145<>0,$K$2,IF($I145<>0,$K$2,IF($J145<>0,$K$2,""))))))) -> 0
A20: 9 | I20: =$B$13 -> 0 | R20: =(IF($E145<>0,$K$2,IF($F145<>0,$K$2,IF($G145<>0,$K$2,IF($H145<>0,$K$2,IF($I145<>0,$K$2,IF($J145<>0,$K$2,""))))))) -> 0
A21: 10 | K21: ФИНАНСОВО-ПРАВНА ФОРМА | L21: =$E$15 -> 0 | M21: =$F$15 -> 0 | R21: =(IF($E145<>0,$K$2,IF($F145<>0,$K$2,IF($G145<>0,$K$2,IF($H145<>0,$K$2,IF($I145<>0,$K$2,IF($J145<>0,$K$2,""))))))) -> 0
A22: 11 | Q22: (в лева) | R22: =(IF($E145<>0,$K$2,IF($F145<>0,$K$2,IF($G145<>0,$K$2,IF($H145<>0,$K$2,IF($I145<>0,$K$2,IF($J145<>0,$K$2,""))))))) -> 0
A23: 12 | K23: II.1. РАЗХОДИ ПО ДЕЙНОСТИ | L23: Уточнен план | M23: О Т Ч Е Т Н И Д А Н Н И | R23: =(IF($E145<>0,$K$2,IF($F145<>0,$K$2,IF($G145<>0,$K$2,IF($H145<>0,$K$2,IF($I145<>0,$K$2,IF($J145<>0,$K$2,""))))))) -> 0
A24: 13 | I24: §§ | J24: под-§§ | K24: НАИМЕНОВАНИЯ НА ПАРАГРАФИТЕ И ПОДПАРАГРАФИТЕ | L24: =$C$3 -> 0 | M24: ОБЩО | N24: левови сметки и СЕБРА | O24: валутни сметки | P24: операции в брой (в левове и валута) | Q24: операции приравнени на касов поток | R24: =(IF($E145<>0,$K$2,IF($F145<>0,$K$2,IF($G145<>0,$K$2,IF($H145<>0,$K$2,IF($I145<>0,$K$2,IF($J145<>0,$K$2,""))))))) -> 0
A25: 14 | K25: 02 ¦ | L25: (1) | M25: (2) | N25: (3) | O25: (4) | P25: (5) | Q25: (6) | R25: =(IF($E145<>0,$K$2,IF($F145<>0,$K$2,IF($G145<>0,$K$2,IF($H145<>0,$K$2,IF($I145<>0,$K$2,IF($J145<>0,$K$2,""))))))) -> 0
A26: 15 | J26: =VLOOKUP(K26,OP_LIST2,2,FALSE) -> 0 | K26: ИЗБЕРЕТЕ ОПЕРАТИВНА ПРОГРАМА | R26: =(IF($E145<>0,$K$2,IF($F145<>0,$K$2,IF($G145<>0,$K$2,IF($H145<>0,$K$2,IF($I145<>0,$K$2,IF($J145<>0,$K$2,""))))))) -> 0
A27: 16 | J27: =VLOOKUP(K28,EBK_DEIN2,2,FALSE) -> 0 | K27: <------ ДЕЙНОСТ - код по ЕБК | R27: =(IF($E145<>0,$K$2,IF($F145<>0,$K$2,IF($G145<>0,$K$2,IF($H145<>0,$K$2,IF($I145<>0,$K$2,IF($J145<>0,$K$2,""))))))) -> 0
A28: 17 | J28: =+J27 -> 0 | K28: ИЗБЕРЕТЕ ДЕЙНОСТ | R28: =(IF($E145<>0,$K$2,IF($F145<>0,$K$2,IF($G145<>0,$K$2,IF($H145<>0,$K$2,IF($I145<>0,$K$2,IF($J145<>0,$K$2,""))))))) -> 0
A29: 18 | K29: (наименование на дейността) | R29: =(IF($E145<>0,$K$2,IF($F145<>0,$K$2,IF($G145<>0,$K$2,IF($H145<>0,$K$2,IF($I145<>0,$K$2,IF($J145<>0,$K$2,""))))))) -> 0
A30: 19 | I30: 01-00 | J30: Заплати и възнаграждения за персонала, нает по трудови и служебни правоотношения | L30: =SUM(L31:L32) -> 0 | M30: 0 | N30: 0 | O30: 0 | P30: 0 | Q30: 0 | R30: =(IF($E30<>0,$K$2,IF($F30<>0,$K$2,IF($G30<>0,$K$2,IF($H30<>0,$K$2,IF($I30<>0,$K$2,IF($J30<>0,$K$2,""))))))) -> 0
A31: 20 | J31: 01-01 | K31: заплати и възнаграждения на персонала нает по трудови правоотношения | M31: =N31+O31+P31+Q31 -> 0 | R31: =(IF($E31<>0,$K$2,IF($F31<>0,$K$2,IF($G31<>0,$K$2,IF($H31<>0,$K$2,IF($I31<>0,$K$2,IF($J31<>0,$K$2,""))))))) -> 0
A32: 21 | J32: 01-02 | K32: заплати и възнаграждения на персонала нает по служебни правоотношения | M32: =N32+O32+P32+Q32 -> 0 | R32: 0
A33: 22 | I33: 02-00 | J33: Други възнаграждения и плащания за персонала | L33: =SUM(L34:L38) -> 0 | M33: 0 | N33: 0 | O33: 0 | P33: 0 | Q33: 0 | R33: 0
A34: 23 | J34: 02-01 | K34: за нещатен персонал нает по трудови правоотношения | M34: =N34+O34+P34+Q34 -> 0 | R34: 0
A35: 24 | J35: 02-02 | K35: за персонала по извънтрудови правоотношения | M35: =N35+O35+P35+Q35 -> 0 | R35: 0
A36: 25 | J36: 02-05 | K36: изплатени суми от СБКО за облекло и други на персонала, с характер на възнаграждение | M36: =N36+O36+P36+Q36 -> 0 | R36: 0
A37: 26 | J37: 02-08 | K37: обезщетения за персонала, с характер на възнаграждение | M37: =N37+O37+P37+Q37 -> 0 | R37: 0
A38: 27 | J38: 02-09 | K38: другиплащания и възнаграждения | M38: =N38+O38+P38+Q38 -> 0 | R38: 0
A39: 28 | I39: 05-00 | J39: Задължителни осигурителни вноски от работодатели | L39: =SUM(L40:L46) -> 0 | M39: 0 | N39: 0 | O39: 0 | P39: 0 | Q39: 0 | R39: 0
A40: 29 | J40: 05-51 | K40: осигурителни вноски от работодатели за Държавното обществено осигуряване (ДОО) | M40: =N40+O40+P40+Q40 -> 0 | N40: 0 | O40: 0 | P40: 0 | R40: 0
A41: 30 | J41: =J40+1 -> 05-52 | K41: осигурителни вноски от работодатели за Учителския пенсионен фонд (УПФ) | M41: 0 | N41: 0 | O41: 0 | P41: 0 | R41: 0
A42: 31 | J42: 05-58 | K42: вноски по чл. 4б и 4в от КСО за сметка на осигурителя | M42: =N42+O42+P42+Q42 -> 0 | N42: 0 | O42: 0 | P42: 0 | Q42: 0 | R42: 0
A43: 32 | J43: 05-60 | K43: здравно-осигурителни вноски от работодатели | M43: 0 | N43: 0 | O43: 0 | P43: 0 | R43: 0
A44: 33 | J44: 05-80 | K44: вноски за допълнително задължително осигуряване от работодатели | M44: 0 | N44: 0 | O44: 0 | P44: 0 | R44: 0
A45: 34 | J45: 05-88 | K45: коректив на вноски за ДЗПО за сумите по чл. 4б и 4в от КСО за сметка на осигурителя | M45: =N45+O45+P45+Q45 -> 0 | N45: 0 | O45: 0 | P45: 0 | Q45: 0 | R45: 0
A46: 35 | J46: 05-90 | K46: задължителни вноски за чуждестранни пенсионни фондове и схеми за сметка на осигурителя | M46: 0 | R46: 0
A47: 36 | I47: 08-00 | J47: Вноски за доброволно осигуряване | M47: 0 | R47: 0
A48: 37 | I48: 10-00 | J48: Издръжка | L48: =SUM(L49:L65) -> 0 | M48: 0 | N48: 0 | O48: 0 | P48: 0 | Q48: 0 | R48: 0
A49: 38 | J49: 10-11 | K49: Храна | M49: =N49+O49+P49+Q49 -> 0 | R49: 0
A50: 39 | J50: 10-12 | K50: Медикаменти | M50: 0 | R50: 0
A51: 40 | J51: 10-13 | K51: Постелен инвентар и облекло | M51: 0 | R51: 0
A52: 41 | J52: 10-14 | K52: Учебни и научно-изследователски разходи и книги за библиотеките | M52: 0 | R52: 0
A53: 42 | J53: 10-15 | K53: материали | M53: 0 | R53: 0
A54: 43 | J54: 10-16 | K54: вода, горива и енергия | M54: 0 | R54: 0
A55: 44 | J55: 10-20 | K55: разходи за външни услуги | M55: 0 | R55: 0
A56: 45 | J56: 10-30 | K56: Текущ ремонт | M56: 0 | R56: 0
A57: 46 | J57: 10-51 | K57: командировки в страната | M57: 0 | R57: 0
A58: 47 | J58: 10-52 | K58: краткосрочни командировки в чужбина | M58: 0 | R58: 0
A59: 48 | J59: 10-53 | K59: дългосрочни командировки в чужбина | M59: 0 | R59: 0
A60: 49 | J60: 10-62 | K60: разходи за застраховки | M60: 0 | R60: 0
A61: 50 | J61: 10-63 | K61: такса ангажимент по заеми | M61: 0 | R61: 0
A62: 51 | J62: 10-69 | K62: други финансови услуги | M62: 0 | R62: 0
A63: 52 | J63: 10-91 | K63: други разходи за СБКО | M63: 0 | R63: 0
A64: 53 | J64: 10-92 | K64: разходи за договорни санкции и неустойки, съдебни обезщетения и разноски | M64: 0 | R64: 0
A65: 54 | J65: 10-98 | K65: други разходи, некласифицирани в другите параграфи и подпараграфи | M65: 0 | R65: 0
A66: 55 | I66: 19-00 | J66: Платени данъци, такси и административни санкции | L66: =SUM(L67:L69) -> 0 | M66: 0 | N66: 0 | O66: 0 | P66: 0 | Q66: 0 | R66: 0
A67: 56 | J67: 19-01 | K67: платени държавни данъци, такси, наказателни лихви и административни санкции | M67: =N67+O67+P67+Q67 -> 0 | R67: 0
A68: 57 | J68: 19-81 | K68: платени общински данъци, такси, наказателни лихви и административни санкции | M68: =N68+O68+P68+Q68 -> 0 | R68: 0
A69: 58 | J69: 19-91 | K69: платени данъци, такси, наказателни лихви и административни санкции в чужбина | M69: =N69+O69+P69+Q69 -> 0 | R69: 0
A70: 59 | I70: 21-00 | J70: Разходи за лихви по емисии на държавни (общински) ценни книжа | L70: =SUM(L71:L75) -> 0 | M70: 0 | N70: 0 | O70: 0 | P70: 0 | Q70: 0 | R70: 0
A71: 60 | J71: 21-10 | K71: лихви по държавни (общински) ценни книжа | M71: =N71+O71+P71+Q71 -> 0 | R71: 0
A72: 61 | J72: 21-20 | K72: отстъпки по държавни (общински) ценни книжа | M72: =N72+O72+P72+Q72 -> 0 | R72: 0
A73: 62 | J73: 21-25 | K73: лихви и отстъпки по целеви емисии на държавни ценни книжа | M73: =N73+O73+P73+Q73 -> 0 | P73: 0 | R73: 0
A74: 63 | J74: 21-40 | K74: лихви по държавни ценни книжа, емитирани за структурната реформа | M74: =N74+O74+P74+Q74 -> 0 | P74: 0 | R74: 0
A75: 64 | J75: 21-90 | K75: премии над номинала от емисии на държавни (общински) ценни книжа (-) | M75: =N75+O75+P75+Q75 -> 0 | P75: 0 | R75: 0
A76: 65 | I76: 22-00 | J76: Разходи за лихви по заеми от страната | L76: =SUM(L77:L78) -> 0 | M76: 0 | N76: 0 | O76: 0 | P76: 0 | Q76: 0 | R76: 0
A77: 66 | J77: 22-21 | K77: Разходи за лихви по заеми от банки в страната | M77: =N77+O77+P77+Q77 -> 0 | R77: 0
A78: 67 | J78: 22-24 | K78: Разходи за лихви по други заеми от страната | M78: 0 | R78: 0
A79: 68 | I79: 25-00 | J79: Разходи за лихви по заеми от други държави | M79: 0 | R79: 0
A80: 69 | I80: 26-00 | J80: Разходи за лихви по заеми от международни организации и институции | M80: 0 | R80: 0
A81: 70 | I81: 27-00 | J81: Разходи за лихви по заеми от банки и други финансови институции от чужбина | M81: 0 | R81: 0
A82: 71 | I82: 28-00 | J82: Разходи за лихви и отстъпки по облигации, емитирани и търгувани на международните капиталови пазари | M82: 0 | R82: 0
A83: 72 | I83: 29-00 | J83: Други разходи за лихви | L83: =SUM(L84:L91) -> 0 | M83: 0 | N83: 0 | O83: 0 | P83: 0 | Q83: 0 | R83: 0
A84: 73 | J84: 29-10 | K84: Платени лихви по финансов лизинг и търговски кредит | M84: =N84+O84+P84+Q84 -> 0 | R84: 0
A85: 74 | J85: 29-20 | K85: Платени лихви по активирани гаранции по заеми от банки в страната | M85: =N85+O85+P85+Q85 -> 0 | R85: 0
A86: 75 | J86: 29-69 | K86: Платени лихви по активирани гаранции по заеми от международни организации и институции | M86: 0 | R86: 0
A87: 76 | J87: 29-70 | K87: Платени лихви по активирани гаранции по заеми от банки и финансови институции от чужбина | M87: 0 | R87: 0
A88: 77 | J88: 29-89 | K88: Възстановени суми по платени лихви по активирани гаранции (-) | M88: 0 | R88: 0
A89: 78 | J89: 29-90 | K89: Платени лихви по заеми, предоставени от централния бюджет и бюджетни организации | M89: =N89+O89+P89+Q89 -> 0 | R89: 0
A90: 79 | J90: 29-91 | K90: Други разходи за лихви към местни лица | M90: 0 | R90: 0
A91: 80 | J91: 29-92 | K91: Други разходи за лихви към чуждестранни лица | M91: 0 | R91: 0
A92: 81 | I92: 33-00 | J92: Вноска в общия бюджет на Европейския съюз | L92: =SUM(L93:L97) -> 0 | M92: 0 | N92: 0 | O92: 0 | P92: 0 | Q92: 0 | R92: 0
A93: 82 | J93: 33-01 | K93: ресурс на база брутен национален доход | M93: =N93+O93+P93+Q93 -> 0 | P93: 0 | Q93: 0 | R93: 0
A94: 83 | J94: 33-02 | K94: ресурс на база данък върху добавената стойност | M94: 0 | P94: 0 | Q94: 0 | R94: 0
A95: 84 | J95: 33-04 | K95: традиционни собствени ресурси - мита | M95: 0 | P95: 0 | Q95: 0 | R95: 0
A96: 85 | J96: 33-06 | K96: участие във финансирането на брутното намаление за Австрия, Дания, Германия, Нидерландия и Швеция | M96: 0 | P96: 0 | Q96: 0 | R96: 0
A97: 86 | J97: 33-07 | K97: ресурс на база нерециклираните отпадъци от опаковки от пластмаса | M97: 0 | P97: 0 | Q97: 0 | R97: 0
A98: 87 | I98: 39-00 | J98: Здравно-осигурителни плащания | M98: 0 | R98: =(IF($E98<>0,$K$2,IF($F98<>0,$K$2,IF($G98<>0,$K$2,IF($H98<>0,$K$2,IF($I98<>0,$K$2,IF($J98<>0,$K$2,""))))))) -> 0
A99: 88 | I99: 40-00 | J99: Стипендии | M99: 0 | R99: 0
A100: 89 | I100: 41-00 | J100: Пенсии | M100: 0 | R100: 0
A101: 90 | I101: 42-00 | J101: Текущи трансфери, обезщетения и помощи за домакинствата | L101: =SUM(L102:L107) -> 0 | M101: 0 | N101: 0 | O101: 0 | P101: 0 | Q101: 0 | R101: 0
A102: 91 | J102: 42-01 | K102: обезщетения и помощи по социалното осигуряване | M102: =N102+O102+P102+Q102 -> 0 | R102: 0
A103: 92 | J103: 42-02 | K103: обезщетения и помощи по социалното подпомагане | M103: 0 | R103: 0
A104: 93 | J104: 42-14 | K104: обезщетения и помощи по решение на общинския съвет | M104: 0 | R104: 0
A105: 94 | J105: 42-17 | K105: текущи трансфери за домакинства от средства на Европейския съюз | M105: 0 | R105: 0
A106: 95 | J106: 42-18 | K106: текущи трансфери за домакинства по други международни програми и споразумения | M106: 0 | R106: 0
A107: 96 | J107: 42-19 | K107: други текущи трансфери за домакинствата | M107: 0 | R107: 0
A108: 97 | I108: 43-00 | J108: Субсидии и други текущи трансфери за нефинансови предприятия | L108: =SUM(L109:L111) -> 0 | M108: 0 | N108: 0 | O108: 0 | P108: 0 | Q108: 0 | R108: 0
A109: 98 | J109: 43-01 | K109: за текуща дейност | M109: =N109+O109+P109+Q109 -> 0 | R109: 0
A110: 99 | J110: 43-02 | K110: за осъществяване на болнична помощ | M110: 0 | R110: 0
A111: 100 | J111: 43-09 | K111: други субсидии и плащания | M111: 0 | R111: 0
A112: 101 | I112: 44-00 | J112: Субсидии и други текущи трансфери за финансови институции | M112: 0 | R112: 0
A113: 102 | I113: 45-00 | J113: Субсидии и други текущи трансфери за юридически лица с нестопанска цел | M113: 0 | R113: 0
A114: 103 | I114: 46-00 | J114: Разходи за членски внос и участие в нетърговски организации и дейности | M114: 0 | R114: 0
A115: 104 | I115: 49-00 | J115: Предоставени текущи и капиталови трансфери за чужбина | L115: =+L116+L117 -> 0 | M115: 0 | N115: 0 | O115: 0 | P115: 0 | Q115: 0 | R115: 0
A116: 105 | J116: 49-01 | K116: текущи трансфери за чужбина | M116: =N116+O116+P116+Q116 -> 0 | R116: 0
A117: 106 | J117: 49-02 | K117: капиталови трансфери за чужбина | M117: =N117+O117+P117+Q117 -> 0 | R117: 0
A118: 107 | I118: 51-00 | J118: Основен ремонт на дълготрайни материални активи | M118: =N118+O118+P118+Q118 -> 0 | R118: 0
A119: 108 | I119: 52-00 | J119: Придобиване на дълготрайни материални активи | L119: =SUM(L120:L126) -> 0 | M119: 0 | N119: 0 | O119: 0 | P119: 0 | Q119: 0 | R119: 0
A120: 109 | J120: 52-01 | K120: придобиване на компютри и хардуер | M120: =N120+O120+P120+Q120 -> 0 | R120: 0
A121: 110 | J121: 52-02 | K121: придобиване на сгради | M121: 0 | R121: 0
A122: 111 | J122: 52-03 | K122: придобиване на друго оборудване, машини и съоръжения | M122: 0 | R122: 0
A123: 112 | J123: 52-04 | K123: придобиване на транспортни средства | M123: 0 | R123: 0
A124: 113 | J124: 52-05 | K124: придобиване на стопански инвентар | M124: 0 | R124: 0
A125: 114 | J125: 52-06 | K125: изграждане на инфраструктурни обекти | M125: 0 | R125: 0
A126: 115 | J126: 52-19 | K126: придобиване на други ДМА | M126: 0 | R126: 0
A127: 116 | I127: 53-00 | J127: Придобиване на нематериални дълготрайни активи | L127: =SUM(L128:L129) -> 0 | M127: 0 | N127: 0 | O127: 0 | P127: 0 | Q127: 0 | R127: 0
A128: 117 | J128: 53-01 | K128: придобиване на програмни продукти и лицензи за програмни продукти | M128: =N128+O128+P128+Q128 -> 0 | R128: 0
A129: 118 | J129: 53-09 | K129: придобиване на други нематериални дълготрайни активи | M129: =N129+O129+P129+Q129 -> 0 | R129: 0
A130: 119 | I130: 54-00 | J130: Придобиване на земя | M130: =N130+O130+P130+Q130 -> 0 | R130: 0
A131: 120 | I131: 55-00 | J131: Капиталови трансфери | L131: =SUM(L132:L135) -> 0 | M131: 0 | N131: 0 | O131: 0 | P131: 0 | Q131: 0 | R131: 0
A132: 121 | J132: 55-01 | K132: капиталови трансфери за нефинансови предприятия | M132: =N132+O132+P132+Q132 -> 0 | R132: 0
A133: 122 | J133: 55-02 | K133: капиталови трансфери за финансови институции | M133: =N133+O133+P133+Q133 -> 0 | R133: 0
A134: 123 | J134: 55-03 | K134: капиталови трансфери за организации с нестопанска цел | M134: =N134+O134+P134+Q134 -> 0 | R134: 0
A135: 124 | J135: 55-04 | K135: капиталови трансфери за домакинствата | M135: =N135+O135+P135+Q135 -> 0 | R135: 0
A136: 125 | I136: 57-00 | J136: Прираст на държавния резерв и изкупуване на земеделска продукция (включва и § 40-71) | L136: =SUM(L137:L139) -> 0 | M136: 0 | N136: 0 | O136: 0 | P136: 0 | Q136: 0 | R136: 0
A137: 126 | J137: 57-01 | K137: плащания за попълване на държавния резерв | M137: =N137+O137+P137+Q137 -> 0 | R137: 0
A138: 127 | J138: 57-02 | K138: плащания за изкупуване на земеделска продукция | M138: =N138+O138+P138+Q138 -> 0 | R138: 0
A139: 128 | J139: 40-71 | K139: постъпления от продажба на държавния резерв (-) | M139: =N139+O139+P139+Q139 -> 0 | R139: 0
A140: 129
A141: 130 | I141: 00-98 | J141: Резерв за непредвидени и неотложни разходи | M141: =N141+O141+P141+Q141 -> 0 | N141: 0 | O141: 0 | P141: 0 | Q141: 0 | R141: 0
A142: 131
A143: 132
A144: 133
A145: 134 | J145: 99-99 | K145: =+I145 -> II. ОБЩО РАЗХОДИ ЗА ДЕЙНОСТ 0000 | L145: =SUM(L30,L33,L39,L47,L48,L66,L70,L76,L79,L80,L81,L82,L83,L92,L98,L99,L100,L101,L108,L112,L113,L114,L115,L118,L119,L127,L130,L131,L136)+L141 -> 0 | M145: 0 | N145: 0 | O145: 0 | P145: 0 | Q145: 0 | R145: 0 | S145: =LEFT(J27,1) -> 0
A146: 135 | R146: =R145 -> 0
A147: 136 | R147: =R145 -> 0
A148: 137 | R148: =(IF(SUM(R159:R180)<>0,$K$2,"")) -> 
A149: 138 | I149: =$B$7 -> 0 | R149: =(IF(SUM(R159:R180)<>0,$K$2,"")) -> 
A150: 139 | L150: за периода от | M150: до | R150: =(IF(SUM(R159:R180)<>0,$K$2,"")) -> 
A151: 140 | I151: =$B$9 -> 0 | L151: =$E$9 -> 00:00:00 | M151: =$F$9 -> 00:00:00 | R151: =(IF(SUM(R159:R180)<>0,$K$2,"")) -> 
A152: 141 | I152: =$B$10 -> 0 | R152: =(IF(SUM(R159:R180)<>0,$K$2,"")) -> 
A153: 142 | R153: =(IF(SUM(R159:R180)<>0,$K$2,"")) -> 
A154: 143 | I154: =$B$12 -> 0 | L154: код по ЕБК: | M154: =$F$12 -> 0 | R154: =(IF(SUM(R159:R180)<>0,$K$2,"")) -> 
A155: 144 | I155: =$B$13 -> 0 | R155: =(IF(SUM(R159:R180)<>0,$K$2,"")) -> 
A156: 145 | K156: ФИНАНСОВО-ПРАВНА ФОРМА | L156: =$E$15 -> 0 | M156: =$F$15 -> 0 | R156: =(IF(SUM(R159:R180)<>0,$K$2,"")) -> 
A157: 146 | K157: Натурални и други показатели за дейността | M157: (в лева) | R157: =(IF(SUM(R159:R180)<>0,$K$2,"")) -> 
A158: 147 | I158: МЯРКА | J158: Код 9 8 | K158: О б щ и н а т у р а л н и п о к а з а т е л и | L158: П л а н | M158: О т ч е т | R158: =(IF(SUM(R159:R180)<>0,$K$2,"")) -> 
A159: 148 | J159: 9 8 0 1 | K159: Щ а т н и б р о й к и | L159: =L160+L161 -> 0 | M159: =M160+M161 -> 0 | R159: =(IF($E159<>0,$K$2,IF($F159<>0,$K$2,""))) -> 
A160: 149 | J160: 9 8 1 1 | K160: в т.ч.: по трудови правоотношения
A161: 150 | J161: 9 8 1 2 | K161: по служебни правоотношения
A162: 151 | J162: 9 8 0 2 | K162: Средногодишни щатни бройки | L162: =L163+L164 -> 0 | M162: =M163+M164 -> 0
A163: 152 | J163: 9 8 2 1 | K163: в т.ч.: по трудови правоотношения
A164: 153 | J164: 9 8 2 2 | K164: по служебни правоотношения
A165: 154 | J165: 9 8 0 3 | K165: Средна годишна брутна заплата
A166: 155 | J166: 9 8 3 1 | K166: в т.ч.: по трудови правоотношения
A167: 156 | J167: 9 8 3 2 | K167: по служебни правоотношения
A168: 157 | J168: 9 8 0 4 | K168: Брой на моторни превозни средства
A169: 158 | J169: 9 8 0 5 | K169: - в т.ч. - леки автомобили
A170: 159 | J170: 9 8 0 6 | K170: - санитарни линейки
A171: 160 | J171: 9 8 0 7 | K171: Брой ученици, финансирани по единни разходни стандарти
A172: 161 | J172: 9 8 0 8 | K172: Средна годишна брутна заплата на делегирани бюджети
A173: 162 | J173: 9 8 0 9 | K173: Щатни бройки на делегирани бюджети
A174: 163 | J174: 9 8 1 0 | K174: Средногодишни щатни бройки на делегирани бюджети
A175: 164 | J175: 9 8 1 3 | K175: Средногодишен приравнен брой учащи във ВУ, финансирани по норматив за издръжка на обучението
A176: 165 | J176: 9 8 1 4 | K176: Брой леглодни в студентски общежития
A177: 166 | J177: 9 8 1 5 | K177: Брой хранодни в студентски стол
A178: 167 | J178: 9 8 1 7 | K178: Болнични легла
A179: 168 | J179: 9 8 1 8 | K179: Обем радиопрограма /часове/
A180: 169 | J180: 9 8 1 9 | K180: Обем телевизионна програма /часове/
A181: 170 | I181: МЯРКА | J181: Код | K181: Разходи в областта на електронното управление и за използваните информационни и комуникационни технологии | L181: П л а н | M181: О т ч е т | R181: =(IF($E182<>0,$K$2,IF($F182<>0,$K$2,""))) -> 
A182: 171 | J182: 9 8 5 0 | K182: Общо разходи в областта на ЕУ и за използваните ИКТ | L182: =L183+L184 -> 0 | M182: =M183+M184 -> 0
A183: 172 | J183: 9 8 5 1 | K183: Текущи разходи в областта на ЕУ и за използваните ИКТ
A184: 173 | J184: 9 8 5 2 | K184: Капиталови разходи в областта на ЕУ и за използваните ИКТ
A185: 174 | I185: ЗАБЕЛЕЖКА: | R185: =R145 -> 0
A186: 175 | I186: За натурални показатели, не влючени в този отчет, специфични за конкретна дейност се представят отделни справки, допълнително определени от Министерство на финансите. | R186: =R145 -> 0
A187: 176 | R187: =R145 -> 0
R188: =(IF(L145<>0,$G$2,IF(Q145<>0,$G$2,""))) -> 
R189: =(IF(L146<>0,$G$2,IF(Q146<>0,$G$2,""))) -> 
R190: =(IF(L145<>0,$G$2,IF(Q145<>0,$G$2,""))) -> 
R191: =(IF(L145<>0,$G$2,IF(Q145<>0,$G$2,""))) -> 
R192: =(IF(L145<>0,$G$2,IF(Q145<>0,$G$2,""))) -> 
R193: =(IF(L145<>0,$G$2,IF(Q145<>0,$G$2,""))) -> 
R194: =(IF(L145<>0,$G$2,IF(Q145<>0,$G$2,""))) -> 

Sheet list (hidden)
A1: Name: | B1: SMETKA
A2: 0 | B2: ОТЧЕТНИ ДАННИ ПО ЕБК ЗА ИЗПЪЛНЕНИЕТО НА БЮДЖЕТА | C2: ОТЧЕТ ЗА КАСОВОТО ИЗПЪЛНЕНИЕ НА БЮДЖЕТА
A3: 33 | B3: ОТЧЕТНИ ДАННИ ПО ЕБК ЗА СМЕТКИТЕ ЗА ЧУЖДИ СРЕДСТВА | C3: ОТЧЕТ ЗА КАСОВОТО ИЗПЪЛНЕНИЕ НА СМЕТКИТЕ ЗА ЧУЖДИ СРЕДСТВА
A4: 42 | B4: ОТЧЕТНИ ДАННИ ПО ЕБК ЗА СМЕТКИТЕ ЗА СРЕДСТВАТА ОТ ЕВРОПЕЙСКИЯ СЪЮЗ - РА | C4: ОТЧЕТ ЗА КАСОВОТО ИЗПЪЛНЕНИЕ НА СМЕТКИТЕ ЗА СРЕДСТВАТА ОТ ЕВРОПЕЙСКИЯ СЪЮЗ - РА
A5: 96 | B5: ОТЧЕТНИ ДАННИ ПО ЕБК ЗА СМЕТКИТЕ ЗА СРЕДСТВАТА ОТ ЕВРОПЕЙСКИЯ СЪЮЗ - ДЕС | C5: ОТЧЕТ ЗА КАСОВОТО ИЗПЪЛНЕНИЕ НА СМЕТКИТЕ ЗА СРЕДСТВАТА ОТ ЕВРОПЕЙСКИЯ СЪЮЗ - ДЕС
A6: 97 | B6: ОТЧЕТНИ ДАННИ ПО ЕБК ЗА СМЕТКИТЕ ЗА СРЕДСТВАТА ОТ ЕВРОПЕЙСКИЯ СЪЮЗ - ДМП | C6: ОТЧЕТ ЗА КАСОВОТО ИЗПЪЛНЕНИЕ НА СМЕТКИТЕ ЗА СРЕДСТВАТА ОТ ЕВРОПЕЙСКИЯ СЪЮЗ - ДМП
A7: 98 | B7: ОТЧЕТНИ ДАННИ ПО ЕБК ЗА СМЕТКИТЕ ЗА СРЕДСТВАТА ОТ ЕВРОПЕЙСКИЯ СЪЮЗ - КСФ | C7: ОТЧЕТ ЗА КАСОВОТО ИЗПЪЛНЕНИЕ НА СМЕТКИТЕ ЗА СРЕДСТВАТА ОТ ЕВРОПЕЙСКИЯ СЪЮЗ - КСФ
A10: Name: | B10: "EBK_DEIN" и "EBK_DEIN2"
B11: ИЗБЕРЕТЕ ДЕЙНОСТ
A12: 11 0 1 | B12: 101 Централни държавни органи | C12: 11 0 1
A13: 11 0 3 | B13: 103 Централни държавни органи по образованието | C13: 11 0 3
A14: 11 0 4 | B14: 104 Централни държавни органи по здравеопазването | C14: 11 0 4
A15: 11 0 5 | B15: 105 Централни държавни органи по социалното осигуряването | C15: 11 0 5
A16: 11 0 6 | B16: 106 Централни държавни органи по регионалното развитие и благоустройство | C16: 11 0 6
A17: 11 0 7 | B17: 107 Централни държавни органи по културата и спорта | C17: 11 0 7
A18: 11 0 8 | B18: 108 Централни държавни органи по икономическите дейности и услуги | C18: 11 0 8
A19: 11 1 1 | B19: 111 Контролни органи | C19: 11 1 1
A20: 11 1 5 | B20: 115 Управление, контрол и регулиране на външните работи | C20: 11 1 5
A21: 11 1 6 | B21: 116 Посолства, консулства, представителства и мисии в чужбина | C21: 11 1 6
A22: 11 1 7 | B22: 117 Държавни и общински служби и дейности по изборите | C22: 11 1 7
A23: 11 2 1 | B23: 121 Областни администрации | C23: 11 2 1
A24: 11 2 2 | B24: 122 Общинска администрация | C24: 11 2 2
A25: 11 2 3 | B25: 123 Общински съвети | C25: 11 2 3
A26: 11 2 5 | B26: 125 Членове на Европейския парламент от Република България | C26: 11 2 5
A27: 11 2 8 | B27: 128 Международни програми и споразумения, дарения и помощи от чужбина | C27: 11 2 8
A28: 11 3 9 | B28: 139 Други изпълнителни и законодателни органи | C28: 11 3 9
A29: 11 4 1 | B29: 141 Статистически институт,служби и дейности,социологически проучвания и анкети | C29: 11 4 1
A30: 11 4 2 | B30: 142 Общоикономическо и социално програмиране и прогнозиране | C30: 11 4 2
A31: 11 4 3 | B31: 143 Регистрация и контрол на чуждестранните инвестиции | C31: 11 4 3
A32: 11 4 4 | B32: 144 Служби и дейности за връзки с българите в чужбина | C32: 11 4 4
A33: 11 4 5 | B33: 145 Служби и дейности за подпомагане на бежанците | C33: 11 4 5
A34: 11 4 6 | B34: 146 Управление и администриране на получена чуждестранна помощ | C34: 11 4 6
A35: 11 4 7 | B35: 147 Управление на държавния резерв и военновременните запаси | C35: 11 4 7
A36: 11 4 8 | B36: 148 Управление на гражд.администрация и административнообслужване на населението | C36: 11 4 8
A37: 11 4 9 | B37: 149 Други общи служби | C37: 11 4 9
A38: 11 5 1 | B38: 151 Ликвидационна комисия за закрити бюджетни организации | C38: 11 5 1
A39: 11 5 8 | B39: 158 Международни програми и споразумения, дарения и помощи от чужбина | C39: 11 5 8
A40: 11 6 1 | B40: 161 Организация и управление на научните изследвания и дейности | C40: 11 6 1
A41: 11 6 2 | B41: 162 Научноизследователско дело | C41: 11 6 2
A42: 11 6 3 | B42: 163 Научноизследователски институти и центрове | C42: 11 6 3
A43: 11 6 8 | B43: 168 Международни програми и споразумения, дарения и помощи от чужбина | C43: 11 6 8
A44: 11 7 9 | B44: 179 Други дейности на науката | C44: 11 7 9
A45: 22 0 1 | B45: 201 Дейности по отбраната | C45: 22 0 1
A46: 22 0 5 | B46: 205 Участие на Република България в НАТО | C46: 22 0 5
A47: 22 0 6 | B47: 206 Мироопазващи мисии в чужбина | C47: 22 0 6
A48: 22 1 5 | B48: 215 Приложни научни изследвания в областта на отбраната | C48: 22 1 5
A49: 22 1 8 | B49: 218 Международни програми и споразумения, дарения и помощи от чужбина | C49: 22 1 8
A50: 22 1 9 | B50: 219 Други дейности по отбраната | C50: 22 1 9
A51: 22 2 1 | B51: 221 Полиция и вътрешен ред | C51: 22 2 1
A52: 22 2 2 | B52: 222 Национална служба за охрана | C52: 22 2 2
A53: 22 2 3 | B53: 223 Държавна агенция "Разузнаване" | C53: 22 2 3
A54: 22 2 4 | B54: 224 Противопожарна охрана | C54: 22 2 4
A55: 22 2 5 | B55: 225 Приложни научни изследвания в областта на вътрешния ред и сигурност | C55: 22 2 5
A56: 22 2 8 | B56: 228 Международни програми и споразумения, дарения и помощи от чужбина | C56: 22 2 8
A57: 22 3 9 | B57: 239 Други дейности по вътрешната сигурност | C57: 22 3 9
A58: 22 4 1 | B58: 241 Висш съдебен съвет | C58: 22 4 1
A59: 22 4 2 | B59: 242 Върховен административен съд | C59: 22 4 2
A60: 22 4 3 | B60: 243 Върховен касационен съд | C60: 22 4 3
A61: 22 4 4 | B61: 244 Прокуратура | C61: 22 4 4
A62: 22 4 5 | B62: 245 Национална следствена служба | C62: 22 4 5
A63: 22 4 6 | B63: 246 Съдилища | C63: 22 4 6
A64: 22 4 7 | B64: 247 Окръжни следствени служби | C64: 22 4 7
A65: 22 4 8 | B65: 248 Инспекторат към Висшия съдебен съвет | C65: 22 4 8
A66: 22 4 9 | B66: 249 Национален институт на правосъдието | C66: 22 4 9
A67: 22 5 8 | B67: 258 Международни програми и споразумения, дарения и помощи от чужбина | C67: 22 5 8
A68: 22 5 9 | B68: 259 Други дейности на съдебната власт | C68: 22 5 9
A69: 22 6 1 | B69: 261 Места за лишаване от свобода | C69: 22 6 1
A70: 22 6 8 | B70: 268 Международни програми и споразумения, дарения и помощи от чужбина | C70: 22 6 8
A71: 22 7 9 | B71: 279 Други дейности на администрацията на затворите | C71: 22 7 9
A72: 22 8 1 | B72: 281 Неотложна дейност по защита на населението и националното стопанство | C72: 22 8 1
A73: 22 8 2 | B73: 282 Отбранително-мобилизационна подготовка, поддържане на запаси и мощности | C73: 22 8 2
A74: 22 8 3 | B74: 283 Превантивна дейност за намаляване на вредните последствия от бедствия и аварии | C74: 22 8 3
A75: 22 8 4 | B75: 284 Ликвидиране на последици от стихийни бедствия и производствени аварии | C75: 22 8 4
A76: 22 8 5 | B76: 285 Доброволни формирования за защита при бедствия | C76: 22 8 5
A77: 22 8 8 | B77: 288 Международни програми и споразумения, дарения и помощи от чужбина | C77: 22 8 8
A78: 22 8 9 | B78: 289 Други дейности за защита на населението при стихийни бедствия и аварии | C78: 22 8 9
A79: 33 0 1 | B79: 301 Управление, контрол, регулиране и лицензиране на дейности по образованието | C79: 33 0 1
A80: 33 1 1 | B80: 311 Детски градини | C80: 33 1 1
A81: 33 1 2 | B81: 312 Специални групи в детски градини за деца със СОП | C81: 33 1 2
A82: 33 1 8 | B82: 318 Подготвителна група в училище | C82: 33 1 8
A83: 33 2 1 | B83: 321 Специални училища и центрове за специална образователна подкрепа | C83: 33 2 1
A84: 33 2 2 | B84: 322 Неспециализирани училища, без професионални гимназии | C84: 33 2 2
A85: 33 2 3 | B85: 323 Училища по културата и училища по изкуствата | C85: 33 2 3
A86: 33 2 4 | B86: 324 Спортни училища | C86: 33 2 4
A87: 33 2 5 | B87: 325 Български училища в чужбина | C87: 33 2 5
A88: 33 2 6 | B88: 326 Професионални гимназии и паралелки за професионална подготовка | C88: 33 2 6
A89: 33 2 7 | B89: 327 Училища в места за лишаване от свобода | C89: 33 2 7
A90: 33 3 2 | B90: 332 Общежития | C90: 33 3 2
A91: 33 3 3 | B91: 333 Ученически почивни лагери | C91: 33 3 3
A92: 33 3 4 | B92: 334 Повишаване на квалификацията | C92: 33 3 4
A93: 33 3 6 | B93: 336 Столове | C93: 33 3 6
A94: 33 3 7 | B94: 337 Център за подкрепа за личностно развитие | C94: 33 3 7
A95: 33 3 8 | B95: 338 Ресурсно подпомагане | C95: 33 3 8
A96: 33 4 1 | B96: 341 Академии, университети и висши училища | C96: 33 4 1
A97: 33 4 9 | B97: 349 Приложни научни изследвания в областта на образованието | C97: 33 4 9
A98: 33 5 9 | B98: 359 Други дейности за децата | C98: 33 5 9
A99: 33 6 9 | B99: 369 Други дейности за младежта | C99: 33 6 9
A100: 33 8 8 | B100: 388 Международни програми и споразумения, дарения и помощи от чужбина | C100: 33 8 8
A101: 33 8 9 | B101: 389 Други дейности по образованието | C101: 33 8 9
A102: 44 0 1 | B102: 401 Управление, контрол и регулиране на дейности по здравеопазването | C102: 44 0 1
A103: 44 1 2 | B103: 412 Многопрофилни болници за активно лечение | C103: 44 1 2
A104: 44 1 5 | B104: 415 Домове за медико-социални грижи | C104: 44 1 5
A105: 44 1 8 | B105: 418 Психиатрични болници | C105: 44 1 8
A106: 44 2 9 | B106: 429 Центрове за спешна медицинска помощ | C106: 44 2 9
A107: 44 3 1 | B107: 431 Детски ясли, детски кухни и яслени групи в детска градина | C107: 44 3 1
A108: 44 3 3 | B108: 433 Рехабилитация | C108: 44 3 3
A109: 44 3 6 | B109: 436 Национални центрове | C109: 44 3 6
A110: 44 3 7 | B110: 437 Здравен кабинет в детски градини и училища | C110: 44 3 7
A111: 44 4 8 | B111: 448 Центрове за комплексно обслужване на деца с увреждания и хронични заболявания | C111: 44 4 8
A112: 44 5 0 | B112: 450 Преобразувани лечебни заведения | C112: 44 5 0
A113: 44 5 1 | B113: 451 Плащания за първична извънболнична медицинска помощ | C113: 44 5 1
A114: 44 5 2 | B114: 452 Плащания за специализирана извънболнична медицинска помощ | C114: 44 5 2
A115: 44 5 3 | B115: 453 Плащания за дентална помощ | C115: 44 5 3
A116: 44 5 4 | B116: 454 Плащания за медико-диагностична дейност | C116: 44 5 4
A117: 44 5 5 | B117: 455 Плащания за лекарствени продукти, медицински изделия и диетични храни за специални медицински цели за домашно лечение на територията на страната | C117: 44 5 5
A118: 44 5 6 | B118: 456 Плащания за болнична медицинска помощ | C118: 44 5 6
A119: 44 5 7 | B119: 457 Плащания за медицински изделия прилагани в болничната медицинска помощ | C119: 44 5 7
A120: 44 5 8 | B120: 458 Плащания за лекарствени продукти в условия на болнична медицинска помощ | C120: 44 5 8
A121: 44 5 9 | B121: 459 Други здравноосигурителни плащания | C121: 44 5 9
A122: 44 6 5 | B122: 465 Приложни научни изследвания в областта на здравеопазването | C122: 44 6 5
A123: 44 6 7 | B123: 467 Национални програми | C123: 44 6 7
A124: 44 6 8 | B124: 468 Международни програми и споразумения, дарения и помощи от чужбина | C124: 44 6 8
A125: 44 6 9 | B125: 469 Други дейности по здравеопазването | C125: 44 6 9
A126: 55 0 1 | B126: 501 Пенсии | C126: 55 0 1
A127: 55 1 1 | B127: 511 Помощи по Закона за семейните помощи за деца | C127: 55 1 1
A128: 55 1 2 | B128: 512 Помощи по Закона за социално подпомагане | C128: 55 1 2
A129: 55 1 3 | B129: 513 Помощи по Закона за хората с увреждания | C129: 55 1 3
A130: 55 1 4 | B130: 514 Помощи за диагностика и лечение на социално слаби лица | C130: 55 1 4
A131: 55 1 5 | B131: 515 Помощи по Закона за закрила на детето | C131: 55 1 5
A132: 55 1 6 | B132: 516 Помощи по Закона за ветераните от войните на Република България | C132: 55 1 6
A133: 55 1 7 | B133: 517 Помощи по Закона за военноинвалидите и военнопострадалите | C133: 55 1 7
A134: 55 1 8 | B134: 518 Социални помощи и обезщетения по международни програми, помощи и дарения | C134: 55 1 8
A135: 55 1 9 | B135: 519 Други помощи и обезщетения | C135: 55 1 9
A136: 55 2 1 | B136: 521 Служби по социалното осигуряване (ДОО и др.) | C136: 55 2 1
A137: 55 2 2 | B137: 522 Дирекции за социално подпомагане | C137: 55 2 2
A138: 55 2 4 | B138: 524 Домашен социален патронаж | C138: 55 2 4
A139: 55 2 5 | B139: 525 Клубове на пенсионера, инвалида и др. | C139: 55 2 5
A140: 55 2 6 | B140: 526 Центрове за обществена подкрепа | C140: 55 2 6
A141: 55 2 7 | B141: 527 Звена "Майка и бебе" | C141: 55 2 7
A142: 55 2 8 | B142: 528 Център за работа с деца на улицата | C142: 55 2 8
A143: 55 2 9 | B143: 529 Кризисен център | C143: 55 2 9
A144: 55 3 0 | B144: 530 Център за настаняване от семеен тип | C144: 55 3 0
A145: 55 3 1 | B145: 531 Дейности за предотвратяване на трудови злополуки и професионални болести | C145: 55 3 1
A146: 55 3 2 | B146: 532 Програми за временна заетост | C146: 55 3 2
A147: 55 3 3 | B147: 533 Други програми и дейности за осигуряване на заетост | C147: 55 3 3
A148: 55 3 4 | B148: 534 Наблюдавани жилища | C148: 55 3 4
A149: 55 3 5 | B149: 535 Преходни жилища | C149: 55 3 5
A150: 55 3 8 | B150: 538 Програми за закрила на детето | C150: 55 3 8
A151: 55 4 0 | B151: 540 Домове за стари хора | C151: 55 4 0
A152: 55 4 1 | B152: 541 Домове за възрастни хора с увреждания | C152: 55 4 1
A153: 55 4 5 | B153: 545 Социален учебно-професионален център | C153: 55 4 5
A154: 55 4 6 | B154: 546 Домове за деца | C154: 55 4 6
A155: 55 4 7 | B155: 547 Център за временно настаняване | C155: 55 4 7
A156: 55 4 8 | B156: 548 Дневни центрове за стари хора | C156: 55 4 8
A157: 55 5 0 | B157: 550 Центрове за социална рехабилитация и интеграция | C157: 55 5 0
A158: 55 5 1 | B158: 551 Дневни центрове за лица с увреждания | C158: 55 5 1
A159: 55 5 3 | B159: 553 Приюти | C159: 55 5 3
A160: 55 5 4 | B160: 554 Защитени жилища | C160: 55 5 4
A161: 55 5 6 | B161: 556 Приложни научни изследвания в областта на социалното осигуряване и подпомагане | C161: 55 5 6
A162: 55 6 1 | B162: 561 Социални услуги в домашна среда | C162: 55 6 1
A163: 55 6 2 | B163: 562 Асистенти за лична помощ | C163: 55 6 2
A164: 55 8 8 | B164: 588 Международни програми и споразумения, дарения и помощи от чужбина | C164: 55 8 8
A165: 55 8 9 | B165: 589 Други служби и дейности по социалното осигуряване, подпомагане и заетостта | C165: 55 8 9
A166: 66 0 1 | B166: 601 Управление, контрол и регулиране на дейностите по жил. строителство и териториално развитие | C166: 66 0 1
A167: 66 0 2 | B167: 602 Служби по кадастър, геодезия и регистрация на недвижимата собственост | C167: 66 0 2
A168: 66 0 3 | B168: 603 Водоснабдяване и канализация | C168: 66 0 3
A169: 66 0 4 | B169: 604 Осветление на улици и площади | C169: 66 0 4
A170: 66 0 5 | B170: 605 Минерални води и бани | C170: 66 0 5
A171: 66 0 6 | B171: 606 Изграждане, ремонт и поддържане на уличната мрежа | C171: 66 0 6
A172: 66 1 8 | B172: 618 Международни програми и споразумения, дарения и помощи от чужбина | C172: 66 1 8
A173: 66 1 9 | B173: 619 Други дейности по жилищното строителство, благоустройството и регионалното развитие | C173: 66 1 9
A174: 66 2 1 | B174: 621 Управление, контрол и регулиране на дейностите по опазване на околната среда | C174: 66 2 1
A175: 66 2 2 | B175: 622 Озеленяване | C175: 66 2 2
A176: 66 2 3 | B176: 623 Чистота | C176: 66 2 3
A177: 66 2 4 | B177: 624 Геозащита | C177: 66 2 4
A178: 66 2 5 | B178: 625 Приложни и научни изследвания в областта на опазване на околната среда | C178: 66 2 5
A179: 66 2 6 | B179: 626 Пречистване на отпадъчните води от населените места | C179: 66 2 6
A180: 66 2 7 | B180: 627 Управление на дейностите по отпадъците | C180: 66 2 7
A181: 66 2 8 | B181: 628 Международни програми и споразумения, дарения и помощи от чужбина | C181: 66 2 8
A182: 66 2 9 | B182: 629 Други дейности по опазване на околната среда | C182: 66 2 9
A183: 77 0 1 | B183: 701 Дейности по почивното дело и социалния отдих | C183: 77 0 1
A184: 77 0 8 | B184: 708 Международни програми и споразумения, дарения и помощи от чужбина | C184: 77 0 8
A185: 77 1 1 | B185: 711 Управление, контрол и регулиране на дейностите по спорта | C185: 77 1 1
A186: 77 1 2 | B186: 712 Детски и специализирани спортни школи | C186: 77 1 2
A187: 77 1 3 | B187: 713 Спорт за всички | C187: 77 1 3
A188: 77 1 4 | B188: 714 Спортни бази за спорт за всички | C188: 77 1 4
A189: 77 1 8 | B189: 718 Международни програми и споразумения, дарения и помощи от чужбина | C189: 77 1 8
A190: 77 1 9 | B190: 719 Други дейности по спорта и физическата култура | C190: 77 1 9
A191: 77 3 1 | B191: 731 Управление, контрол и регулиране на дейностите по културата | C191: 77 3 1
A192: 77 3 2 | B192: 732 Културни дейности | C192: 77 3 2
A193: 77 3 3 | B193: 733 Български културни институти в чужбина | C193: 77 3 3
A194: 77 3 5 | B194: 735 Театри | C194: 77 3 5
A195: 77 3 6 | B195: 736 Оперно - филхармонични дружества и опери | C195: 77 3 6
A196: 77 3 7 | B196: 737 Оркестри и ансамбли | C196: 77 3 7
A197: 77 3 8 | B197: 738 Читалища | C197: 77 3 8
A198: 77 3 9 | B198: 739 Музеи, худ. галерии, паметници на културата и етногр. комплекси с национален и регионален харакер | C198: 77 3 9
A199: 77 4 0 | B199: 740 Музеи, художествени галерии, паметници на културата и етнографски комплекси с местен харакер | C199: 77 4 0
A200: 77 4 1 | B200: 741 Радиотранслационни възли | C200: 77 4 1
A201: 77 4 2 | B201: 742 Радио | C201: 77 4 2
A202: 77 4 3 | B202: 743 Телевизия | C202: 77 4 3
... 524 more rows
